Trans Date,Supplier Name,Trans Ref/No,Net Amount,Expense Description,Service Code,Category
01/07/2020,Signs Express (Exeter),774408,240,Advertising,Wellbeing Exeter,Supplies & Services
01/07/2020,Great Western Hotel,775192,20600,Bed And Breakfast,Covid-19 Rough Sleepers Fund,Premises
01/07/2020,Telstar Guest House Ltd,775402,760.83,Bed And Breakfast,Covid-19 Rough Sleepers Fund,Premises
01/07/2020,Telstar Guest House Ltd,775403,1890,Bed And Breakfast,Covid-19 Rough Sleepers Fund,Premises
01/07/2020,Ashton Cleaning Services (Sw) Ltd,771866,225,Cleaning,Covid-19 Rough Sleepers Fund,Premises
01/07/2020,Baltimore Consulting Ltd,774420,6562.5,Consultants Fees,Planning,Supplies & Services
01/07/2020,Black Radley Culture Limited,775267,9240,Consultants Fees,Ramm,Supplies & Services
01/07/2020,C Featherstone Associates Ltd,775353,2100,Consultants Fees,Ramm Legal Costs,Supplies & Services
01/07/2020,Epiq Systems Ltd,774747,9355.09,Consultants Fees,Ramm Legal Costs,Supplies & Services
01/07/2020,Epiq Systems Ltd,774748,2218.35,Consultants Fees,Ramm Legal Costs,Supplies & Services
01/07/2020,Epiq Systems Ltd,775468,3638.62,Consultants Fees,Ramm Legal Costs,Supplies & Services
01/07/2020,Epiq Systems Ltd,775469,1704.4,Consultants Fees,Ramm Legal Costs,Supplies & Services
01/07/2020,Epiq Systems Ltd,775470,4841.67,Consultants Fees,Ramm Legal Costs,Supplies & Services
01/07/2020,Epiq Systems Ltd,775471,557.75,Consultants Fees,Ramm Legal Costs,Supplies & Services
01/07/2020,Epiq Systems Ltd,775473,1431.68,Consultants Fees,Ramm Legal Costs,Supplies & Services
01/07/2020,Smartarch Ltd,775386,33725,Consultants Fees,Ramm Legal Costs,Supplies & Services
01/07/2020,Tudor Rose Consultancy Ltd,772072,20887.5,Consultants Fees,Ramm Legal Costs,Supplies & Services
01/07/2020,Devon County Council,775269,74737.8,Contract Payments,Sport England Pathfinder,Supplies & Services
01/07/2020,Science Museum Group,773826,1501.5,Curatorial Materials,Ramm,Supplies & Services
01/07/2020,E.On   (Electricity),774196,4865.39,Electricity,Civic Centre,Premises
01/07/2020,E.On   (Electricity),774201,1929.15,Electricity,Civic Centre,Premises
01/07/2020,Edf Energy,772810,895.46,Electricity,Older Persons Accommodation,Premises
01/07/2020,E.On   (Electricity),774203,339.23,Electricity,Older Persons Accommodation,Premises
01/07/2020,Southern Electric,774437,7191.13,Electricity,S Electric A/C 04748 69417,Premises
01/07/2020,Southern Electric,774442,6529.96,Electricity,S Electric A/C 63013 09118,Premises
01/07/2020,Southern Electric,773383,515.06,Electricity,Shared House Psls,Premises
01/07/2020,Specialist Fleet Services Ltd,772238,23653.15,Fleet Fpm Contract Maintenance,Fleet Contract Hire,Transport
01/07/2020,Devon Carousel Project,774746,975,Grants Issued,Covid 19 Community Initiatives,Supplies & Services
01/07/2020,Therm-Eco Ewi Ltd,775446,2000,Grants Issued,Warm Up Exeter,Supplies & Services
01/07/2020,Cobwebs,775361,16606.5,Hra Routine Cleaning Contract,Customer Relations,Premises
01/07/2020,H & S Transport Ltd,773457,600,Materials,Parks Operational Overheads,Supplies & Services
01/07/2020,South West Water,773983,272.93,Miscellaneous Expenditure,Exeter City Living Ltd,Supplies & Services
01/07/2020,REDACTED PERSONAL DATA,773290,250,Museum - Temp Exhibitions,Museum Npo,Supplies & Services
01/07/2020,Honeyscribe,773302,250,Museum - Temp Exhibitions,Museum Npo,Supplies & Services
01/07/2020,REDACTED PERSONAL DATA,773317,250,Museum - Temp Exhibitions,Museum Npo,Supplies & Services
01/07/2020,REDACTED PERSONAL DATA,774412,250,Museum - Temp Exhibitions,Museum Npo,Supplies & Services
01/07/2020,Patronus Security Uk Ltd,775448,2864.5,Other Expenses,Covid-19 Rough Sleepers Fund,Supplies & Services
01/07/2020,Specialist Fleet Services Ltd,773851,641.23,Other Expenses,Fleet Contract Hire,Supplies & Services
01/07/2020,Jpm Beds Ltd,774994,278.33,Other Expenses,Rough Sleeping Initiative,Supplies & Services
01/07/2020,Pitney Bowes Finance Ltd,775400,665.29,Postage/Stamps,Mail,Supplies & Services
01/07/2020,Bloom Procurement Services,772362,4673,Project Work,Riverside,Supplies & Services
01/07/2020,Stagecoach Services Ltd,774702,286,Public Transport,Housing Advice,Transport
01/07/2020,Home Group Ltd,773347,1070.65,Rents,Capital payment,Premises
01/07/2020,Diamond People Ltd,775467,300,Software Licences/Support,Vehicles Licensing,Supplies & Services
01/07/2020,Ashfords,774184,720,Solicitors And Legal Fees/Lics,General Management,Supplies & Services
01/07/2020,Jtt Contracting Ltd,775345,2025,Sub-Contractors,Mallison Bridge,Premises
01/07/2020,International Institute For Conservation,773291,360,Subscriptions,Conservation Laboratory,Supplies & Services
01/07/2020,Hays Accountancy Personnel,775370,661.08,Temp.Contract-Agency Staff,Accountancy Services,Pay
01/07/2020,Morgan Law,775372,800,Temp.Contract-Agency Staff,Accountancy Services,Pay
01/07/2020,Hays Accountancy Personnel,775367,257.4,Temp.Contract-Agency Staff,Planned Works,Pay
01/07/2020,Venn Group Ltd,775383,193.4,Temp.Contract-Agency Staff,Planned Works,Pay
01/07/2020,The Oyster Partnership Ltd,775378,1004.5,Temp.Contract-Agency Staff,Planning,Pay
01/07/2020,Venn Group Ltd,774725,814.05,Temp.Contract-Agency Staff,Planning,Pay
01/07/2020,Hays Accountancy Personnel,775367,386.1,Temp.Contract-Agency Staff,Reactive Repairs,Pay
01/07/2020,Hays Accountancy Personnel,775369,953.9,Temp.Contract-Agency Staff,Reactive Repairs,Pay
01/07/2020,Venn Group Ltd,775382,1086.75,Temp.Contract-Agency Staff,Reactive Repairs,Pay
01/07/2020,Venn Group Ltd,775383,290.11,Temp.Contract-Agency Staff,Reactive Repairs,Pay
01/07/2020,The Oyster Partnership Ltd,775377,937.5,Temp.Contract-Agency Staff,Rough Sleeping Initiative,Pay
01/07/2020,Market Carpets,773177,916.67,Tenant Decant Costs,Customer Relations,Supplies & Services
02/07/2020,Public Sector Today,774449,698,Advertising Of Posts,Customer Relations,Pay
02/07/2020,P & P Lifts Limited,775334,495,Aim Lease Requirements,Miscellaneous Properties,Premises
02/07/2020,Alarmtec,772242,1882.52,Aim Reactive Repairs,Property Maintenance,Premises
02/07/2020,Peter Ridley Waste Systems,775231,2157.4,Bins & Recycling Boxes,Refuse Collection,Supplies & Services
02/07/2020,Bloom Procurement Services,775486,5000,Consultants Fees,Leisure Complex - Build,Supplies & Services
02/07/2020,Bloom Procurement Services,775487,7000,Consultants Fees,Leisure Complex - Build,Supplies & Services
02/07/2020,Roberts Limbrick Ltd,775399,935,Consultants Fees,Leisure Complex - Build,Supplies & Services
02/07/2020,Wsp Uk Ltd,775371,443.73,Contract Payments,Leisure Complex - Build,Supplies & Services
02/07/2020,Exeter Community Initiatives,775641,45000,Contract Payments,Vcse Support Service (Eci/Loc),Supplies & Services
02/07/2020,Asd Lighting Plc,775483,648.3,Electrical Works - Communal,Prog'D Elec Re-Wiring General,Supplies & Services
02/07/2020,Asd Lighting Plc,775484,641,Electrical Works - Communal,Prog'D Elec Re-Wiring General,Supplies & Services
02/07/2020,Asd Lighting Plc,775485,2250.64,Electrical Works - Communal,Prog'D Elec Re-Wiring General,Supplies & Services
02/07/2020,Streamline Corporate Ltd,772257,940,Equipment Tools And Materials,Refuse Collection,Supplies & Services
02/07/2020,Sodexo Motivation Solutions Uk,775531,301.2,Excel & Longservice Awards,Human Resources,Pay
02/07/2020,Specialist Fleet Services Ltd,774290,1972.99,Fleet Supply & Maintenance,Fleet Contract Hire,Transport
02/07/2020,Liberty Gas Group Ltd,775455,14831.07,Gas & Central Heating,Service Contracts,Premises
02/07/2020,Drainology,775642,5460,General Maintenance,General Maintenance,Premises
02/07/2020,Alphington Community Association,775509,1000,Grants Issued,Covid 19 Community Initiatives,Supplies & Services
02/07/2020,Nute Plumbing Services Ltd,775648,5469,Grants Issued,Disabled Facilities Grants,Supplies & Services
02/07/2020,Nute Plumbing Services Ltd,775656,4942,Grants Issued,Disabled Facilities Grants,Supplies & Services
02/07/2020,Municipal Mutual,775375,951.62,Insurance Excess,Parks And Open Spaces M'Ment,Pay
02/07/2020,Drive Creative Studio Ltd,775646,2856,Marketing,Communications & Marketing,Supplies & Services
02/07/2020,Signs Express (Exeter),775199,234,Marketing,Communications & Marketing,Supplies & Services
02/07/2020,Rd & E Nhs Foundation Trust,775230,674.63,Medical Inspections,Human Resources,Pay
02/07/2020,Signs Express (Exeter),775504,672,Other Expenses,High Streets Fund,Supplies & Services
02/07/2020,J Price Consulting Ltd,775466,7920,Other Expenses,Liveable Garden City,Supplies & Services
02/07/2020,Lda Design,775478,2382,Other Expenses,Liveable Garden City,Supplies & Services
02/07/2020,Lda Design,775479,2200,Other Expenses,Liveable Garden City,Supplies & Services
02/07/2020,University Of Exeter,774756,1940.85,Project Work,Museum Npo,Supplies & Services
02/07/2020,University Of Exeter,774809,1940.85,Project Work,Museum Npo,Supplies & Services
02/07/2020,Civica Uk Ltd,774489,384.63,Software Licences/Support,Strata Susp - Inv Paid By Ecc,Supplies & Services
02/07/2020,Ministry Of Play,775197,1000,Sub-Contractors,Childrens Play Areas,Premises
02/07/2020,Venn Group Ltd,775384,1001,Temp.Contract-Agency Staff,Health & Safety Compliance,Pay
02/07/2020,James Andrews Recruitment Solutions Ltd,775629,945,Temp.Contract-Agency Staff,Human Resources,Pay
03/07/2020,Integrated Water Services,775450,7.3,Aim Lease Requirements,Commercial Properties,Premises
03/07/2020,Integrated Water Services,775451,7.3,Aim Lease Requirements,Commercial Properties,Premises
03/07/2020,Orona,773288,95.83,Aim Lease Requirements,Commercial Properties,Premises
03/07/2020,Wemco Ltd,773988,876.25,Aim Lease Requirements,Miscellaneous Properties,Premises
03/07/2020,D G Electrical Services,775359,488.5,Aim Reactive Repairs,Property Maintenance,Premises
03/07/2020,D G Electrical Services,775360,1181.6,Aim Reactive Repairs,Property Maintenance,Premises
03/07/2020,Radiate Plumbing + Heating Services Ltd,775552,345.5,Aim Reactive Repairs,Property Maintenance,Premises
03/07/2020,Single Ply Structures Ltd,773340,250,Aim Reactive Repairs,Property Maintenance,Premises
03/07/2020,Wemco Ltd,773988,478.28,Aim Reactive Repairs,Property Maintenance,Premises
03/07/2020,Orona,773288,746.98,Aim Service & Maintenance,Property Maintenance,Premises
03/07/2020,Wemco Ltd,773988,1203.66,Aim Service & Maintenance,Property Maintenance,Premises
03/07/2020,Recruitment Solutions (Sw) Ltd,775506,1039.13,Casuals Waged-Agency Staff,Materials Reclamation Facility,Pay
03/07/2020,The Best Connection Group Ltd,775619,932.75,Casuals Waged-Agency Staff,Materials Reclamation Facility,Pay
03/07/2020,Concept Staffing Ltd,775766,639.12,Casuals Waged-Agency Staff,Public Realm Agency Costs,Pay
03/07/2020,Matching Staff Solutions,775366,456.95,Casuals Waged-Agency Staff,Public Realm Agency Costs,Pay
03/07/2020,Recruitment Solutions (Sw) Ltd,775507,528,Casuals Waged-Agency Staff,Public Realm Agency Costs,Pay
03/07/2020,The Best Connection Group Ltd,775620,477.68,Casuals Waged-Agency Staff,Public Realm Agency Costs,Pay
03/07/2020,W B Employment Ltd,775355,453.99,Casuals Waged-Agency Staff,Public Realm Agency Costs,Pay
03/07/2020,Backline Logistic Support Services Ltd,775546,487.51,Casuals Waged-Agency Staff,Waste Agency Costs,Pay
03/07/2020,Berry Recruitment,775373,478.78,Casuals Waged-Agency Staff,Waste Agency Costs,Pay
03/07/2020,Concept Staffing Ltd,771402,769.28,Casuals Waged-Agency Staff,Waste Agency Costs,Pay
03/07/2020,Gap Personnel,775828,391.5,Casuals Waged-Agency Staff,Waste Agency Costs,Pay
03/07/2020,Matching Staff Solutions,775351,587.56,Casuals Waged-Agency Staff,Waste Agency Costs,Pay
03/07/2020,Recruitment Solutions (Sw) Ltd,775508,554.63,Casuals Waged-Agency Staff,Waste Agency Costs,Pay
03/07/2020,Blue Frog Cleaning Services,775651,5484.41,Cleaning,Civic Centre,Premises
03/07/2020,Bam Construction Ltd - Plant,771211,3186,"Clothing, Laundry, & Uniforms",Cleansing Overheads,Supplies & Services
03/07/2020,Bam Construction Ltd - Plant,775770,4248,"Clothing, Laundry, & Uniforms",Cleansing Overheads,Supplies & Services
03/07/2020,Suez Recycling & Recovery Ltd,775617,1316.7,Comingled Haulage Out,Materials & Goods For Resale,Transport
03/07/2020,C & P Contracting Solutions Ltd,775826,2250,Consultants Fees,General Management,Supplies & Services
03/07/2020,Bloom Procurement Services,775488,2100,Consultants Fees,Leisure Complex - Build,Supplies & Services
03/07/2020,Bloom Procurement Services,775785,5040,Consultants Fees,Leisure Complex - Build,Supplies & Services
03/07/2020,Low Carbon Expert Ltd,775772,5700,Consultants Fees,New Build Site Investigations,Supplies & Services
03/07/2020,Ashfords,773189,2000,Consultants Fees,Ramm Legal Costs,Supplies & Services
03/07/2020,Opus 2 International Ltd,775211,2106.46,Consultants Fees,Ramm Legal Costs,Supplies & Services
03/07/2020,Hanover Lifts Ltd,775778,5950,Contract Payments,Adaptations,Supplies & Services
03/07/2020,Westcountry Maintenance Services Ltd,775780,5000,Contract Payments,Kitchen Replacements,Supplies & Services
03/07/2020,Se3 Design Ltd,775482,1200,Contract Payments,Leisure Complex - Build,Supplies & Services
03/07/2020,Rm Builders + Contractors Ltd,774151,23673.77,Contract Payments,Ramm Passenger Lift,Supplies & Services
03/07/2020,Kier Construction Ltd,775627,242115.67,Contract Payments,St Loyes Extracare Scheme,Supplies & Services
03/07/2020,E.On   (Electricity),774204,1158.54,Electricity,Car Parks,Premises
03/07/2020,E.On   (Electricity),774208,815.59,Electricity,Car Parks,Premises
03/07/2020,E.On   (Electricity),774198,2662.1,Electricity,Materials Reclamation Facility,Premises
03/07/2020,E.On   (Electricity),774199,903.43,Electricity,Oakwood House,Premises
03/07/2020,Bam Construction Ltd - Plant,747904,3750,Equipment Tools And Materials,Cleansing Overheads,Supplies & Services
03/07/2020,Pelsis Ltd,775728,31.22,Equipment Tools And Materials,Environmental Quality Team,Supplies & Services
03/07/2020,Specialist Fleet Services Ltd,773852,601.36,Fleet Supply & Maintenance,Fleet Contract Hire,Transport
03/07/2020,Specialist Fleet Services Ltd,773854,484.33,Fleet Supply & Maintenance,Fleet Contract Hire,Transport
03/07/2020,Specialist Fleet Services Ltd,773857,484,Fleet Supply & Maintenance,Fleet Contract Hire,Transport
03/07/2020,Specialist Fleet Services Ltd,773859,601.36,Fleet Supply & Maintenance,Fleet Contract Hire,Transport
03/07/2020,Specialist Fleet Services Ltd,775217,710,Fleet Supply & Maintenance,Fleet Contract Hire,Transport
03/07/2020,Colt International Limited,775686,608,General Maintenance,General Maintenance,Premises
03/07/2020,Colt International Limited,775687,608,General Maintenance,General Maintenance,Premises
03/07/2020,Mears Ltd,775690,5968.47,General Maintenance,General Maintenance,Premises
03/07/2020,Dolphin Lifts South West,775650,5040,Grants Issued,Disabled Facilities Grants,Supplies & Services
03/07/2020,Dolphin Lifts South West,775654,3570,Grants Issued,Disabled Facilities Grants,Supplies & Services
03/07/2020,Dolphin Lifts South West,775655,4990,Grants Issued,Disabled Facilities Grants,Supplies & Services
03/07/2020,Therm-Eco Ewi Ltd,775796,1786,Grants Issued,Warm Up Exeter,Supplies & Services
03/07/2020,Therm-Eco Ewi Ltd,775811,1900,Grants Issued,Warm Up Exeter,Supplies & Services
03/07/2020,Therm-Eco Ewi Ltd,775812,1900,Grants Issued,Warm Up Exeter,Supplies & Services
03/07/2020,Wemco Ltd,773988,39.64,Maintenance Of Equipment,Materials Reclamation Facility,Supplies & Services
03/07/2020,St Petrocks (Exeter) Ltd,775783,18125,Other Expenses,Rough Sleeping Grant,Supplies & Services
03/07/2020,I J Cannings & Son Limited,773300,1253.06,Pmf Compliance,Property Maintenance,Premises
03/07/2020,Integrated Water Services,775450,987.94,Pmf Compliance,Property Maintenance,Premises
03/07/2020,Integrated Water Services,775451,894.26,Pmf Compliance,Property Maintenance,Premises
03/07/2020,Pelsis Ltd,775728,291.22,Poisons,Environmental Quality Team,Supplies & Services
03/07/2020,Mig Security & Events Ltd,775790,210.32,Security Patrol,Car Parks,Premises
03/07/2020,Mig Security & Events Ltd,775791,1864.2,Security Patrol,Car Parks,Premises
03/07/2020,Integrated Water Services,775450,99.47,Service Charges,Bradninch Place,Premises
03/07/2020,Binary Legal Services,775674,500,Solicitors And Legal Fees/Lics,Bed And Breakfast,Supplies & Services
03/07/2020,Ashfords,775789,3646,Solicitors And Legal Fees/Lics,General Management,Supplies & Services
03/07/2020,Mitie Property Services,775376,1764,Sub-Contractors,Footpaths Maint - Assets,Premises
03/07/2020,Integrated Water Services,775450,14.21,Sub-Contractors,Ramm,Premises
03/07/2020,Integrated Water Services,775451,14.21,Sub-Contractors,Ramm,Premises
03/07/2020,Building Recruitment Co Ltd,775634,18.86,Temp.Contract-Agency Staff,Cob Management,Pay
03/07/2020,James Andrews Recruitment Solutions Ltd,775631,659.91,Temp.Contract-Agency Staff,Customer Service Centre,Pay
03/07/2020,Building Recruitment Co Ltd,775634,28.29,Temp.Contract-Agency Staff,Gf Hsg Property Management,Pay
03/07/2020,Building Recruitment Co Ltd,775635,465.83,Temp.Contract-Agency Staff,Planned Works,Pay
03/07/2020,James Andrews Recruitment Solutions Ltd,775628,1198.8,Temp.Contract-Agency Staff,Planned Works,Pay
03/07/2020,James Andrews Recruitment Solutions Ltd,775630,236.52,Temp.Contract-Agency Staff,Planned Works,Pay
03/07/2020,REDACTED PERSONAL DATA,775793,327.75,Temp.Contract-Agency Staff,Ramm,Pay
03/07/2020,Building Recruitment Co Ltd,775633,943.5,Temp.Contract-Agency Staff,Reactive Repairs,Pay
03/07/2020,Building Recruitment Co Ltd,775634,895.76,Temp.Contract-Agency Staff,Reactive Repairs,Pay
03/07/2020,Building Recruitment Co Ltd,775635,465.83,Temp.Contract-Agency Staff,Reactive Repairs,Pay
03/07/2020,Building Recruitment Co Ltd,775636,654.68,Temp.Contract-Agency Staff,Reactive Repairs,Pay
03/07/2020,James Andrews Recruitment Solutions Ltd,775630,354.78,Temp.Contract-Agency Staff,Reactive Repairs,Pay
03/07/2020,Mears Ltd,775688,1558.83,Void Bathroom Replacements,Bathroom Replacements,Supplies & Services
03/07/2020,Mears Ltd,775689,2966.03,Void Kitchen Replacements,Kitchen Replacements,Supplies & Services
03/07/2020,South West Water Business,774529,703.85,Water,Oakwood House,Premises
06/07/2020,Recruitment Solutions (Sw) Ltd,775927,1013.63,Casuals Waged-Agency Staff,Materials Reclamation Facility,Pay
06/07/2020,Driver Hire Exeter Ltd,773107,650.83,Casuals Waged-Agency Staff,Waste Agency Costs,Pay
06/07/2020,Driver Hire Exeter Ltd,775836,650.83,Casuals Waged-Agency Staff,Waste Agency Costs,Pay
06/07/2020,Recruitment Solutions (Sw) Ltd,775845,930.76,Casuals Waged-Agency Staff,Waste Agency Costs,Pay
06/07/2020,Wise Employment,775839,498.76,Casuals Waged-Agency Staff,Waste Agency Costs,Pay
06/07/2020,Glen Cleaning,775950,324.86,Cleaning,Exeter Visitor Information,Premises
06/07/2020,Ashton Cleaning Services (Sw) Ltd,775745,406,Cleaning,Glencoe,Premises
06/07/2020,Ashton Cleaning Services (Sw) Ltd,775743,420,Cleaning,Queens Road,Premises
06/07/2020,Ashton Cleaning Services (Sw) Ltd,775744,390,Cleaning,The Haven,Premises
06/07/2020,Glen Cleaning,775952,426.89,Cleaning,Underground Passages,Premises
06/07/2020,Lyreco Uk Ltd,775942,660,Cleaning Materials,Corporate Support Unit,Premises
06/07/2020,Clifton Emery Design Ltd,774405,1500,Consultants Fees,Liveable Garden City,Supplies & Services
06/07/2020,Burrows-Hutchinson Ltd,775270,3300,Consultants Fees,Planning,Supplies & Services
06/07/2020,Link Treasury Services Ltd,775944,4500,Consultants Fees,Treasury Management,Supplies & Services
06/07/2020,Westcountry Maintenance Services Ltd,775779,15000,Contract Payments,Adaptations,Supplies & Services
06/07/2020,Asd Lighting Plc,775929,2593.2,Electrical Works - Communal,Prog'D Elec Re-Wiring General,Supplies & Services
06/07/2020,Asd Lighting Plc,776046,675.66,Electrical Works - Communal,Prog'D Elec Re-Wiring General,Supplies & Services
06/07/2020,Colt International Limited,775834,577,General Maintenance,General Maintenance,Premises
06/07/2020,REDACTED PERSONAL DATA,775961,999.84,General Maintenance,General Maintenance,Premises
06/07/2020,Propoint Southwest Ltd,775732,2146,General Maintenance,General Maintenance,Premises
06/07/2020,Propoint Southwest Ltd,775733,1880,General Maintenance,General Maintenance,Premises
06/07/2020,Mears Ltd,775833,14102.09,General Maintenance,Repairs To Void Properties,Premises
06/07/2020,Alphington Community Association,775968,20000,Grants Issued,Strategic Fund,Supplies & Services
06/07/2020,M.R.S. Communications,775782,495,Licences,Business Crime Reduction Unit,Supplies & Services
06/07/2020,Trump Engineering Ltd,775824,941,Maintenance Of Equipment,Materials Reclamation Facility,Supplies & Services
06/07/2020,Patronus Security Uk Ltd,775449,1036.75,Other Expenses,Covid-19 Rough Sleepers Fund,Supplies & Services
06/07/2020,Strata Service Solutions Ltd,774302,4524.37,Payment To Strata,Mobile Device Chgs For Rechge,Supplies & Services
06/07/2020,Apple Central Taxis Ltd,775621,221.61,Public Transport,Bed And Breakfast,Transport
06/07/2020,REDACTED PERSONAL DATA,776010,12692.4,Serviced Accommodation,Serviced Accommodation,Premises
06/07/2020,REDACTED PERSONAL DATA,776011,18043.2,Serviced Accommodation,Serviced Accommodation,Premises
06/07/2020,REDACTED PERSONAL DATA,776037,10980,Solicitors And Legal Fees/Lics,Ramm Legal Costs,Supplies & Services
06/07/2020,Ministry Of Play,775198,950,Sub-Contractors,Childrens Play Areas,Premises
06/07/2020,Building Recruitment Co Ltd,775844,18.86,Temp.Contract-Agency Staff,Cob Management,Pay
06/07/2020,Building Recruitment Co Ltd,775844,28.29,Temp.Contract-Agency Staff,Gf Hsg Property Management,Pay
06/07/2020,Hays Accountancy Personnel,772523,759.92,Temp.Contract-Agency Staff,Liveable Garden City,Pay
06/07/2020,Hays Accountancy Personnel,773353,949.9,Temp.Contract-Agency Staff,Liveable Garden City,Pay
06/07/2020,Hays Accountancy Personnel,774718,949.9,Temp.Contract-Agency Staff,Liveable Garden City,Pay
06/07/2020,Hays Accountancy Personnel,775368,949.9,Temp.Contract-Agency Staff,Liveable Garden City,Pay
06/07/2020,Hays Accountancy Personnel,775956,569.94,Temp.Contract-Agency Staff,Liveable Garden City,Pay
06/07/2020,Building Recruitment Co Ltd,775843,465.83,Temp.Contract-Agency Staff,Planned Works,Pay
06/07/2020,Hays Accountancy Personnel,775953,1060.42,Temp.Contract-Agency Staff,Planned Works,Pay
06/07/2020,Hays Accountancy Personnel,775958,204.6,Temp.Contract-Agency Staff,Planned Works,Pay
06/07/2020,Venn Group Ltd,775933,144.23,Temp.Contract-Agency Staff,Planned Works,Pay
06/07/2020,Building Recruitment Co Ltd,775841,943.5,Temp.Contract-Agency Staff,Reactive Repairs,Pay
06/07/2020,Building Recruitment Co Ltd,775843,465.83,Temp.Contract-Agency Staff,Reactive Repairs,Pay
06/07/2020,Building Recruitment Co Ltd,775844,895.91,Temp.Contract-Agency Staff,Reactive Repairs,Pay
06/07/2020,Hays Accountancy Personnel,775955,944.9,Temp.Contract-Agency Staff,Reactive Repairs,Pay
06/07/2020,Hays Accountancy Personnel,775958,306.9,Temp.Contract-Agency Staff,Reactive Repairs,Pay
06/07/2020,Venn Group Ltd,775932,944.46,Temp.Contract-Agency Staff,Reactive Repairs,Pay
06/07/2020,Venn Group Ltd,775933,216.35,Temp.Contract-Agency Staff,Reactive Repairs,Pay
07/07/2020,Redactive Publishing Ltd,775638,1095,Advertising Of Posts,Accountancy Services,Pay
07/07/2020,Great Western Hotel,775977,21350,Bed And Breakfast,Empty Homes,Premises
07/07/2020,Concept Staffing Ltd,775767,584.64,Casuals Waged-Agency Staff,Public Realm Agency Costs,Pay
07/07/2020,Recruitment Solutions (Sw) Ltd,775928,587.4,Casuals Waged-Agency Staff,Public Realm Agency Costs,Pay
07/07/2020,Wise Employment,775837,938.6,Casuals Waged-Agency Staff,Public Realm Agency Costs,Pay
07/07/2020,Wise Employment,775838,1051.44,Casuals Waged-Agency Staff,Public Realm Agency Costs,Pay
07/07/2020,Nicholas Rowell Haulage Ltd,776182,4200,Comingled Haulage Out,Materials & Goods For Resale,Transport
07/07/2020,Echelon Consultancy Ltd,775936,1875,Consultants Fees,Reactive Repairs,Supplies & Services
07/07/2020,Echelon Consultancy Ltd,775937,1125,Consultants Fees,Reactive Repairs,Supplies & Services
07/07/2020,First Class Builders Ltd,775194,4484.37,Contract Payments,Adaptations,Supplies & Services
07/07/2020,Faithful & Gould/Atkins Group,776208,30703.38,Contract Payments,Riverside,Supplies & Services
07/07/2020,Asd Lighting Plc,775930,2095.25,Electrical Works - Communal,Prog'D Elec Re-Wiring General,Supplies & Services
07/07/2020,E.On   (Electricity),774209,767.33,Electricity,Car Parks,Premises
07/07/2020,E.On   (Electricity),774211,1630.12,Electricity,Car Parks,Premises
07/07/2020,Hi-Devon,776178,135,Electricity,Civic Centre,Premises
07/07/2020,Hi-Devon,776178,135,Electricity,Exeter Corn Exchange,Premises
07/07/2020,Hi-Devon,776178,135,Electricity,Livestock/Matford Centre,Premises
07/07/2020,Hi-Devon,776178,135,Electricity,Ramm,Premises
07/07/2020,Asd Lighting Plc,775930,373.42,Gas Equip Replacement,General Maintenance,Premises
07/07/2020,Whipton Community Association,776047,1000,Grants Issued,Covid 19 Community Initiatives,Supplies & Services
07/07/2020,St Petrocks (Exeter) Ltd,775763,15000,Other Expenses,Prs Access Fund,Supplies & Services
07/07/2020,Live Well Exeter Cic,775771,10121,Other Expenses,Rough Sleeping Initiative,Supplies & Services
07/07/2020,Trade Refuse & Salvage Handlers (Trash),776170,481,Paper Buy In,Materials & Goods For Resale,Supplies & Services
07/07/2020,Secureforce Uk Ltd,776166,618.17,Security Patrol,Livestock/Matford Centre,Premises
07/07/2020,Capita Business Services,775963,426,Software Licences/Support,Strata Susp - Inv Paid By Ecc,Supplies & Services
07/07/2020,South West Water Business,774411,2262.12,Water,Facilities Management,Premises
08/07/2020,N & B Foods Exeter,776176,350,Annual Fee Under La 2003,Premises Licensing,Income
08/07/2020,Nute Plumbing Services Ltd,775784,5991,Bathroom Adaptations,Bathroom Replacements,Supplies & Services
08/07/2020,Telstar Guest House Ltd,776187,2022.5,Bed And Breakfast,Covid-19 Rough Sleepers Fund,Premises
08/07/2020,Mears Ltd,775832,672.69,Blocks Of Flat Repairs,General Maintenance,Premises
08/07/2020,Berry Recruitment,776301,284.68,Casuals Waged-Agency Staff,Waste Agency Costs,Pay
08/07/2020,Concept Staffing Ltd,776294,745.47,Casuals Waged-Agency Staff,Waste Agency Costs,Pay
08/07/2020,Matching Staff Solutions,776305,476.4,Casuals Waged-Agency Staff,Waste Agency Costs,Pay
08/07/2020,Cobwebs,775777,221,Cleaning,Customer Relations,Premises
08/07/2020,Suez Recycling & Recovery Ltd,776228,2766.4,Comingled Haulage Out,Materials & Goods For Resale,Transport
08/07/2020,Mears Ltd,775832,378.27,Contract Payments,Adaptations,Supplies & Services
08/07/2020,Mears Ltd,775832,165.87,Contract Payments,Common Area Footpth/Wall Imps,Supplies & Services
08/07/2020,Asd Lighting Plc,776291,1056.6,Electrical Works - Communal,Prog'D Elec Re-Wiring General,Supplies & Services
08/07/2020,E.On   (Electricity),774206,397.77,Electricity,Car Parks,Premises
08/07/2020,Mears Ltd,775832,107,Flat Roofs,General Maintenance,Premises
08/07/2020,Mears Ltd,775832,4714.6,General Maintenance,Elec Testing/Reactive,Premises
08/07/2020,Airtech Humidity Controls Ltd,775540,1436.32,General Maintenance,General Maintenance,Premises
08/07/2020,First Class Builders Ltd,776183,498.69,General Maintenance,General Maintenance,Premises
08/07/2020,Mears Ltd,775475,1270.76,General Maintenance,General Maintenance,Premises
08/07/2020,Mears Ltd,775832,23551.96,General Maintenance,General Maintenance,Premises
08/07/2020,Mears Ltd,775475,1121.63,Glazing,General Maintenance,Premises
08/07/2020,City Vets,776207,532.29,Other Expenses,Rough Sleeping Initiative,Supplies & Services
08/07/2020,Strata Service Solutions Ltd,776224,8803.64,Payment To Strata,Recharges From Strata,Supplies & Services
08/07/2020,Hotel Chocolat Retail Ltd,776292,320,Premises Licences,Premises Licensing,Income
08/07/2020,Red House Hotel,776357,60598.72,Serviced Accommodation,Serviced Accommodation,Premises
08/07/2020,Capron Gould Lettings,776284,476.66,Spend To Save,Housing Access,Supplies & Services
08/07/2020,West End Welding,775975,2133,Sub-Contractors,Car Park Resurfacing,Premises
08/07/2020,Devon Wildlife Trust,776173,2500,Subscriptions,Planning,Supplies & Services
08/07/2020,Environmental Management Publishing,776359,401,Subscriptions,Technical Support/Agenda 21,Supplies & Services
08/07/2020,Morgan Law,776299,640,Temp.Contract-Agency Staff,Accountancy Services,Pay
09/07/2020,Ross & Roberts,776333,0,Bailiffs Fees,Nndr Collection,Supplies & Services
09/07/2020,Berry Recruitment,776056,670.07,Casuals Waged-Agency Staff,Public Realm Agency Costs,Pay
09/07/2020,Berry Recruitment,776300,670.07,Casuals Waged-Agency Staff,Public Realm Agency Costs,Pay
09/07/2020,Concept Staffing Ltd,776233,448.44,Casuals Waged-Agency Staff,Public Realm Agency Costs,Pay
09/07/2020,Matching Staff Solutions,776324,456.95,Casuals Waged-Agency Staff,Public Realm Agency Costs,Pay
09/07/2020,The Best Connection Group Ltd,775374,1627.19,Casuals Waged-Agency Staff,Public Realm Agency Costs,Pay
09/07/2020,W B Employment Ltd,776293,592.07,Casuals Waged-Agency Staff,Public Realm Agency Costs,Pay
09/07/2020,Perfect Circle Jv Ltd,776167,44021.28,Consultants Fees,Liveable Garden City,Supplies & Services
09/07/2020,Inform Cpi Ltd,776234,325,Consultants Fees,Nndr Collection,Supplies & Services
09/07/2020,Smartarch Ltd,776456,5115,Consultants Fees,Ramm Legal Costs,Supplies & Services
09/07/2020,M W Gozna Services Ltd,776440,280,Contract Payments,Adaptations,Supplies & Services
09/07/2020,Clc Contractors Ltd,771385,15017.92,Contract Payments,Door Replacements,Supplies & Services
09/07/2020,Clc Contractors Ltd,771385,34782.05,Contract Payments,Window Replacements,Supplies & Services
09/07/2020,Devon County Council,776358,1614,Devon County Council Consult.,Land Charges,Supplies & Services
09/07/2020,Airtech Humidity Controls Ltd,776449,1880.63,General Maintenance,General Maintenance,Premises
09/07/2020,Airtech Humidity Controls Ltd,776450,300,General Maintenance,General Maintenance,Premises
09/07/2020,Dickens Showrooms Ltd,776355,230.83,Grants Issued,Self-Employed Support,Supplies & Services
09/07/2020,REDACTED PERSONAL DATA,776352,1536.73,Miscellaneous Recharge Income,Accountancy Services,Income
09/07/2020,Davies Roofing Ltd,776425,681,Re-Roofing Flats,Programmed Re-Roofing,Supplies & Services
09/07/2020,Davies Roofing Ltd,776426,759,Re-Roofing Flats,Programmed Re-Roofing,Supplies & Services
09/07/2020,Davies Roofing Ltd,776441,1122,Re-Roofing Flats,Programmed Re-Roofing,Supplies & Services
09/07/2020,Capron Gould Lettings,776438,476.66,Spend To Save,Bed And Breakfast,Supplies & Services
09/07/2020,Capron Gould Lettings,776437,476.66,Spend To Save,Housing Access,Supplies & Services
09/07/2020,H & S Transport Ltd,776212,277,Sub-Contractors,Childrens Play Areas,Premises
09/07/2020,James Andrews Recruitment Solutions Ltd,775210,659.91,Temp.Contract-Agency Staff,Customer Service Centre,Pay
09/07/2020,Edenbrown Synergy,775830,907.5,Temp.Contract-Agency Staff,Revenues Recovery,Pay
09/07/2020,Morgan Hunt Uk Ltd,775228,1040.87,Temp.Contract-Agency Staff,Revenues Recovery,Pay
09/07/2020,Morgan Hunt Uk Ltd,775229,1032.3,Temp.Contract-Agency Staff,Revenues Recovery,Pay
09/07/2020,Morgan Hunt Uk Ltd,775637,946.46,Temp.Contract-Agency Staff,Revenues Recovery,Pay
09/07/2020,Morgan Hunt Uk Ltd,775823,990.45,Temp.Contract-Agency Staff,Revenues Recovery,Pay
09/07/2020,Morgan Hunt Uk Ltd,775825,1189.33,Temp.Contract-Agency Staff,Revenues Recovery,Pay
09/07/2020,The Oyster Partnership Ltd,775379,1073,Temp.Contract-Agency Staff,Revenues Recovery,Pay
10/07/2020,Signs Express (Exeter),771406,312.8,Betterment,Canal,Transport
10/07/2020,Exeter Nissan,771320,225.28,Betterment,Electricians,Transport
10/07/2020,Signs Express (Exeter),771441,296,Betterment,Parks And Playing Fields,Transport
10/07/2020,Signs Express (Exeter),771409,296,Betterment,Parks Operational Overheads,Transport
10/07/2020,Ms Marine Services,775510,225,Boat Maintenance,River Exe,Transport
10/07/2020,Cobwebs,776534,300,Cleaning,Customer Relations,Premises
10/07/2020,Cobwebs,776535,240,Cleaning,Customer Relations,Premises
10/07/2020,Streamline Corporate Ltd,776451,612.4,"Clothing, Laundry, & Uniforms",Cleansing Overheads,Supplies & Services
10/07/2020,C & P Contracting Solutions Ltd,776302,2250,Consultants Fees,General Management,Supplies & Services
10/07/2020,Inexeter Ltd,776536,66024.63,Contract Payments,Exeter Bid Company - From 2020,Supplies & Services
10/07/2020,Devon Wildlife Enterprises Ltd,776481,391.2,Contract Payments,Vaughan Road,Supplies & Services
10/07/2020,Devon Wildlife Enterprises Ltd,776481,208.8,Contract Payments,Vaughan Road Ecl Ltd,Supplies & Services
10/07/2020,Southern Electric,774523,295.07,Electricity,Miscellaneous Properties,Premises
10/07/2020,Integrated Water Services,776539,493.2,General Maintenance,General Maintenance,Premises
10/07/2020,Cobwebs,776544,295,General Maintenance,Repairs To Void Properties,Premises
10/07/2020,Cobwebs,776547,595,General Maintenance,Repairs To Void Properties,Premises
10/07/2020,Dickens Showrooms Ltd,776541,319.16,Grants Issued,Self-Employed Support,Supplies & Services
10/07/2020,Hanover Lifts Ltd,776549,768,Lift Maintenance,Service Contracts,Premises
10/07/2020,REDACTED PERSONAL DATA,775350,223.17,Motor Fuel,River Exe,Transport
10/07/2020,Honeyscribe,776424,2500,Museum - Temp Exhibitions,Museum Npo,Supplies & Services
10/07/2020,Bournemouth Churches Housing Assn (Bcha),776495,41376.25,Other Expenses,Rough Sleeping Initiative,Supplies & Services
10/07/2020,Reach Publishing Services,776431,209.79,Public Notices,Planning,Supplies & Services
10/07/2020,Masons Kings,773188,325.47,Reactive Repairs,Parks And Playing Fields,Transport
10/07/2020,Renault Trucks Commercial Ltd,771547,319.38,Routine Maintenance,Parks Operational Overheads,Transport
10/07/2020,Cornerstone Housing Ltd,776471,347.26,Spend To Save,Housing Advice,Supplies & Services
10/07/2020,REDACTED PERSONAL DATA,775350,150,Sub-Contractors,River Exe,Premises
10/07/2020,Morgan Hunt Uk Ltd,776486,946.46,Temp.Contract-Agency Staff,Revenues Recovery,Pay
10/07/2020,Young Devon,776484,24500,Young Persons Prevention Serv,Resettlement Strategy,Supplies & Services
10/07/2020,Young Devon,776485,1085.66,Young Persons Prevention Serv,Resettlement Strategy,Supplies & Services
10/07/2020,Young Devon,776537,2742.72,Young Persons Prevention Serv,Resettlement Strategy,Supplies & Services
13/07/2020,Philip Steele Building Equipment Ltd,773301,300,Aim Lease Requirements,Miscellaneous Properties,Premises
13/07/2020,A1 Electrics,775339,6520,Aim Reactive Repairs,Property Maintenance,Premises
13/07/2020,Teignbridge District Council,776679,1111.8,Aluminium & Steel Buy In,Mrf Commercial Work,Supplies & Services
13/07/2020,First Class Builders Ltd,776479,7853,Bathroom Adaptations,Bathroom Replacements,Supplies & Services
13/07/2020,W Trout & Son,775982,1885.83,Boat Maintenance,River Exe,Transport
13/07/2020,Teignbridge District Council,776679,1320,Buy In - Plastics,Mrf Commercial Work,Supplies & Services
13/07/2020,Recruitment Solutions (Sw) Ltd,776671,943.5,Casuals Waged-Agency Staff,Materials Reclamation Facility,Pay
13/07/2020,The Best Connection Group Ltd,776659,1249.05,Casuals Waged-Agency Staff,Materials Reclamation Facility,Pay
13/07/2020,The Best Connection Group Ltd,776660,1095.73,Casuals Waged-Agency Staff,Public Realm Agency Costs,Pay
13/07/2020,Wise Employment,776662,1051.44,Casuals Waged-Agency Staff,Public Realm Agency Costs,Pay
13/07/2020,Secureforce Uk Ltd,776364,1260,Central Alarm Service,Ramm,Premises
13/07/2020,Secureforce Uk Ltd,776553,579.81,Central Alarm Service,Ramm,Premises
13/07/2020,Protective Wear Supplies Ltd,776725,621.88,"Clothing, Laundry, & Uniforms",Other Street Sweeping,Supplies & Services
13/07/2020,Protective Wear Supplies Ltd,776726,117.8,"Clothing, Laundry, & Uniforms",Other Street Sweeping,Supplies & Services
13/07/2020,Protective Wear Supplies Ltd,776726,131.3,"Clothing, Laundry, & Uniforms",Parks And Playing Fields,Supplies & Services
13/07/2020,Nicholas Rowell Haulage Ltd,771784,5400,Comingled Haulage Out,Materials & Goods For Resale,Transport
13/07/2020,Aw Jenkinson Transport Ltd,776656,350,Comingled Haulage Out,Materials Reclamation Facility,Transport
13/07/2020,Aw Jenkinson Transport Ltd,776657,350,Comingled Haulage Out,Materials Reclamation Facility,Transport
13/07/2020,REDACTED PERSONAL DATA,774698,950,Consultants Fees,Museum Npo,Supplies & Services
13/07/2020,Kier Construction Ltd,776721,209020.48,Contract Payments,Leisure Complex - Build,Supplies & Services
13/07/2020,Rm Builders + Contractors Ltd,776468,6578.84,Contract Payments,Ramm Passenger Lift,Supplies & Services
13/07/2020,Exeter Arts Trading Services Ltd,776457,510.01,Electricity,Ramm,Premises
13/07/2020,Southern Electric,774441,329.89,Electricity,S Electric A/C 26350 65111,Premises
13/07/2020,Southern Electric,774443,1590.79,Electricity,S Electric A/C 70827 98117,Premises
13/07/2020,E.On   (Electricity),774200,293.62,Electricity,"The Ark Museum Store, Exton Rd",Premises
13/07/2020,Westcountry Fire Protection Ltd,775195,1830.95,Emergency Light Testing,Service Contracts,Premises
13/07/2020,Portalplanquest Ltd,776694,462,Fees,Planning,Income
13/07/2020,Portalplanquest Ltd,776696,462,Fees,Planning,Income
13/07/2020,Portalplanquest Ltd,776697,462,Fees,Planning,Income
13/07/2020,Exeter Arts Trading Services Ltd,776457,202.7,Gas,Ramm,Premises
13/07/2020,Amanda Cunliffe Solicitors,776703,2228.6,General Maintenance,General Maintenance,Premises
13/07/2020,Aldi Stores Ltd,776704,500,Grants Issued,Self-Employed Support,Supplies & Services
13/07/2020,Tam Marketing Ltd,776542,340.4,Materials,Public Conveniences,Supplies & Services
13/07/2020,REDACTED PERSONAL DATA,776554,1500,Museum - Temp Exhibitions,Museum Npo,Supplies & Services
13/07/2020,Teignbridge District Council,776680,1420.56,Paper Buy In,Mrf Commercial Work,Supplies & Services
13/07/2020,Harmony Fire Ltd,775816,466.79,Pmf Compliance,Property Maintenance,Premises
13/07/2020,Harmony Fire Ltd,775818,466.79,Pmf Compliance,Property Maintenance,Premises
13/07/2020,Harmony Fire Ltd,775819,466.79,Pmf Compliance,Property Maintenance,Premises
13/07/2020,I J Cannings & Son Limited,773311,429,Pmf Compliance,Property Maintenance,Premises
13/07/2020,Hedgerow Print,774606,419,Publications/Leaflets,Museum Npo,Supplies & Services
13/07/2020,Masons Kings,776447,555.47,Reactive Repairs,Parks And Playing Fields,Transport
13/07/2020,Home Group Ltd,775765,1070.65,Rents,Capital payment,Premises
13/07/2020,REDACTED PERSONAL DATA,775981,645.54,Repairs To Hand Back Prop,Extralet,Premises
13/07/2020,Masons Kings,776447,311.85,Routine Maintenance,Parks And Playing Fields,Transport
13/07/2020,I J Cannings & Son Limited,773311,85.8,Service Charges,Bradninch Place,Premises
13/07/2020,Complete Water Solutions (Ltd),775835,228,Sub-Contractors,Parks And Playing Fields,Premises
13/07/2020,Hot Stuff Metal Works,776174,4805,Sub-Contractors,Parks Infrastructure,Premises
13/07/2020,Building Recruitment Co Ltd,776669,18.17,Temp.Contract-Agency Staff,Cob Management,Pay
13/07/2020,Building Recruitment Co Ltd,776669,27.25,Temp.Contract-Agency Staff,Gf Hsg Property Management,Pay
13/07/2020,Venn Group Ltd,776700,1027,Temp.Contract-Agency Staff,Health & Safety Compliance,Pay
13/07/2020,Building Recruitment Co Ltd,776666,465.83,Temp.Contract-Agency Staff,Planned Works,Pay
13/07/2020,James Andrews Recruitment Solutions Ltd,776651,1243.75,Temp.Contract-Agency Staff,Planned Works,Pay
13/07/2020,James Andrews Recruitment Solutions Ltd,776653,183.3,Temp.Contract-Agency Staff,Planned Works,Pay
13/07/2020,Venn Group Ltd,776699,249.13,Temp.Contract-Agency Staff,Planned Works,Pay
13/07/2020,Building Recruitment Co Ltd,776665,1036.2,Temp.Contract-Agency Staff,Reactive Repairs,Pay
13/07/2020,Building Recruitment Co Ltd,776666,465.83,Temp.Contract-Agency Staff,Reactive Repairs,Pay
13/07/2020,Building Recruitment Co Ltd,776669,863.02,Temp.Contract-Agency Staff,Reactive Repairs,Pay
13/07/2020,James Andrews Recruitment Solutions Ltd,776653,274.96,Temp.Contract-Agency Staff,Reactive Repairs,Pay
13/07/2020,Venn Group Ltd,776698,1120.77,Temp.Contract-Agency Staff,Reactive Repairs,Pay
13/07/2020,Venn Group Ltd,776699,373.69,Temp.Contract-Agency Staff,Reactive Repairs,Pay
13/07/2020,The Oyster Partnership Ltd,776674,937.5,Temp.Contract-Agency Staff,Rough Sleeping Initiative,Pay
13/07/2020,Rose Removals & Storage,776474,400.32,Tenants Removal And Legal Exp,Lettings & Leasehold,Supplies & Services
13/07/2020,Rose Removals & Storage,776673,505.96,Tenants Removal And Legal Exp,Lettings & Leasehold,Supplies & Services
13/07/2020,South West Water Business,769520,1999.97,Water,Car Parks,Premises
13/07/2020,South West Water Business,770161,275.9,Water,Civic Centre,Premises
13/07/2020,Exeter Arts Trading Services Ltd,776457,127.84,Water,Ramm,Premises
14/07/2020,REDACTED PERSONAL DATA,776736,1620,Bed And Breakfast,Bed And Breakfast,Premises
14/07/2020,Craemer Uk Ltd,776487,5085,Bins & Recycling Boxes,Refuse Collection,Supplies & Services
14/07/2020,Mgb Plastics Ltd,776763,6457.5,Bins & Recycling Boxes,Refuse Collection,Supplies & Services
14/07/2020,Concept Staffing Ltd,776655,851.82,Casuals Waged-Agency Staff,Waste Agency Costs,Pay
14/07/2020,Concept Staffing Ltd,776685,394.51,Casuals Waged-Agency Staff,Waste Agency Costs,Pay
14/07/2020,Gap Personnel,776683,482.85,Casuals Waged-Agency Staff,Waste Agency Costs,Pay
14/07/2020,Recruitment Solutions (Sw) Ltd,776670,1026.38,Casuals Waged-Agency Staff,Waste Agency Costs,Pay
14/07/2020,Recruitment Solutions (Sw) Ltd,776688,647.03,Casuals Waged-Agency Staff,Waste Agency Costs,Pay
14/07/2020,Wise Employment,776664,498.76,Casuals Waged-Agency Staff,Waste Agency Costs,Pay
14/07/2020,Streamline Corporate Ltd,776732,679.7,"Clothing, Laundry, & Uniforms",Refuse Collection,Supplies & Services
14/07/2020,Bemrose Booth Paragon Ltd,776708,1281.9,Equipment Tools And Materials,Car Parks,Supplies & Services
14/07/2020,Exeter Community Initiatives,776860,1000,Grants Issued,Covid 19 Community Initiatives,Supplies & Services
14/07/2020,J Price Consulting Ltd,772240,2420,Other Expenses,Liveable Garden City,Supplies & Services
14/07/2020,Wemco Ltd,772027,313.13,Planned Maintenance,Ramm,Premises
14/07/2020,Wemco Ltd,775271,627.74,Planned Maintenance,Ramm,Premises
14/07/2020,Coastal C & I Ltd,772049,6543,Processing Comingled Materials,Materials & Goods For Resale,Supplies & Services
14/07/2020,Coastal C & I Ltd,775659,3705,Processing Comingled Materials,Materials & Goods For Resale,Supplies & Services
14/07/2020,Capron Gould Lettings,776908,476.66,Spend To Save,Housing Advice,Supplies & Services
14/07/2020,The Oyster Partnership Ltd,776675,1322.25,Temp.Contract-Agency Staff,Planning,Pay
14/07/2020,Venn Group Ltd,776701,814.05,Temp.Contract-Agency Staff,Planning,Pay
14/07/2020,Venn Group Ltd,776702,814.05,Temp.Contract-Agency Staff,Planning,Pay
15/07/2020,Nute Plumbing Services Ltd,776877,4778,Bathroom Adaptations,Bathroom Replacements,Supplies & Services
15/07/2020,Mears Ltd,776954,578.72,Blocks Of Flat Repairs,General Maintenance,Premises
15/07/2020,Mears Ltd,775458,71.44,Contract Payments,Adaptations,Supplies & Services
15/07/2020,Skinner Construction Ltd,776768,118569.24,Contract Payments,Bovemoors Lane,Supplies & Services
15/07/2020,Mears Ltd,775458,1696.58,Contract Payments,Damp Ingress Repairs,Supplies & Services
15/07/2020,Clc Contractors Ltd,776875,7990.04,Contract Payments,Door Replacements,Supplies & Services
15/07/2020,Mears Ltd,775458,1048.27,Contract Payments,Door Replacements,Supplies & Services
15/07/2020,Clc Contractors Ltd,776875,49118.71,Contract Payments,Window Replacements,Supplies & Services
15/07/2020,Mears Ltd,775458,1102.86,General Maintenance,Elec Testing/Reactive,Premises
15/07/2020,Mears Ltd,776954,36.65,General Maintenance,Elec Testing/Reactive,Premises
15/07/2020,Mears Ltd,775458,5624.57,General Maintenance,General Maintenance,Premises
15/07/2020,Mears Ltd,775459,2251.77,General Maintenance,General Maintenance,Premises
15/07/2020,Mears Ltd,776954,1015.72,General Maintenance,General Maintenance,Premises
15/07/2020,Clc Contractors Ltd,776875,37530.67,General Maintenance,Low Maint & Painting Flats,Premises
15/07/2020,Mears Ltd,775460,7009.7,General Maintenance,Repairs To Void Properties,Premises
15/07/2020,Mears Ltd,776952,27186.56,General Maintenance,Repairs To Void Properties,Premises
15/07/2020,D G Electrical Services,776190,625,Maintenance Of Equipment,Livestock/Matford Centre,Supplies & Services
15/07/2020,Bcha,776958,293.44,Other Expenses,Rapid Rehousing Pathway Fund,Supplies & Services
15/07/2020,Nute Plumbing Services Ltd,776877,2000,Payment To Strata,Bathroom Replacements,Supplies & Services
15/07/2020,British Telecom Plc,775768,429.1,Phone Calls For Fixed Phones,Safesleep,Supplies & Services
15/07/2020,Mears Ltd,776955,49.07,Reactive Repairs To Property,Psl Properties,Premises
15/07/2020,Mears Ltd,776955,1712.74,Repairs To Hand Back Prop,Psl Properties,Premises
15/07/2020,Glasdon Uk Ltd,775233,3779.46,Special Works,Footpaths Maint - Assets,Premises
15/07/2020,Glasdon Uk Ltd,775233,801.6,Special Works,Signs & Sundries - Assets,Premises
15/07/2020,Estuary Lettings,776905,800,Spend To Save,Housing Access,Supplies & Services
15/07/2020,REDACTED PERSONAL DATA,776907,517.5,Spend To Save,Housing Advice,Supplies & Services
15/07/2020,Spence Crane Hire Ltd,773086,250,Sub-Contractors,Canal,Premises
15/07/2020,Glasdon Uk Ltd,775233,559.92,Sub-Contractors,Footpaths Maint - Assets,Premises
15/07/2020,Glasdon Uk Ltd,775233,209.97,Sub-Contractors,Signs & Sundries - Assets,Premises
15/07/2020,James Andrews Recruitment Solutions Ltd,776652,945,Temp.Contract-Agency Staff,Human Resources,Pay
15/07/2020,Hays Accountancy Personnel,770780,917.12,Temp.Contract-Agency Staff,Planned Works,Pay
15/07/2020,Building Recruitment Co Ltd,775842,654.68,Temp.Contract-Agency Staff,Reactive Repairs,Pay
15/07/2020,Building Recruitment Co Ltd,776668,535.07,Temp.Contract-Agency Staff,Reactive Repairs,Pay
16/07/2020,Cobwebs,776712,445,Blocks Of Flat Repairs,General Maintenance,Premises
16/07/2020,W Trout & Son,776480,253.61,Boat Maintenance,River Exe,Transport
16/07/2020,Berry Recruitment,777082,271.65,Casuals Waged-Agency Staff,Public Realm Agency Costs,Pay
16/07/2020,Concept Staffing Ltd,776967,584.64,Casuals Waged-Agency Staff,Public Realm Agency Costs,Pay
16/07/2020,Concept Staffing Ltd,776968,381.78,Casuals Waged-Agency Staff,Public Realm Agency Costs,Pay
16/07/2020,Matching Staff Solutions,777076,456.95,Casuals Waged-Agency Staff,Public Realm Agency Costs,Pay
16/07/2020,W B Employment Ltd,777074,647.3,Casuals Waged-Agency Staff,Public Realm Agency Costs,Pay
16/07/2020,Glen Cleaning,777020,249.75,Cleaning,Custom House Visitor Centre,Premises
16/07/2020,Glen Cleaning,777023,249.75,Cleaning,Custom House Visitor Centre,Premises
16/07/2020,Kier Construction Ltd,777078,330892.22,Contract Payments,Bus Station Construction,Supplies & Services
16/07/2020,Kier Construction Ltd,776963,60124.75,Contract Payments,Riverside,Supplies & Services
16/07/2020,E.On   (Electricity),774210,471.39,Electricity,Car Parks,Premises
16/07/2020,Specialist Fleet Services Ltd,777120,415.84,Fleet Supply & Maintenance,Fleet Contract Hire,Transport
16/07/2020,Specialist Fleet Services Ltd,777166,500.17,Fleet Supply & Maintenance,Fleet Contract Hire,Transport
16/07/2020,A1 Electrics,776976,540,General Maintenance,Elec Testing/Reactive,Premises
16/07/2020,A1 Electrics,776979,398,General Maintenance,General Maintenance,Premises
16/07/2020,Hanover Lifts Ltd,776458,230.78,General Maintenance,General Maintenance,Premises
16/07/2020,Envirovent Ltd,775477,646.7,General Maintenance,General Maintenance,Premises
16/07/2020,I-Civils Ltd,776970,5642,General Maintenance,General Maintenance,Premises
16/07/2020,Cobwebs,776714,295,General Maintenance,Repairs To Void Properties,Premises
16/07/2020,Dolphin Lifts South West,777135,2600,Grants Issued,Disabled Facilities Grants,Supplies & Services
16/07/2020,Integrated Water Services,776862,866.81,Legionella Testing,Service Contracts,Premises
16/07/2020,Integrated Water Services,776863,852.6,Legionella Testing,Service Contracts,Premises
16/07/2020,Zep Uk,775206,651,Materials,Public Conveniences,Supplies & Services
16/07/2020,Purchase Power,777092,2028.4,Postage/Stamps,Mail,Supplies & Services
16/07/2020,Savills (Uk) Ltd,777022,350.89,Service Charges,Underground Passages,Premises
16/07/2020,REDACTED PERSONAL DATA,776472,940,Solicitors And Legal Fees/Lics,Human Resources,Supplies & Services
16/07/2020,Bridge Civil Engineering,776856,14624.35,Sub-Contractors,Car Park Resurfacing,Premises
16/07/2020,H & S Transport Ltd,776211,780,Sub-Contractors,Land Drainage Water C - Assets,Premises
16/07/2020,Andrews Sykes Hire Ltd,775622,799.24,Sub-Contractors,River Exe,Premises
16/07/2020,Hays Accountancy Personnel,777097,519.42,Temp.Contract-Agency Staff,Accountancy Services,Pay
16/07/2020,Morgan Law,777019,720,Temp.Contract-Agency Staff,Accountancy Services,Pay
16/07/2020,C & P Contracting Solutions Ltd,777084,2250,Temp.Contract-Agency Staff,General Management,Pay
16/07/2020,Hays Accountancy Personnel,777095,151.8,Temp.Contract-Agency Staff,Planned Works,Pay
16/07/2020,Hays Accountancy Personnel,777099,1060.42,Temp.Contract-Agency Staff,Planned Works,Pay
16/07/2020,Hays Accountancy Personnel,777094,947.6,Temp.Contract-Agency Staff,Reactive Repairs,Pay
16/07/2020,Hays Accountancy Personnel,777095,227.7,Temp.Contract-Agency Staff,Reactive Repairs,Pay
16/07/2020,Edenbrown Synergy,776686,1056.6,Temp.Contract-Agency Staff,Revenues Recovery,Pay
16/07/2020,Morgan Hunt Uk Ltd,776677,1179.14,Temp.Contract-Agency Staff,Revenues Recovery,Pay
16/07/2020,Morgan Hunt Uk Ltd,776678,1032.3,Temp.Contract-Agency Staff,Revenues Recovery,Pay
16/07/2020,The Oyster Partnership Ltd,776676,1073,Temp.Contract-Agency Staff,Revenues Recovery,Pay
16/07/2020,The Oyster Partnership Ltd,777075,862.75,Temp.Contract-Agency Staff,Revenues Recovery,Pay
17/07/2020,I J Cannings & Son Limited,776229,42.53,Aim Lease Requirements,Commercial Properties,Premises
17/07/2020,I J Cannings & Son Limited,776229,140.04,Aim Lease Requirements,Miscellaneous Properties,Premises
17/07/2020,I J Cannings & Son Limited,776230,131.4,Aim Lease Requirements,Miscellaneous Properties,Premises
17/07/2020,I J Cannings & Son Limited,776230,186.77,Aim Reactive Repairs,Property Maintenance,Premises
17/07/2020,Mears Ltd,777181,21.68,Blocks Of Flat Repairs,General Maintenance,Premises
17/07/2020,The Best Connection Group Ltd,777192,1174.82,Casuals Waged-Agency Staff,Materials Reclamation Facility,Pay
17/07/2020,The Best Connection Group Ltd,777243,1073.14,Casuals Waged-Agency Staff,Public Realm Agency Costs,Pay
17/07/2020,Berry Recruitment,777083,478.78,Casuals Waged-Agency Staff,Waste Agency Costs,Pay
17/07/2020,Concept Staffing Ltd,772725,1058.36,Casuals Waged-Agency Staff,Waste Agency Costs,Pay
17/07/2020,Concept Staffing Ltd,777244,1139.97,Casuals Waged-Agency Staff,Waste Agency Costs,Pay
17/07/2020,Driver Hire Exeter Ltd,777024,650.83,Casuals Waged-Agency Staff,Waste Agency Costs,Pay
17/07/2020,Matching Staff Solutions,777077,587.56,Casuals Waged-Agency Staff,Waste Agency Costs,Pay
17/07/2020,Baltimore Consulting Ltd,777245,3000,Consultants Fees,Planning,Supplies & Services
17/07/2020,Scooter Store Ltd,777180,379,Contract Payments,Adaptations,Supplies & Services
17/07/2020,Bloom Procurement Services,777185,10000,Contract Payments,Ssp Pool - Operators Tender,Supplies & Services
17/07/2020,Specialist Fleet Services Ltd,774146,641.23,Fleet Supply & Maintenance,Fleet Contract Hire,Transport
17/07/2020,Specialist Fleet Services Ltd,774288,506.67,Fleet Supply & Maintenance,Fleet Contract Hire,Transport
17/07/2020,Specialist Fleet Services Ltd,774292,506.67,Fleet Supply & Maintenance,Fleet Contract Hire,Transport
17/07/2020,Specialist Fleet Services Ltd,775661,598.77,Fleet Supply & Maintenance,Fleet Contract Hire,Transport
17/07/2020,Specialist Fleet Services Ltd,775662,598.77,Fleet Supply & Maintenance,Fleet Contract Hire,Transport
17/07/2020,Specialist Fleet Services Ltd,775663,895.33,Fleet Supply & Maintenance,Fleet Contract Hire,Transport
17/07/2020,Specialist Fleet Services Ltd,775664,895.33,Fleet Supply & Maintenance,Fleet Contract Hire,Transport
17/07/2020,Specialist Fleet Services Ltd,775665,598.77,Fleet Supply & Maintenance,Fleet Contract Hire,Transport
17/07/2020,Specialist Fleet Services Ltd,775666,1437.7,Fleet Supply & Maintenance,Fleet Contract Hire,Transport
17/07/2020,Specialist Fleet Services Ltd,775667,641.74,Fleet Supply & Maintenance,Fleet Contract Hire,Transport
17/07/2020,Specialist Fleet Services Ltd,775670,4124.88,Fleet Supply & Maintenance,Fleet Contract Hire,Transport
17/07/2020,Specialist Fleet Services Ltd,775671,4124.88,Fleet Supply & Maintenance,Fleet Contract Hire,Transport
17/07/2020,Specialist Fleet Services Ltd,775672,4124.88,Fleet Supply & Maintenance,Fleet Contract Hire,Transport
17/07/2020,Specialist Fleet Services Ltd,775673,4124.88,Fleet Supply & Maintenance,Fleet Contract Hire,Transport
17/07/2020,Specialist Fleet Services Ltd,775676,895.33,Fleet Supply & Maintenance,Fleet Contract Hire,Transport
17/07/2020,Specialist Fleet Services Ltd,775677,4124.88,Fleet Supply & Maintenance,Fleet Contract Hire,Transport
17/07/2020,Specialist Fleet Services Ltd,775678,3861.65,Fleet Supply & Maintenance,Fleet Contract Hire,Transport
17/07/2020,Specialist Fleet Services Ltd,775679,3861.65,Fleet Supply & Maintenance,Fleet Contract Hire,Transport
17/07/2020,Specialist Fleet Services Ltd,775681,1147.53,Fleet Supply & Maintenance,Fleet Contract Hire,Transport
17/07/2020,Specialist Fleet Services Ltd,775682,1147.53,Fleet Supply & Maintenance,Fleet Contract Hire,Transport
17/07/2020,Specialist Fleet Services Ltd,775685,1169.81,Fleet Supply & Maintenance,Fleet Contract Hire,Transport
17/07/2020,Liberty Gas Group Ltd,777132,24865.62,Gas & Central Heating,Service Contracts,Premises
17/07/2020,Liberty Gas Group Ltd,777133,3785.97,Gas & Central Heating,Service Contracts,Premises
17/07/2020,Liberty Gas Group Ltd,777137,25113.42,Gas & Central Heating,Service Contracts,Premises
17/07/2020,Liberty Gas Group Ltd,777138,1195.96,Gas & Central Heating,Service Contracts,Premises
17/07/2020,Mears Ltd,777181,556.82,General Maintenance,Elec Testing/Reactive,Premises
17/07/2020,Complete Water Solutions (Ltd),777085,10715.2,General Maintenance,General Maintenance,Premises
17/07/2020,Guardian Security Company,776329,364.9,General Maintenance,General Maintenance,Premises
17/07/2020,REDACTED PERSONAL DATA,777170,670,General Maintenance,General Maintenance,Premises
17/07/2020,Mears Ltd,777181,1933.2,General Maintenance,General Maintenance,Premises
17/07/2020,Mears Ltd,777182,6130.73,General Maintenance,Repairs To Void Properties,Premises
17/07/2020,Goldsworthy Heating,777276,3194.92,Grants Issued,Disabled Facilities Grants,Supplies & Services
17/07/2020,M W Gozna Services Ltd,777275,1479.67,Grants Issued,Disabled Facilities Grants,Supplies & Services
17/07/2020,Bitpod Ltd,777189,862.5,Other Expenses,High Streets Fund,Supplies & Services
17/07/2020,I J Cannings & Son Limited,776229,1556,Pmf Compliance,Property Maintenance,Premises
17/07/2020,Coastal C & I Ltd,775660,5860.5,Processing Comingled Materials,Materials & Goods For Resale,Supplies & Services
17/07/2020,Mears Ltd,777181,363.93,Reactive Repairs To Property,Safesleep,Premises
17/07/2020,Liberty Gas Group Ltd,777128,215.55,Service & Maint Agreements,Extralet,Premises
17/07/2020,Liberty Gas Group Ltd,777129,215.55,Service & Maint Agreements,Psl Properties,Premises
17/07/2020,I J Cannings & Son Limited,776229,62.24,Service Charges,Bradninch Place,Premises
17/07/2020,Stonewater Ltd,777280,5905,Serviced Accommodation,Serviced Accommodation,Premises
17/07/2020,Ministry Of Play,776895,7658.8,Sub-Contractors,Childrens Play Areas,Premises
17/07/2020,I J Cannings & Son Limited,776229,15.56,Sub-Contractors,Ecqt Suspense,Premises
17/07/2020,Glen Cleaning,777262,309.48,Supplies And Equipment,Cleansing Overheads,Supplies & Services
17/07/2020,Building Recruitment Co Ltd,777249,18.92,Temp.Contract-Agency Staff,Cob Management,Pay
17/07/2020,James Andrews Recruitment Solutions Ltd,777252,263.97,Temp.Contract-Agency Staff,Customer Service Centre,Pay
17/07/2020,Building Recruitment Co Ltd,777249,28.36,Temp.Contract-Agency Staff,Gf Hsg Property Management,Pay
17/07/2020,James Andrews Recruitment Solutions Ltd,777253,1258.74,Temp.Contract-Agency Staff,Planned Works,Pay
17/07/2020,James Andrews Recruitment Solutions Ltd,777263,293.68,Temp.Contract-Agency Staff,Planned Works,Pay
17/07/2020,Building Recruitment Co Ltd,777249,898.33,Temp.Contract-Agency Staff,Reactive Repairs,Pay
17/07/2020,Building Recruitment Co Ltd,777250,943.5,Temp.Contract-Agency Staff,Reactive Repairs,Pay
17/07/2020,Building Recruitment Co Ltd,777251,707.47,Temp.Contract-Agency Staff,Reactive Repairs,Pay
17/07/2020,James Andrews Recruitment Solutions Ltd,777263,440.52,Temp.Contract-Agency Staff,Reactive Repairs,Pay
17/07/2020,Morgan Hunt Uk Ltd,777119,1419.69,Temp.Contract-Agency Staff,Revenues Recovery,Pay
17/07/2020,Morgan Hunt Uk Ltd,777265,1032.02,Temp.Contract-Agency Staff,Revenues Recovery,Pay
17/07/2020,Morgan Hunt Uk Ltd,777266,1178.82,Temp.Contract-Agency Staff,Revenues Recovery,Pay
17/07/2020,Coastal Recycling Services Uk Ltd,776959,266,Trade Refuse,River Exe,Premises
20/07/2020,Devon Norse Ltd,777139,521.01,Cleaning,Cctv Control Room,Premises
20/07/2020,Everett Fine Art Ltd,776950,520,Consultants Fees,Museum Projects,Supplies & Services
20/07/2020,Liberty Gas Group Ltd,777136,78783.72,Contract Payments,Boiler Replacement Programme,Supplies & Services
20/07/2020,Specialist Fleet Services Ltd,774218,1194,Fleet Supply & Maintenance,Fleet Contract Hire,Transport
20/07/2020,Specialist Fleet Services Ltd,774219,2318,Fleet Supply & Maintenance,Fleet Contract Hire,Transport
20/07/2020,Specialist Fleet Services Ltd,774220,2318,Fleet Supply & Maintenance,Fleet Contract Hire,Transport
20/07/2020,Specialist Fleet Services Ltd,777157,368,Fleet Supply & Maintenance,Fleet Contract Hire,Transport
20/07/2020,Specialist Fleet Services Ltd,777162,368,Fleet Supply & Maintenance,Fleet Contract Hire,Transport
20/07/2020,Specialist Fleet Services Ltd,777167,368,Fleet Supply & Maintenance,Fleet Contract Hire,Transport
20/07/2020,Mears Ltd,777430,42.15,General Maintenance,Elec Testing/Reactive,Premises
20/07/2020,Mears Ltd,777430,2261.55,General Maintenance,General Maintenance,Premises
20/07/2020,Mears Ltd,777431,9522.41,General Maintenance,Repairs To Void Properties,Premises
20/07/2020,Dolphin Lifts South West,777478,3238,Grants Issued,Disabled Facilities Grants,Supplies & Services
20/07/2020,Dolphin Lifts South West,777479,4475,Grants Issued,Disabled Facilities Grants,Supplies & Services
20/07/2020,Therm-Eco Ewi Ltd,777464,1950,Grants Issued,Warm Up Exeter,Supplies & Services
20/07/2020,Therm-Eco Ewi Ltd,777465,2000,Grants Issued,Warm Up Exeter,Supplies & Services
20/07/2020,Therm-Eco Ewi Ltd,777466,1050,Grants Issued,Warm Up Exeter,Supplies & Services
20/07/2020,Therm-Eco Ewi Ltd,777467,2000,Grants Issued,Warm Up Exeter,Supplies & Services
20/07/2020,Therm-Eco Ewi Ltd,777468,2000,Grants Issued,Warm Up Exeter,Supplies & Services
20/07/2020,Zurich Municipal,776649,377.33,Insurance Excess,Parks And Playing Fields,Pay
20/07/2020,Zurich Municipal,776649,1759,Insurance Excess,Reactive Repairs,Pay
20/07/2020,G B Sport & Leisure,777333,1509.4,Materials,Childrens Play Areas,Supplies & Services
20/07/2020,Redlynch Leisure Installations Ltd,776179,668,Materials,Childrens Play Areas,Supplies & Services
20/07/2020,Signs Express (Exeter),776971,897.8,Materials,Childrens Play Areas,Supplies & Services
20/07/2020,South West Hire + Sales Ltd,776172,575.2,Materials,Childrens Play Areas,Supplies & Services
20/07/2020,William Hackett Chains Ltd,775632,1540.74,Materials For Buoys,River Exe,Premises
20/07/2020,Jtt Contracting Ltd,776052,13485.11,Other Expenses,High Streets Fund,Supplies & Services
20/07/2020,Jtt Contracting Ltd,777278,675,Other Expenses,High Streets Fund,Supplies & Services
20/07/2020,Agt Electrical (Exeter) Ltd,777124,284.2,Rechargeable Repairs,Commercial Properties,Premises
20/07/2020,REDACTED PERSONAL DATA,777469,410,Spend To Save,Housing Access,Supplies & Services
20/07/2020,H & S Transport Ltd,776214,3717,Sub-Contractors,Rechargeable Works,Premises
20/07/2020,Morgan Law,770011,969.6,Temp.Contract-Agency Staff,Accountancy Services,Pay
20/07/2020,Venn Group Ltd,776982,814.05,Temp.Contract-Agency Staff,Planning,Pay
21/07/2020,Mears Ltd,777646,267.46,Blocks Of Flat Repairs,General Maintenance,Premises
21/07/2020,REDACTED PERSONAL DATA,777529,425.53,Building Control Fees,Building Control Fee Earning,Income
21/07/2020,Kier Construction Ltd,777493,226373.97,Contract Payments,St Loyes Extracare Scheme,Supplies & Services
21/07/2020,Guardian Security Company,776452,622.2,Electrical Works - Communal,Prog'D Elec Re-Wiring General,Supplies & Services
21/07/2020,Experian Ltd,776054,544.67,Experian,Nndr Collection,Supplies & Services
21/07/2020,Specialist Fleet Services Ltd,775680,241,Fleet Supply & Maintenance,Fleet Contract Hire,Transport
21/07/2020,Specialist Fleet Services Ltd,777312,598.77,Fleet Supply & Maintenance,Fleet Contract Hire,Transport
21/07/2020,Mears Ltd,777646,855.08,General Maintenance,Elec Testing/Reactive,Premises
21/07/2020,Airtech Humidity Controls Ltd,777541,597.48,General Maintenance,General Maintenance,Premises
21/07/2020,Mears Ltd,777646,4294.6,General Maintenance,General Maintenance,Premises
21/07/2020,Mears Ltd,777647,15867.17,General Maintenance,Repairs To Void Properties,Premises
21/07/2020,Cobwebs,776711,16606.5,Hra Routine Cleaning Contract,Customer Relations,Premises
21/07/2020,REDACTED PERSONAL DATA,777545,411.74,Reactive Repairs To Property,Glencoe,Premises
21/07/2020,Savills (Uk) Ltd,777021,4210.04,Service Charges,Exeter Visitor Information,Premises
21/07/2020,Housing Partners Ltd,776735,239.7,Software Licences/Support,Customer Relations,Supplies & Services
21/07/2020,Cornerstone Housing Ltd,777643,403.22,Spend To Save,Housing Advice,Supplies & Services
21/07/2020,Edenbrown Synergy,777272,1091.4,Temp.Contract-Agency Staff,Revenues Recovery,Pay
21/07/2020,Market Carpets,776770,861.67,Tenant Decant Costs,Customer Relations,Supplies & Services
21/07/2020,Rose Removals & Storage,776765,483.72,Tenants Removal And Legal Exp,Lettings & Leasehold,Supplies & Services
22/07/2020,Visit South Devon,777710,344.25,Advertising,Visit Exeter,Supplies & Services
22/07/2020,Great Western Hotel,777689,18300,Bed And Breakfast,Covid-19 Rough Sleepers Fund,Premises
22/07/2020,Great Western Hotel,777690,3485.7,Bed And Breakfast,Covid-19 Rough Sleepers Fund,Premises
22/07/2020,Mears Ltd,775456,339.04,Blocks Of Flat Repairs,General Maintenance,Premises
22/07/2020,Mears Ltd,775463,789.21,Blocks Of Flat Repairs,General Maintenance,Premises
22/07/2020,Mears Ltd,775534,355.98,Blocks Of Flat Repairs,General Maintenance,Premises
22/07/2020,Exeter Hose & Hydraulics Ltd,777784,1482.05,Boat Maintenance,River Exe,Transport
22/07/2020,Backline Logistic Support Services Ltd,772443,670.35,Casuals Waged-Agency Staff,Waste Agency Costs,Pay
22/07/2020,Pattersons (Bristol) Ltd,777450,247.68,Cleaning,Ramm,Premises
22/07/2020,REDACTED PERSONAL DATA,777279,400,Consultants Fees,Museum Npo,Supplies & Services
22/07/2020,Hanover Lifts Ltd,777781,700,Contract Payments,Adaptations,Supplies & Services
22/07/2020,Glasdon Uk Ltd,777542,4389.2,Contract Payments,Waste Infrastructure,Supplies & Services
22/07/2020,Asd Lighting Plc,777667,506.91,Electrical Works - Communal,Prog'D Elec Re-Wiring General,Supplies & Services
22/07/2020,Asd Lighting Plc,777669,1294.16,Electrical Works - Communal,Prog'D Elec Re-Wiring General,Supplies & Services
22/07/2020,Npower Business,777824,252.6,Electricity,Customer Relations,Premises
22/07/2020,Guardian Security Company,777471,259.42,Equipment Tools And Materials,Canal,Supplies & Services
22/07/2020,Specialist Fleet Services Ltd,777150,304.34,Fleet Supply & Maintenance,Fleet Contract Hire,Transport
22/07/2020,Specialist Fleet Services Ltd,777151,744.56,Fleet Supply & Maintenance,Fleet Contract Hire,Transport
22/07/2020,Specialist Fleet Services Ltd,777164,721.76,Fleet Supply & Maintenance,Fleet Contract Hire,Transport
22/07/2020,Specialist Fleet Services Ltd,777169,506.67,Fleet Supply & Maintenance,Fleet Contract Hire,Transport
22/07/2020,Specialist Fleet Services Ltd,777171,506.67,Fleet Supply & Maintenance,Fleet Contract Hire,Transport
22/07/2020,Specialist Fleet Services Ltd,777172,506.67,Fleet Supply & Maintenance,Fleet Contract Hire,Transport
22/07/2020,Specialist Fleet Services Ltd,777174,506.67,Fleet Supply & Maintenance,Fleet Contract Hire,Transport
22/07/2020,Mears Ltd,775534,21.69,General Maintenance,Elec Testing/Reactive,Premises
22/07/2020,Mears Ltd,776185,868.49,General Maintenance,Elec Testing/Reactive,Premises
22/07/2020,Mears Ltd,777711,211.24,General Maintenance,Elec Testing/Reactive,Premises
22/07/2020,First Class Builders Ltd,777100,318,General Maintenance,General Maintenance,Premises
22/07/2020,Mears Ltd,775456,1085.42,General Maintenance,General Maintenance,Premises
22/07/2020,Mears Ltd,775534,1382.9,General Maintenance,General Maintenance,Premises
22/07/2020,Mears Ltd,775536,861.94,General Maintenance,General Maintenance,Premises
22/07/2020,Mears Ltd,776185,3537.44,General Maintenance,General Maintenance,Premises
22/07/2020,Mears Ltd,776186,2324.43,General Maintenance,General Maintenance,Premises
22/07/2020,Mears Ltd,777429,1853.58,General Maintenance,General Maintenance,Premises
22/07/2020,Mears Ltd,777711,709.42,General Maintenance,General Maintenance,Premises
22/07/2020,M A Vernon Ltd,777691,575,General Maintenance,Repairs To Void Properties,Premises
22/07/2020,M A Vernon Ltd,777692,675,General Maintenance,Repairs To Void Properties,Premises
22/07/2020,M A Vernon Ltd,777693,850,General Maintenance,Repairs To Void Properties,Premises
22/07/2020,Mears Ltd,775535,14801.92,General Maintenance,Repairs To Void Properties,Premises
22/07/2020,Mears Ltd,775456,922.4,Glazing,General Maintenance,Premises
22/07/2020,Mears Ltd,775534,347.76,Glazing,General Maintenance,Premises
22/07/2020,Zep Uk,777539,435,Materials,Parks And Playing Fields,Supplies & Services
22/07/2020,Great Western Hotel,777650,564,Other Expenses,Covid-19 Rough Sleepers Fund,Supplies & Services
22/07/2020,Patronus Security Uk Ltd,777696,588.97,Other Expenses,Covid-19 Rough Sleepers Fund,Supplies & Services
22/07/2020,Patronus Security Uk Ltd,777697,2856,Other Expenses,Covid-19 Rough Sleepers Fund,Supplies & Services
22/07/2020,Patronus Security Uk Ltd,777698,877.25,Other Expenses,Covid-19 Rough Sleepers Fund,Supplies & Services
22/07/2020,Patronus Security Uk Ltd,777699,2656.25,Other Expenses,Covid-19 Rough Sleepers Fund,Supplies & Services
22/07/2020,Patronus Security Uk Ltd,777700,1044,Other Expenses,Covid-19 Rough Sleepers Fund,Supplies & Services
22/07/2020,Patronus Security Uk Ltd,777701,3442.5,Other Expenses,Covid-19 Rough Sleepers Fund,Supplies & Services
22/07/2020,Patronus Security Uk Ltd,777702,884.5,Other Expenses,Covid-19 Rough Sleepers Fund,Supplies & Services
22/07/2020,Specialist Fleet Services Ltd,777158,612.92,Other Expenses,Fleet Contract Hire,Supplies & Services
22/07/2020,University Of Exeter,776737,1940.85,Project Work,Museum Npo,Supplies & Services
22/07/2020,REDACTED PERSONAL DATA,775696,334.5,Project Work,Museum Projects,Supplies & Services
22/07/2020,Mears Ltd,775537,821.12,Repairs To Void Properties,Psl Properties,Premises
22/07/2020,Greensquare Estates Ltd,777474,593.61,Service Charges,Customer Relations,Premises
22/07/2020,Harmony Fire Ltd,777802,265,Servicing Sprinklers,Service Contracts,Premises
22/07/2020,REDACTED PERSONAL DATA,777809,650,Spend To Save,Housing Access,Supplies & Services
22/07/2020,Greenslade Taylor Hunt,777811,894,Spend To Save,Housing Access,Supplies & Services
22/07/2020,REDACTED PERSONAL DATA,777810,650,Spend To Save,Housing Advice,Supplies & Services
22/07/2020,Ministry Of Play,773989,5212,Sub-Contractors,Childrens Play Areas,Premises
22/07/2020,Hays Accountancy Personnel,777638,676.82,Temp.Contract-Agency Staff,Accountancy Services,Pay
22/07/2020,Venn Group Ltd,777631,988,Temp.Contract-Agency Staff,Health & Safety Compliance,Pay
22/07/2020,Hays Accountancy Personnel,777640,1060.42,Temp.Contract-Agency Staff,Planned Works,Pay
22/07/2020,Hays Accountancy Personnel,777641,244.2,Temp.Contract-Agency Staff,Planned Works,Pay
22/07/2020,Venn Group Ltd,777632,272.08,Temp.Contract-Agency Staff,Planned Works,Pay
22/07/2020,The Oyster Partnership Ltd,777653,1517,Temp.Contract-Agency Staff,Planning,Pay
22/07/2020,The Oyster Partnership Ltd,777656,410,Temp.Contract-Agency Staff,Planning,Pay
22/07/2020,Hays Accountancy Personnel,777637,960.65,Temp.Contract-Agency Staff,Reactive Repairs,Pay
22/07/2020,Hays Accountancy Personnel,777641,366.3,Temp.Contract-Agency Staff,Reactive Repairs,Pay
22/07/2020,Venn Group Ltd,777632,408.11,Temp.Contract-Agency Staff,Reactive Repairs,Pay
22/07/2020,Venn Group Ltd,777635,1050.84,Temp.Contract-Agency Staff,Reactive Repairs,Pay
22/07/2020,The Oyster Partnership Ltd,777652,850,Temp.Contract-Agency Staff,Rough Sleeping Initiative,Pay
22/07/2020,The Oyster Partnership Ltd,777655,937.5,Temp.Contract-Agency Staff,Rough Sleeping Initiative,Pay
22/07/2020,University Of Exeter,777271,1940.85,Tenants Removal And Legal Exp,Museum Npo,Supplies & Services
23/07/2020,Wemco Ltd,777789,699.72,Aim Reactive Repairs,Property Maintenance,Premises
23/07/2020,Wemco Ltd,777789,1783.51,Aim Service & Maintenance,Property Maintenance,Premises
23/07/2020,REDACTED PERSONAL DATA,777931,4230,Bed And Breakfast,Covid-19 Rough Sleepers Fund,Premises
23/07/2020,Telstar Guest House Ltd,777705,2560.95,Bed And Breakfast,Covid-19 Rough Sleepers Fund,Premises
23/07/2020,Mears Ltd,775457,331.48,Blocks Of Flat Repairs,General Maintenance,Premises
23/07/2020,Mears Ltd,776530,70.6,Blocks Of Flat Repairs,General Maintenance,Premises
23/07/2020,Mears Ltd,776951,178.55,Blocks Of Flat Repairs,General Maintenance,Premises
23/07/2020,Mears Ltd,777903,23.53,Blocks Of Flat Repairs,General Maintenance,Premises
23/07/2020,Recruitment Solutions (Sw) Ltd,777628,1000.88,Casuals Waged-Agency Staff,Materials Reclamation Facility,Pay
23/07/2020,Concept Staffing Ltd,777782,631.75,Casuals Waged-Agency Staff,Public Realm Agency Costs,Pay
23/07/2020,Matching Staff Solutions,777626,456.95,Casuals Waged-Agency Staff,Public Realm Agency Costs,Pay
23/07/2020,Matching Staff Solutions,777666,456.95,Casuals Waged-Agency Staff,Public Realm Agency Costs,Pay
23/07/2020,Recruitment Solutions (Sw) Ltd,777629,587.4,Casuals Waged-Agency Staff,Public Realm Agency Costs,Pay
23/07/2020,The Best Connection Group Ltd,777624,2027.4,Casuals Waged-Agency Staff,Public Realm Agency Costs,Pay
23/07/2020,Backline Logistic Support Services Ltd,777923,601.25,Casuals Waged-Agency Staff,Waste Agency Costs,Pay
23/07/2020,Matching Staff Solutions,777627,476.4,Casuals Waged-Agency Staff,Waste Agency Costs,Pay
23/07/2020,Recruitment Solutions (Sw) Ltd,777630,1323.53,Casuals Waged-Agency Staff,Waste Agency Costs,Pay
23/07/2020,Ashton Cleaning Services (Sw) Ltd,777456,225,Cleaning,Covid-19 Rough Sleepers Fund,Premises
23/07/2020,Bloom Procurement Services,775234,1000,Consultants Fees,Rennes House Structural Works,Supplies & Services
23/07/2020,Mears Ltd,777903,152.56,Contract Payments,Adaptations,Supplies & Services
23/07/2020,Mears Ltd,775457,90.19,Contract Payments,Common Area Footpth/Wall Imps,Supplies & Services
23/07/2020,Mears Ltd,776530,105.16,Contract Payments,Common Area Footpth/Wall Imps,Supplies & Services
23/07/2020,Mears Ltd,775457,773.5,Contract Payments,Door Replacements,Supplies & Services
23/07/2020,Mears Ltd,777903,461.73,Contract Payments,Door Replacements,Supplies & Services
23/07/2020,Mears Ltd,776951,86.92,Contract Payments,Fire Risk Assessment Works,Supplies & Services
23/07/2020,Mears Ltd,777903,67.16,Contract Payments,Fire Risk Assessment Works,Supplies & Services
23/07/2020,Asd Lighting Plc,777930,504,Electrical Works - Communal,Prog'D Elec Re-Wiring General,Supplies & Services
23/07/2020,E.On   (Electricity),777957,542.09,Electricity,Exeter Corn Exchange,Premises
23/07/2020,E.On   (Electricity),777947,938.96,Electricity,Livestock/Matford Centre,Premises
23/07/2020,Twofold Ltd,777937,1714.1,Equipment Tools And Materials,Green Waste Collection Service,Supplies & Services
23/07/2020,Specialist Fleet Services Ltd,774229,641.23,Fleet Supply & Maintenance,Fleet Contract Hire,Transport
23/07/2020,Specialist Fleet Services Ltd,777145,803.31,Fleet Supply & Maintenance,Fleet Contract Hire,Transport
23/07/2020,Specialist Fleet Services Ltd,777146,335.7,Fleet Supply & Maintenance,Fleet Contract Hire,Transport
23/07/2020,Specialist Fleet Services Ltd,777147,478.06,Fleet Supply & Maintenance,Fleet Contract Hire,Transport
23/07/2020,Specialist Fleet Services Ltd,777152,641.23,Fleet Supply & Maintenance,Fleet Contract Hire,Transport
23/07/2020,Specialist Fleet Services Ltd,777153,641.23,Fleet Supply & Maintenance,Fleet Contract Hire,Transport
23/07/2020,Specialist Fleet Services Ltd,777156,612.92,Fleet Supply & Maintenance,Fleet Contract Hire,Transport
23/07/2020,Mears Ltd,775457,416.1,General Maintenance,Elec Testing/Reactive,Premises
23/07/2020,Mears Ltd,776530,831.66,General Maintenance,Elec Testing/Reactive,Premises
23/07/2020,Mears Ltd,776951,2339.99,General Maintenance,Elec Testing/Reactive,Premises
23/07/2020,Mears Ltd,777903,909.08,General Maintenance,Elec Testing/Reactive,Premises
23/07/2020,Amanda Cunliffe Solicitors,777984,3075,General Maintenance,General Maintenance,Premises
23/07/2020,Complete Water Solutions (Ltd),777797,609.22,General Maintenance,General Maintenance,Premises
23/07/2020,Mears Ltd,775457,5608.29,General Maintenance,General Maintenance,Premises
23/07/2020,Mears Ltd,776530,12748.96,General Maintenance,General Maintenance,Premises
23/07/2020,Mears Ltd,776951,17926.32,General Maintenance,General Maintenance,Premises
23/07/2020,Mears Ltd,777903,13988.2,General Maintenance,General Maintenance,Premises
23/07/2020,Mears Ltd,777904,813.27,General Maintenance,Repairs To Void Properties,Premises
23/07/2020,Mears Ltd,775457,3353.95,Glazing,General Maintenance,Premises
23/07/2020,Mears Ltd,776951,204.1,Glazing,General Maintenance,Premises
23/07/2020,South West Compactor Services,777546,562.03,Maintenance Of Equipment,Materials Reclamation Facility,Supplies & Services
23/07/2020,South West Compactor Services,777707,1635.37,Maintenance Of Equipment,Materials Reclamation Facility,Supplies & Services
23/07/2020,G B Sport & Leisure,777331,2446.47,Materials,Childrens Play Areas,Supplies & Services
23/07/2020,Johnston Sweepers Limited,776362,715.5,Materials,Other Street Sweeping,Supplies & Services
23/07/2020,Telstar Guest House Ltd,777704,1698.1,Other Expenses,Covid-19 Rough Sleepers Fund,Supplies & Services
23/07/2020,Specialist Fleet Services Ltd,777154,641.23,Other Expenses,Fleet Contract Hire,Supplies & Services
23/07/2020,Somerset County Council,773335,5000,Other Expenses,Planning,Supplies & Services
23/07/2020,Whistl Uk Ltd,777927,379.13,Postage/Stamps,Mail,Supplies & Services
23/07/2020,Teign Housing,777940,353.52,Psh Immigration Visits,Housing Advice,Supplies & Services
23/07/2020,Mears Ltd,776951,2359.8,Reactive Repairs To Property,Safesleep,Premises
23/07/2020,Mears Ltd,775457,23.7,Rowan House Repairs & Maint,Rowan House,Premises
23/07/2020,Mears Ltd,776951,27.16,Rowan House Repairs & Maint,Rowan House,Premises
23/07/2020,Patronus Security Uk Ltd,772366,572,Security Patrol,Customer Service Centre,Premises
23/07/2020,Wemco Ltd,777789,109.01,Service Charges,Bradninch Place,Premises
23/07/2020,Capron Gould Lettings,777987,476.66,Spend To Save,Housing Access,Supplies & Services
23/07/2020,Capron Gould Lettings,777988,476.66,Spend To Save,Housing Access,Supplies & Services
23/07/2020,REDACTED PERSONAL DATA,777934,420,Spend To Save,Housing Access,Supplies & Services
23/07/2020,REDACTED PERSONAL DATA,777897,485,Spend To Save,Housing Access,Supplies & Services
23/07/2020,REDACTED PERSONAL DATA,777935,420,Spend To Save,Housing Advice,Supplies & Services
23/07/2020,REDACTED PERSONAL DATA,777898,500,Spend To Save,Housing Advice,Supplies & Services
23/07/2020,Streetmaster (South Wales) Ltd,777792,744,Sub-Contractors,Signs & Sundries - Assets,Premises
24/07/2020,Philip Steele Building Equipment Ltd,775939,483.22,Aim Lease Requirements,Miscellaneous Properties,Premises
24/07/2020,Jtt Contracting Ltd,776766,3776.08,Aim Reactive Repairs,Property Maintenance,Premises
24/07/2020,Gray Naval Architecture,776356,4725,Boat Maintenance,Canal,Transport
24/07/2020,Protective Wear Supplies Ltd,776727,256.8,"Clothing, Laundry, & Uniforms",Parks And Playing Fields,Supplies & Services
24/07/2020,Protective Wear Supplies Ltd,776728,284.3,"Clothing, Laundry, & Uniforms",Parks And Playing Fields,Supplies & Services
24/07/2020,Strata Service Solutions Ltd,776225,412.1,Consultants Fees,Accountancy Services,Supplies & Services
24/07/2020,Bloom Procurement Services,762250,8406,Contract Payments,Heavitree (Cob Wave Iii),Supplies & Services
24/07/2020,Bloom Procurement Services,768496,7115.33,Contract Payments,Heavitree (Cob Wave Iii),Supplies & Services
24/07/2020,Enelco Ltd,778049,155272.76,Contract Payments,Laings Refurbishments,Supplies & Services
24/07/2020,Mlm Group (Mlm Consulting Engineers Ltd),778054,1500,Contract Payments,Rennes House Structural Works,Supplies & Services
24/07/2020,Mach Acoustics Ltd,778050,1956,Contract Payments,Vaughan Road,Supplies & Services
24/07/2020,Mach Acoustics Ltd,778050,1044,Contract Payments,Vaughan Road Ecl Ltd,Supplies & Services
24/07/2020,Bloom Procurement Services,775236,3500,Contract Payments,Whipton (Vaughan Road),Supplies & Services
24/07/2020,Pmr Products Ltd,777949,250,Equipment Tools And Materials,Business Crime Reduction Unit,Supplies & Services
24/07/2020,Norfloat International Ltd,776731,581.77,Equipment Tools And Materials,Mooring Repairs,Supplies & Services
24/07/2020,Specialist Fleet Services Ltd,777176,1972.99,Fleet Supply & Maintenance,Fleet Contract Hire,Transport
24/07/2020,Therm-Eco Ewi Ltd,778046,2000,Grants Issued,Warm Up Exeter,Supplies & Services
24/07/2020,Tunstall Healthcare (Uk) Ltd,777924,1873.5,Home Call Alarm Equipment,Home Call Alarm Service,Supplies & Services
24/07/2020,Multilingua Devon Cic,771540,1344,Interpreters / Translators,Customer Relations,Pay
24/07/2020,Multilingua Devon Cic,777812,1414,Interpreters / Translators,Lettings & Leasehold,Pay
24/07/2020,Mcqueenie Mulholland,777980,260,Marketing,Building Greater Exeter,Supplies & Services
24/07/2020,Allstar Business Solutions,776489,20401.63,Motor Fuel,Transport Management,Transport
24/07/2020,Jpm Beds Ltd,774487,241.67,Other Expenses,Bed And Breakfast,Supplies & Services
24/07/2020,Jpm Beds Ltd,774488,241.67,Other Expenses,Bed And Breakfast,Supplies & Services
24/07/2020,Integrated Water Services,777079,1904.14,Pmf Compliance,Property Maintenance,Premises
24/07/2020,Integrated Water Services,777080,1094.17,Pmf Compliance,Property Maintenance,Premises
24/07/2020,Bloom Procurement Services,775751,1785,Project Work,Riverside,Supplies & Services
24/07/2020,Jtt Contracting Ltd,777910,1197,Property Maintenance Fund,Commercial Properties,Premises
24/07/2020,REDACTED PERSONAL DATA,777906,503.24,Repairs To Hand Back Prop,Extralet,Premises
24/07/2020,Intercard Ltd,777790,1199.78,Stationery,Income Recovery,Supplies & Services
24/07/2020,H & S Transport Ltd,777785,1088,Sub-Contractors,Land Drainage Water C - Assets,Premises
24/07/2020,H & S Transport Ltd,777788,807,Sub-Contractors,Signs & Sundries - Assets,Premises
24/07/2020,Recruitment In Partnership,777964,423.47,Temp.Contract-Agency Staff,Env Health Projects,Pay
24/07/2020,South West Water Business,777986,760.59,Water,Exeter Corn Exchange,Premises
27/07/2020,Exeter City Football Club Ltd,777942,781,Aluminium & Steel Buy In,Mrf Commercial Work,Supplies & Services
27/07/2020,3c Payment Uk Ltd,776043,445.2,Card Payment Charges,Car Parks,Supplies & Services
27/07/2020,Berry Recruitment,778152,478.78,Casuals Waged-Agency Staff,Waste Agency Costs,Pay
27/07/2020,Driver Hire Exeter Ltd,778157,650.83,Casuals Waged-Agency Staff,Waste Agency Costs,Pay
27/07/2020,Driver Hire Exeter Ltd,778159,650.83,Casuals Waged-Agency Staff,Waste Agency Costs,Pay
27/07/2020,Aw Jenkinson Transport Ltd,777939,700,Comingled Haulage Out,Materials & Goods For Resale,Transport
27/07/2020,Suez Recycling & Recovery Ltd,778045,2832.9,Comingled Haulage Out,Materials & Goods For Resale,Transport
27/07/2020,C & P Contracting Solutions Ltd,778155,2250,Consultants Fees,General Management,Supplies & Services
27/07/2020,REDACTED PERSONAL DATA,778171,425,Contract Payments,Adaptations,Supplies & Services
27/07/2020,Exeter Cab (Services) Ltd,777663,50001,Contract Payments,Ia&A Contract (Cab),Supplies & Services
27/07/2020,British Gas Business Connnections + Metering,778154,299,Contract Payments,St Loyes Extracare Scheme,Supplies & Services
27/07/2020,E.On   (Electricity),777946,9025.69,Electricity,Ramm,Premises
27/07/2020,Horiba Instrument Ltd,777990,4633.34,Equipment Tools And Materials,Environmental Quality Team,Supplies & Services
27/07/2020,Portalplanquest Ltd,777808,462,Fees,Planning,Income
27/07/2020,Specialist Fleet Services Ltd,775954,1710,Fleet - Hire Costs,Cleansing Overheads,Transport
27/07/2020,Specialist Fleet Services Ltd,775354,4730,Fleet Supply & Maintenance,Cleansing Overheads,Transport
27/07/2020,Avoncrop Amenity Products,778158,347.5,Materials,Parks And Playing Fields,Supplies & Services
27/07/2020,1010 Media Ltd,778052,450,Museum Display Expenses,Museum Npo,Supplies & Services
27/07/2020,Zep Uk,778047,1176,Other Expenses,Parks And Playing Fields,Supplies & Services
27/07/2020,Casepak,777941,5975.86,Processing Comingled Materials,Materials Reclamation Facility,Supplies & Services
27/07/2020,Reach Publishing Services,777912,299.7,Public Notices,Planning,Supplies & Services
27/07/2020,Specialist Fleet Services Ltd,775951,14789.93,Routine Maintenance,Transport Management,Transport
27/07/2020,Specialist Fleet Services Ltd,776897,2269.78,Routine Maintenance,Transport Management,Transport
27/07/2020,REDACTED PERSONAL DATA,777477,3066.67,Solicitors And Legal Fees/Lics,Planning,Supplies & Services
27/07/2020,Hays Accountancy Personnel,778151,385.63,Temp.Contract-Agency Staff,Accountancy Services,Pay
27/07/2020,Morgan Law,778150,720,Temp.Contract-Agency Staff,Accountancy Services,Pay
27/07/2020,Hays Accountancy Personnel,778170,1622.92,Temp.Contract-Agency Staff,Planned Works,Pay
27/07/2020,Venn Group Ltd,777633,814.05,Temp.Contract-Agency Staff,Planning,Pay
27/07/2020,Edenbrown Synergy,777526,936.6,Temp.Contract-Agency Staff,Revenues Recovery,Pay
27/07/2020,Morgan Hunt Uk Ltd,777928,946.46,Temp.Contract-Agency Staff,Revenues Recovery,Pay
27/07/2020,The Oyster Partnership Ltd,777654,232,Temp.Contract-Agency Staff,Revenues Recovery,Pay
28/07/2020,Nute Plumbing Services Ltd,778371,6888,Bathroom Adaptations,Bathroom Replacements,Supplies & Services
28/07/2020,REDACTED PERSONAL DATA,778076,640,Boat Maintenance,River Exe,Transport
28/07/2020,Big Wave Media Ltd,778449,10000,Businesses Provided 10k,La Discretionary Grants Fund,Supplies & Services
28/07/2020,Cathedral Appointments Ltd,778454,10000,Businesses Provided 10k,La Discretionary Grants Fund,Supplies & Services
28/07/2020,Coffeeworks Ltd,778455,10000,Businesses Provided 10k,La Discretionary Grants Fund,Supplies & Services
28/07/2020,Digital Impact(Uk) Ltd,778472,10000,Businesses Provided 10k,La Discretionary Grants Fund,Supplies & Services
28/07/2020,Kirk Hills,778464,10000,Businesses Provided 10k,La Discretionary Grants Fund,Supplies & Services
28/07/2020,Plantabox,778474,10000,Businesses Provided 10k,La Discretionary Grants Fund,Supplies & Services
28/07/2020,Polarwall Ltd,778456,10000,Businesses Provided 10k,La Discretionary Grants Fund,Supplies & Services
28/07/2020,Premier Parking Solutions Limited,778409,10000,Businesses Provided 10k,La Discretionary Grants Fund,Supplies & Services
28/07/2020,Rokk Media Ltd,778453,10000,Businesses Provided 10k,La Discretionary Grants Fund,Supplies & Services
28/07/2020,REDACTED PERSONAL DATA,778457,10000,Businesses Provided 10k,La Discretionary Grants Fund,Supplies & Services
28/07/2020,Southernhay House,778422,10000,Businesses Provided 10k,La Discretionary Grants Fund,Supplies & Services
28/07/2020,Ab Multimedia Ltd,778468,25000,Businesses Provided 25k,La Discretionary Grants Fund,Supplies & Services
28/07/2020,Air Marketing Group Ltd,778458,25000,Businesses Provided 25k,La Discretionary Grants Fund,Supplies & Services
28/07/2020,Apex Scaffolding Exeter Ltd,778440,25000,Businesses Provided 25k,La Discretionary Grants Fund,Supplies & Services
28/07/2020,Binary Legal Services,778467,25000,Businesses Provided 25k,La Discretionary Grants Fund,Supplies & Services
28/07/2020,Britannia Lanes Of Devon,778408,25000,Businesses Provided 25k,La Discretionary Grants Fund,Supplies & Services
28/07/2020,Citizens Advice Exeter,778469,25000,Businesses Provided 25k,La Discretionary Grants Fund,Supplies & Services
28/07/2020,Cowork Ventures Ltd,778423,25000,Businesses Provided 25k,La Discretionary Grants Fund,Supplies & Services
28/07/2020,Exeter Arts Trading Services,778400,25000,Businesses Provided 25k,La Discretionary Grants Fund,Supplies & Services
28/07/2020,Exeter Shopfitting Limited,778426,25000,Businesses Provided 25k,La Discretionary Grants Fund,Supplies & Services
28/07/2020,Grafenia Operations Limited,778475,25000,Businesses Provided 25k,La Discretionary Grants Fund,Supplies & Services
28/07/2020,Greenslades Tours (Exeter) Ltd,778406,25000,Businesses Provided 25k,La Discretionary Grants Fund,Supplies & Services
28/07/2020,The Body Shop,778439,25000,Businesses Provided 25k,La Discretionary Grants Fund,Supplies & Services
28/07/2020,Luminous Show Technology Limited,778407,25000,Businesses Provided 25k,La Discretionary Grants Fund,Supplies & Services
28/07/2020,Naplex Digital Communications Ltd,778399,25000,Businesses Provided 25k,La Discretionary Grants Fund,Supplies & Services
28/07/2020,John Gandys,778410,25000,Businesses Provided 25k,La Discretionary Grants Fund,Supplies & Services
28/07/2020,Stoneman And Bowker,778405,25000,Businesses Provided 25k,La Discretionary Grants Fund,Supplies & Services
28/07/2020,Stormpress Ltd,778438,25000,Businesses Provided 25k,La Discretionary Grants Fund,Supplies & Services
28/07/2020,The Prospect,778425,25000,Businesses Provided 25k,La Discretionary Grants Fund,Supplies & Services
28/07/2020,Venator Capital Limited,778452,25000,Businesses Provided 25k,La Discretionary Grants Fund,Supplies & Services
28/07/2020,Wa Consultants Ltd,778465,25000,Businesses Provided 25k,La Discretionary Grants Fund,Supplies & Services
28/07/2020,Aquaplumb Ltd,778461,1000,Businesses Provides <10k,La Discretionary Grants Fund,Supplies & Services
28/07/2020,Archangel Productions Limited,778397,5000,Businesses Provides <10k,La Discretionary Grants Fund,Supplies & Services
28/07/2020,Baby Sensory Exeter,778411,5000,Businesses Provides <10k,La Discretionary Grants Fund,Supplies & Services
28/07/2020,Backstage Supplies Ltd,778445,1000,Businesses Provides <10k,La Discretionary Grants Fund,Supplies & Services
28/07/2020,Best Chimney Clean Limited,778424,5000,Businesses Provides <10k,La Discretionary Grants Fund,Supplies & Services
28/07/2020,Bowen By Danielle,778430,1000,Businesses Provides <10k,La Discretionary Grants Fund,Supplies & Services
28/07/2020,Chandni Chowk Ltd,778427,5000,Businesses Provides <10k,La Discretionary Grants Fund,Supplies & Services
28/07/2020,Chumoo Luxury Ice Cream,778416,1000,Businesses Provides <10k,La Discretionary Grants Fund,Supplies & Services
28/07/2020,Cjbaviationservicesltd,778418,1000,Businesses Provides <10k,La Discretionary Grants Fund,Supplies & Services
28/07/2020,Courtyard Cottage,778429,1000,Businesses Provides <10k,La Discretionary Grants Fund,Supplies & Services
28/07/2020,Cygnet Training Theatre,778419,5000,Businesses Provides <10k,La Discretionary Grants Fund,Supplies & Services
28/07/2020,Devon And Exeter Jigsaw Puzzle Library,778398,1000,Businesses Provides <10k,La Discretionary Grants Fund,Supplies & Services
28/07/2020,Exeter Vetcare Ltd,778463,5000,Businesses Provides <10k,La Discretionary Grants Fund,Supplies & Services
28/07/2020,Gail Nisbet Hair,778431,2500,Businesses Provides <10k,La Discretionary Grants Fund,Supplies & Services
28/07/2020,Highspec Homes Ltd,778434,2500,Businesses Provides <10k,La Discretionary Grants Fund,Supplies & Services
28/07/2020,Hot Rock Productions.Ltd,778415,1000,Businesses Provides <10k,La Discretionary Grants Fund,Supplies & Services
28/07/2020,Hot Sausage Company,778420,2500,Businesses Provides <10k,La Discretionary Grants Fund,Supplies & Services
28/07/2020,Hungersleep Productions Ltd,778447,1000,Businesses Provides <10k,La Discretionary Grants Fund,Supplies & Services
28/07/2020,Hussar Records Ltd,778448,2500,Businesses Provides <10k,La Discretionary Grants Fund,Supplies & Services
28/07/2020,Intuitsoul,778462,1000,Businesses Provides <10k,La Discretionary Grants Fund,Supplies & Services
28/07/2020,I Taxi Exe Ltd,778437,2500,Businesses Provides <10k,La Discretionary Grants Fund,Supplies & Services
28/07/2020,J & E Hewlett Ltd,778471,1000,Businesses Provides <10k,La Discretionary Grants Fund,Supplies & Services
28/07/2020,Jm Enviro Limited,778466,1000,Businesses Provides <10k,La Discretionary Grants Fund,Supplies & Services
28/07/2020,Kathryn Clarke-Mcleod Photography,778459,1000,Businesses Provides <10k,La Discretionary Grants Fund,Supplies & Services
28/07/2020,Kickline Touring Theatre Company Ltd,778404,1000,Businesses Provides <10k,La Discretionary Grants Fund,Supplies & Services
28/07/2020,REDACTED PERSONAL DATA,778414,1000,Businesses Provides <10k,La Discretionary Grants Fund,Supplies & Services
28/07/2020,Le Boudoir Lingerie,778460,1000,Businesses Provides <10k,La Discretionary Grants Fund,Supplies & Services
28/07/2020,REDACTED PERSONAL DATA,778412,1000,Businesses Provides <10k,La Discretionary Grants Fund,Supplies & Services
28/07/2020,Neona Ltd.,778444,1000,Businesses Provides <10k,La Discretionary Grants Fund,Supplies & Services
28/07/2020,Neontribe Ltd.,778443,5000,Businesses Provides <10k,La Discretionary Grants Fund,Supplies & Services
28/07/2020,Onar Recruitment Ltd,778432,1000,Businesses Provides <10k,La Discretionary Grants Fund,Supplies & Services
28/07/2020,Outside The Box Consulting,778402,1000,Businesses Provides <10k,La Discretionary Grants Fund,Supplies & Services
28/07/2020,REDACTED PERSONAL DATA,778446,1000,Businesses Provides <10k,La Discretionary Grants Fund,Supplies & Services
28/07/2020,Polly Nostimo'S Little Greek Food Truck,778450,1000,Businesses Provides <10k,La Discretionary Grants Fund,Supplies & Services
28/07/2020,Pro Surface Solutions,778442,5000,Businesses Provides <10k,La Discretionary Grants Fund,Supplies & Services
28/07/2020,Prudens Jevro Limited,778451,2500,Businesses Provides <10k,La Discretionary Grants Fund,Supplies & Services
28/07/2020,Scaffwest Scaffolding & Roofing Ltd,778470,1000,Businesses Provides <10k,La Discretionary Grants Fund,Supplies & Services
28/07/2020,Stage By Stage,778403,5000,Businesses Provides <10k,La Discretionary Grants Fund,Supplies & Services
28/07/2020,St Thomas Parish Centre,778401,2500,Businesses Provides <10k,La Discretionary Grants Fund,Supplies & Services
28/07/2020,Tdt Photographic Ltd,778473,1000,Businesses Provides <10k,La Discretionary Grants Fund,Supplies & Services
28/07/2020,The Devon Carousel Project,778436,1000,Businesses Provides <10k,La Discretionary Grants Fund,Supplies & Services
28/07/2020,The Estuary Community Hub Cic,778428,5000,Businesses Provides <10k,La Discretionary Grants Fund,Supplies & Services
28/07/2020,The Sea Dream Ferry Company,778417,2500,Businesses Provides <10k,La Discretionary Grants Fund,Supplies & Services
28/07/2020,Timber Coffee Bikecaffe,778441,1000,Businesses Provides <10k,La Discretionary Grants Fund,Supplies & Services
28/07/2020,Traceys Aerials & Satellites,778413,5000,Businesses Provides <10k,La Discretionary Grants Fund,Supplies & Services
28/07/2020,Washed Up Laundry,778435,1000,Businesses Provides <10k,La Discretionary Grants Fund,Supplies & Services
28/07/2020,Wilson'S Restringing Service Ltd,778421,2500,Businesses Provides <10k,La Discretionary Grants Fund,Supplies & Services
28/07/2020,Zenen Business & Education,778433,2500,Businesses Provides <10k,La Discretionary Grants Fund,Supplies & Services
28/07/2020,Baltimore Consulting Ltd,776171,14375,Consultants Fees,New Build Site Investigations,Supplies & Services
28/07/2020,Baltimore Consulting Ltd,777248,2500,Consultants Fees,New Build Site Investigations,Supplies & Services
28/07/2020,Baltimore Consulting Ltd,778167,2500,Consultants Fees,New Build Site Investigations,Supplies & Services
28/07/2020,Mears Ltd,778336,100.05,Contract Payments,Common Area Footpth/Wall Imps,Supplies & Services
28/07/2020,Advanced Access,778227,1883.7,Door Entry Systems,Service Contracts,Premises
28/07/2020,Specialist Fleet Services Ltd,771580,3360,Fleet Supply & Maintenance,Cleansing Overheads,Transport
28/07/2020,Renault Trucks Commercial Ltd,769744,237.41,Fleet Supply & Maintenance,Electricians,Transport
28/07/2020,Specialist Fleet Services Ltd,766911,633,Fleet Supply & Maintenance,Fleet Contract Hire,Transport
28/07/2020,Specialist Fleet Services Ltd,766912,735,Fleet Supply & Maintenance,Fleet Contract Hire,Transport
28/07/2020,Specialist Fleet Services Ltd,777168,500.17,Fleet Supply & Maintenance,Fleet Contract Hire,Transport
28/07/2020,Specialist Fleet Services Ltd,777322,500.17,Fleet Supply & Maintenance,Fleet Contract Hire,Transport
28/07/2020,Ks Engineering,778382,411,Gas Equip Replacement,Repairs To Void Properties,Premises
28/07/2020,Mears Ltd,778336,21.68,General Maintenance,Elec Testing/Reactive,Premises
28/07/2020,Ks Engineering,778355,435.76,General Maintenance,General Maintenance,Premises
28/07/2020,Mears Ltd,778336,2266.43,General Maintenance,General Maintenance,Premises
28/07/2020,Propoint Southwest Ltd,778370,1792,General Maintenance,General Maintenance,Premises
28/07/2020,Mears Ltd,778337,2778.36,General Maintenance,Repairs To Void Properties,Premises
28/07/2020,Therm-Eco Ewi Ltd,778311,2000,Grants Issued,Warm Up Exeter,Supplies & Services
28/07/2020,Jewson Ltd,778346,325.5,Maintenance Of Buoys,River Exe,Premises
28/07/2020,Sky Platform Hire Ltd,775652,2960,Other Expenses,High Streets Fund,Supplies & Services
28/07/2020,Strata Service Solutions Ltd,766463,4882.5,Payment To Strata,Agile & Flexible Rollout,Supplies & Services
28/07/2020,Whistl Uk Ltd,778349,598.02,Postage/Stamps,Mail,Supplies & Services
28/07/2020,Mears Ltd,778338,723.54,Repairs To Void Properties,Psl Properties,Premises
28/07/2020,Institute Of Licensing Events Ltd,778217,330,Staff Training,Premises Licensing,Pay
28/07/2020,Complete Water Solutions (Ltd),778218,228,Sub-Contractors,Parks And Playing Fields,Premises
29/07/2020,Oh So Cheesy (House Of Halloumi),778396,1500,Businesses Provided 25k,La Discretionary Grants Fund,Supplies & Services
29/07/2020,Berry Recruitment,778153,670.07,Casuals Waged-Agency Staff,Public Realm Agency Costs,Pay
29/07/2020,Concept Staffing Ltd,777783,539.24,Casuals Waged-Agency Staff,Public Realm Agency Costs,Pay
29/07/2020,Concept Staffing Ltd,778048,539.24,Casuals Waged-Agency Staff,Public Realm Agency Costs,Pay
29/07/2020,The Best Connection Group Ltd,778161,1057.54,Casuals Waged-Agency Staff,Public Realm Agency Costs,Pay
29/07/2020,The Best Connection Group Ltd,778162,2115.62,Casuals Waged-Agency Staff,Public Realm Agency Costs,Pay
29/07/2020,Wise Employment,778163,1051.44,Casuals Waged-Agency Staff,Public Realm Agency Costs,Pay
29/07/2020,Wise Employment,778341,1051.44,Casuals Waged-Agency Staff,Public Realm Agency Costs,Pay
29/07/2020,Backline Logistic Support Services Ltd,778343,365.63,Casuals Waged-Agency Staff,Waste Agency Costs,Pay
29/07/2020,Concept Staffing Ltd,778173,1383.43,Casuals Waged-Agency Staff,Waste Agency Costs,Pay
29/07/2020,Gap Personnel,778332,482.85,Casuals Waged-Agency Staff,Waste Agency Costs,Pay
29/07/2020,Wise Employment,778164,498.76,Casuals Waged-Agency Staff,Waste Agency Costs,Pay
29/07/2020,Wise Employment,778342,397.66,Casuals Waged-Agency Staff,Waste Agency Costs,Pay
29/07/2020,Baltimore Consulting Ltd,778165,18375,Consultants Fees,Planning,Supplies & Services
29/07/2020,Baltimore Consulting Ltd,778166,3750,Consultants Fees,Planning,Supplies & Services
29/07/2020,First Class Builders Ltd,776538,7654.51,Contract Payments,Bathroom Replacements,Supplies & Services
29/07/2020,Specialist Fleet Services Ltd,775669,658.8,Fleet Supply & Maintenance,Fleet Contract Hire,Transport
29/07/2020,Specialist Fleet Services Ltd,777141,1194,Fleet Supply & Maintenance,Fleet Contract Hire,Transport
29/07/2020,Timberwise (Uk) Ltd,778344,2052.67,General Maintenance,General Maintenance,Premises
29/07/2020,Integrated Water Services,768313,3638.99,Legionella Testing,Service Contracts,Premises
29/07/2020,Integrated Water Services,776492,1169.95,Legionella Testing,Service Contracts,Premises
29/07/2020,Integrated Water Services,777126,909.44,Legionella Testing,Service Contracts,Premises
29/07/2020,Jonathan Purt Revenues + Benefits Consultants,778226,7437.5,Project Work,Benefits Administration,Supplies & Services
29/07/2020,REDACTED PERSONAL DATA,778623,208.33,Season Tickets,Car Parks,Income
29/07/2020,REDACTED PERSONAL DATA,778221,12692.4,Serviced Accommodation,Serviced Accommodation,Premises
29/07/2020,REDACTED PERSONAL DATA,778222,18043.2,Serviced Accommodation,Serviced Accommodation,Premises
29/07/2020,Jtt Contracting Ltd,778156,4380.24,Sub-Contractors,Childrens Play Areas,Premises
29/07/2020,Jtt Contracting Ltd,777771,9950,Sub-Contractors,Parks Infrastructure,Premises
29/07/2020,The Oyster Partnership Ltd,778323,1517,Temp.Contract-Agency Staff,Planning,Pay
30/07/2020,European Asbestos Services Ltd,778709,677,Asbestos Removal,Asbestos,Premises
30/07/2020,European Asbestos Services Ltd,778726,375,Asbestos Removal,Asbestos,Premises
30/07/2020,European Asbestos Services Ltd,778740,300,Asbestos Removal,Asbestos,Premises
30/07/2020,European Asbestos Services Ltd,778749,350,Asbestos Removal,Asbestos,Premises
30/07/2020,European Asbestos Services Ltd,778751,212,Asbestos Removal,Asbestos,Premises
30/07/2020,European Asbestos Services Ltd,778778,1401.2,Asbestos Removal,Asbestos,Premises
30/07/2020,Mears Ltd,778699,530.16,Blocks Of Flat Repairs,General Maintenance,Premises
30/07/2020,Recruitment Solutions (Sw) Ltd,778378,1421.64,Casuals Waged-Agency Staff,Materials Reclamation Facility,Pay
30/07/2020,The Best Connection Group Ltd,778758,1955.87,Casuals Waged-Agency Staff,Materials Reclamation Facility,Pay
30/07/2020,Berry Recruitment,778736,478.78,Casuals Waged-Agency Staff,Waste Agency Costs,Pay
30/07/2020,Concept Staffing Ltd,778756,1595.62,Casuals Waged-Agency Staff,Waste Agency Costs,Pay
30/07/2020,Recruitment Solutions (Sw) Ltd,778380,1217.49,Casuals Waged-Agency Staff,Waste Agency Costs,Pay
30/07/2020,Aw Jenkinson Transport Ltd,778340,700,Comingled Haulage Out,Materials Reclamation Facility,Transport
30/07/2020,C & P Contracting Solutions Ltd,778741,2250,Consultants Fees,General Management,Supplies & Services
30/07/2020,Baltimore Consulting Ltd,778769,2500,Consultants Fees,New Build Site Investigations,Supplies & Services
30/07/2020,Baltimore Consulting Ltd,778768,3750,Consultants Fees,Planning,Supplies & Services
30/07/2020,Mediation4construction,778783,2000,Consultants Fees,Ramm Legal Costs,Supplies & Services
30/07/2020,M W Gozna Services Ltd,778610,300,Contract Payments,Adaptations,Supplies & Services
30/07/2020,Structurehaus Ltd,778354,395,Contract Payments,Common Area Footpth/Wall Imps,Supplies & Services
30/07/2020,Mears Ltd,778699,86.92,Contract Payments,Fire Risk Assessment Works,Supplies & Services
30/07/2020,Clc Contractors Ltd,778334,16488,Contract Payments,Fire Safety Policy Storage,Supplies & Services
30/07/2020,South West Concrete Repairs Ltd,778612,997.3,Contract Payments,Structural Repairs,Supplies & Services
30/07/2020,South West Concrete Repairs Ltd,778613,498.65,Contract Payments,Structural Repairs,Supplies & Services
30/07/2020,Klipspringer Ltd,778385,714,Equipment Tools And Materials,Business Regulation Team,Supplies & Services
30/07/2020,Mears Ltd,778476,188.96,General Maintenance,Elec Testing/Reactive,Premises
30/07/2020,Mears Ltd,778699,1534.06,General Maintenance,Elec Testing/Reactive,Premises
30/07/2020,Airtech Humidity Controls Ltd,778618,933.45,General Maintenance,General Maintenance,Premises
30/07/2020,European Asbestos Services Ltd,778750,580.4,General Maintenance,General Maintenance,Premises
30/07/2020,First Class Builders Ltd,778358,249,General Maintenance,General Maintenance,Premises
30/07/2020,First Class Builders Ltd,778375,227,General Maintenance,General Maintenance,Premises
30/07/2020,M A Vernon Ltd,778483,1500,General Maintenance,General Maintenance,Premises
30/07/2020,Mears Ltd,778476,158.4,General Maintenance,General Maintenance,Premises
30/07/2020,Mears Ltd,778696,634.7,General Maintenance,General Maintenance,Premises
30/07/2020,Mears Ltd,778699,19442.34,General Maintenance,General Maintenance,Premises
30/07/2020,Nute Plumbing Services Ltd,778356,290,General Maintenance,General Maintenance,Premises
30/07/2020,Premier Roofing Contractors Ltd,778348,1670.48,General Maintenance,General Maintenance,Premises
30/07/2020,M A Vernon Ltd,778482,975,General Maintenance,Repairs To Void Properties,Premises
30/07/2020,M A Vernon Ltd,778486,1350,General Maintenance,Repairs To Void Properties,Premises
30/07/2020,M A Vernon Ltd,778488,875,General Maintenance,Repairs To Void Properties,Premises
30/07/2020,M A Vernon Ltd,778490,550,General Maintenance,Repairs To Void Properties,Premises
30/07/2020,M A Vernon Ltd,778491,750,General Maintenance,Repairs To Void Properties,Premises
30/07/2020,Mears Ltd,778395,2496.82,General Maintenance,Repairs To Void Properties,Premises
30/07/2020,Dolphin Lifts South West,778642,1630,Grants Issued,Disabled Facilities Grants,Supplies & Services
30/07/2020,Dolphin Lifts South West,778643,4490,Grants Issued,Disabled Facilities Grants,Supplies & Services
30/07/2020,Goldsworthy Heating,778644,3840,Grants Issued,Disabled Facilities Grants,Supplies & Services
30/07/2020,Mears Ltd,778699,29.63,Knights Place Repairs & Maint,Knights Place,Premises
30/07/2020,William Hackett Chains Ltd,778317,1267.5,Materials For Buoys,River Exe,Premises
30/07/2020,REDACTED PERSONAL DATA,778697,900,Support Service Recharges,Trade Refuse & Recycling,Income
30/07/2020,Hays Accountancy Personnel,778705,645.34,Temp.Contract-Agency Staff,Accountancy Services,Pay
30/07/2020,Morgan Law,778723,720,Temp.Contract-Agency Staff,Accountancy Services,Pay
30/07/2020,Venn Group Ltd,778781,1001,Temp.Contract-Agency Staff,Health & Safety Compliance,Pay
30/07/2020,Venn Group Ltd,778782,814.05,Temp.Contract-Agency Staff,Planning,Pay
31/07/2020,Single Ply Structures Ltd,777800,945,Aim Lease Requirements,Commercial Properties,Premises
31/07/2020,Apex Scaffolding Services (Exeter) Ltd,776189,1757.14,Aim Lease Requirements,Miscellaneous Properties,Premises
31/07/2020,Arque Ltd,776353,2572,Aim Lease Requirements,Miscellaneous Properties,Premises
31/07/2020,Orona,778339,504,Aim Lease Requirements,Miscellaneous Properties,Premises
31/07/2020,Agt Electrical (Exeter) Ltd,777799,353.88,Aim Reactive Repairs,Property Maintenance,Premises
31/07/2020,Apex Scaffolding Services (Exeter) Ltd,776672,1542.87,Aim Reactive Repairs,Property Maintenance,Premises
31/07/2020,Hvp Security Shutters Ltd,777981,236,Aim Reactive Repairs,Property Maintenance,Premises
31/07/2020,Ks Engineering,775938,211,Aim Reactive Repairs,Property Maintenance,Premises
31/07/2020,Orona,778339,136.66,Aim Service & Maintenance,Property Maintenance,Premises
31/07/2020,European Asbestos Services Ltd,778787,244,Asbestos Removal,Asbestos,Premises
31/07/2020,The Dolphin Hotel,778923,262.5,Bed And Breakfast,Bed And Breakfast,Premises
31/07/2020,The Dolphin Hotel,778924,262.5,Bed And Breakfast,Bed And Breakfast,Premises
31/07/2020,The Dolphin Hotel,778926,262.5,Bed And Breakfast,Bed And Breakfast,Premises
31/07/2020,The Dolphin Hotel,778927,262.5,Bed And Breakfast,Bed And Breakfast,Premises
31/07/2020,The Dolphin Hotel,778928,262.5,Bed And Breakfast,Bed And Breakfast,Premises
31/07/2020,The Dolphin Hotel,778921,262.5,Bed And Breakfast,Covid-19 Rough Sleepers Fund,Premises
31/07/2020,The Dolphin Hotel,778922,262.5,Bed And Breakfast,Covid-19 Rough Sleepers Fund,Premises
31/07/2020,The Dolphin Hotel,778925,262.5,Bed And Breakfast,Housing Advice,Premises
31/07/2020,Mears Ltd,778820,269.6,Blocks Of Flat Repairs,General Maintenance,Premises
31/07/2020,Propoint Southwest Ltd,778766,563,Blocks Of Flat Repairs,General Maintenance,Premises
31/07/2020,Berry Recruitment,778737,398.42,Casuals Waged-Agency Staff,Public Realm Agency Costs,Pay
31/07/2020,Matching Staff Solutions,778746,456.95,Casuals Waged-Agency Staff,Public Realm Agency Costs,Pay
31/07/2020,Recruitment Solutions (Sw) Ltd,778379,415.8,Casuals Waged-Agency Staff,Public Realm Agency Costs,Pay
31/07/2020,The Best Connection Group Ltd,778759,2012.34,Casuals Waged-Agency Staff,Public Realm Agency Costs,Pay
31/07/2020,W B Employment Ltd,778817,1101.29,Casuals Waged-Agency Staff,Public Realm Agency Costs,Pay
31/07/2020,W B Employment Ltd,778875,1125.83,Casuals Waged-Agency Staff,Public Realm Agency Costs,Pay
31/07/2020,Matching Staff Solutions,778724,587.56,Casuals Waged-Agency Staff,Waste Agency Costs,Pay
31/07/2020,Suez Recycling & Recovery Ltd,778775,2872.8,Comingled Haulage Out,Materials & Goods For Resale,Transport
31/07/2020,Mears Ltd,778820,700.35,Contract Payments,Common Area Footpth/Wall Imps,Supplies & Services
31/07/2020,L A Moore Ltd,778701,3370.44,Contract Payments,Leisure Centres - Essential,Supplies & Services
31/07/2020,Westcountry Fire Protection Ltd,778789,4998,Emergency Light Testing,Service Contracts,Premises
31/07/2020,Westcountry Fire Protection Ltd,778790,1830.95,Fire Alarm Testing,Service Contracts,Premises
31/07/2020,British Gas Business,778887,293.24,Gas,Facilities Management,Premises
31/07/2020,Mears Ltd,778820,337.58,General Maintenance,Elec Testing/Reactive,Premises
31/07/2020,I-Civils Ltd,778889,1487,General Maintenance,General Maintenance,Premises
31/07/2020,Mears Ltd,778820,8406.93,General Maintenance,General Maintenance,Premises
31/07/2020,Hanover Lifts Ltd,778914,5600,Grants Issued,Disabled Facilities Grants,Supplies & Services
31/07/2020,Dolphin Lifts South West,778915,4633.27,Grants Issued,Disabled Facilities Grants,Supplies & Services
31/07/2020,Therm-Eco Ewi Ltd,778916,1786,Grants Issued,Warm Up Exeter,Supplies & Services
31/07/2020,Therm-Eco Ewi Ltd,778917,2000,Grants Issued,Warm Up Exeter,Supplies & Services
31/07/2020,K S Fencing,778773,11798.34,Maintenance Of Equipment,Materials Reclamation Facility,Supplies & Services
31/07/2020,Mears Ltd,778820,54.63,Reactive Repairs To Property,Safesleep,Premises
31/07/2020,Single Ply Structures Ltd,777801,550,Rechargeable Repairs,Commercial Properties,Premises
31/07/2020,Livewest Homes Ltd (Formerly Liverty),778806,11010.54,Serviced Accommodation,Serviced Accommodation,Premises
31/07/2020,Binary Legal Services,778810,500,Solicitors And Legal Fees/Lics,Customer Relations,Supplies & Services
31/07/2020,REDACTED PERSONAL DATA,778814,600,Solicitors And Legal Fees/Lics,General Management,Supplies & Services
31/07/2020,Hays Accountancy Personnel,778878,236.1,Temp.Contract-Agency Staff,Accountancy Services,Pay
31/07/2020,The Oyster Partnership Ltd,778872,1394,Temp.Contract-Agency Staff,Planning,Pay
31/07/2020,Edenbrown Synergy,778315,1026.3,Temp.Contract-Agency Staff,Revenues Recovery,Pay
31/07/2020,Morgan Hunt Uk Ltd,778325,1032.3,Temp.Contract-Agency Staff,Revenues Recovery,Pay
31/07/2020,Morgan Hunt Uk Ltd,778813,473.23,Temp.Contract-Agency Staff,Revenues Recovery,Pay
31/07/2020,The Oyster Partnership Ltd,778324,348,Temp.Contract-Agency Staff,Revenues Recovery,Pay
31/07/2020,South West Water Business,777533,1018.19,Water,Public Conveniences,Premises
03/08/2020,Specialist Fleet Services Ltd,777159,620.8,Accident Repairs,Cemeteries - Operational,Transport
03/08/2020,1010 Media Ltd,779301,650,Activities Web Site,Ramm,Supplies & Services
03/08/2020,European Asbestos Services Ltd,778707,233,Asbestos Removal,Asbestos,Premises
03/08/2020,Recruitment Solutions (Sw) Ltd,778891,1683.01,Casuals Waged-Agency Staff,Materials Reclamation Facility,Pay
03/08/2020,The Best Connection Group Ltd,778752,2440.01,Casuals Waged-Agency Staff,Public Realm Agency Costs,Pay
03/08/2020,Matching Staff Solutions,778902,587.56,Casuals Waged-Agency Staff,Waste Agency Costs,Pay
03/08/2020,Recruitment Solutions (Sw) Ltd,778893,1306.74,Casuals Waged-Agency Staff,Waste Agency Costs,Pay
03/08/2020,Wise Employment,778895,397.66,Casuals Waged-Agency Staff,Waste Agency Costs,Pay
03/08/2020,Glen Cleaning,779034,426.89,Cleaning,Underground Passages,Premises
03/08/2020,A H Jones Investigators Ltd,778992,350,Consultants Fees,Parks And Playing Fields,Supplies & Services
03/08/2020,M W Gozna Services Ltd,779008,705.97,Contract Payments,Adaptations,Supplies & Services
03/08/2020,M W Gozna Services Ltd,779009,456.17,Contract Payments,Adaptations,Supplies & Services
03/08/2020,M W Gozna Services Ltd,779013,350,Contract Payments,Adaptations,Supplies & Services
03/08/2020,M W Gozna Services Ltd,779014,250,Contract Payments,Adaptations,Supplies & Services
03/08/2020,First Class Builders Ltd,779243,7124.88,Contract Payments,Bathroom Replacements,Supplies & Services
03/08/2020,E.On   (Electricity),777943,5299.49,Electricity,Civic Centre,Premises
03/08/2020,Specialist Fleet Services Ltd,777160,620.8,Fleet Fpm Contract Maintenance,Cemeteries - Operational,Transport
03/08/2020,Mears Ltd,779228,379.67,General Maintenance,Elec Testing/Reactive,Premises
03/08/2020,Glendale Grounds Management Ltd,778744,300.31,General Maintenance,General Maintenance,Premises
03/08/2020,Glendale Grounds Management Ltd,778745,360,General Maintenance,General Maintenance,Premises
03/08/2020,Glendale Grounds Management Ltd,778760,310.84,General Maintenance,General Maintenance,Premises
03/08/2020,Glendale Grounds Management Ltd,778897,303,General Maintenance,General Maintenance,Premises
03/08/2020,Mears Ltd,779228,7977.07,General Maintenance,General Maintenance,Premises
03/08/2020,Mears Ltd,779234,1417.73,General Maintenance,General Maintenance,Premises
03/08/2020,Glendale Grounds Management Ltd,778742,430.96,General Maintenance,Repairs To Void Properties,Premises
03/08/2020,Glendale Grounds Management Ltd,778743,282.6,General Maintenance,Repairs To Void Properties,Premises
03/08/2020,Mears Ltd,779232,32196.78,General Maintenance,Repairs To Void Properties,Premises
03/08/2020,Mears Ltd,779228,982.84,Glazing,General Maintenance,Premises
03/08/2020,Glendale Grounds Management Ltd,778873,11427.58,Grounds Costs,Garden Assistance,Premises
03/08/2020,Flowbird Smart City Uk Ltd,778225,32339.52,Maintenance Of Equipment,Car Parks,Supplies & Services
03/08/2020,Rd & E Nhs Foundation Trust,778735,1207.14,Medical Inspections,Human Resources,Pay
03/08/2020,REDACTED PERSONAL DATA,777665,250,Museum - Temp Exhibitions,Museum Npo,Supplies & Services
03/08/2020,Reach Publishing Services,778700,269.73,Public Notices,Planning,Supplies & Services
03/08/2020,Specialist Fleet Services Ltd,777332,12877.53,Routine Maintenance,Transport Management,Transport
03/08/2020,Hvp Security Shutters Ltd,778619,1360.2,Sub-Contractors,Materials Reclamation Facility,Premises
03/08/2020,Glen Cleaning,778996,285.56,Supplies And Equipment,Cleansing Overheads,Supplies & Services
03/08/2020,Morgan Law,778888,1006.8,Temp.Contract-Agency Staff,Accountancy Services,Pay
03/08/2020,Building Recruitment Co Ltd,778318,15.85,Temp.Contract-Agency Staff,Cob Management,Pay
03/08/2020,Building Recruitment Co Ltd,778762,18.87,Temp.Contract-Agency Staff,Cob Management,Pay
03/08/2020,Building Recruitment Co Ltd,778318,23.8,Temp.Contract-Agency Staff,Gf Hsg Property Management,Pay
03/08/2020,Building Recruitment Co Ltd,778762,28.3,Temp.Contract-Agency Staff,Gf Hsg Property Management,Pay
03/08/2020,James Andrews Recruitment Solutions Ltd,777259,1295,Temp.Contract-Agency Staff,Human Resources,Pay
03/08/2020,Building Recruitment Co Ltd,778321,931.66,Temp.Contract-Agency Staff,Planned Works,Pay
03/08/2020,Building Recruitment Co Ltd,778764,465.83,Temp.Contract-Agency Staff,Planned Works,Pay
03/08/2020,Hays Accountancy Personnel,778703,1060.42,Temp.Contract-Agency Staff,Planned Works,Pay
03/08/2020,Hays Accountancy Personnel,778715,237.6,Temp.Contract-Agency Staff,Planned Works,Pay
03/08/2020,Hays Accountancy Personnel,778876,244.2,Temp.Contract-Agency Staff,Planned Works,Pay
03/08/2020,Hays Accountancy Personnel,778877,1060.42,Temp.Contract-Agency Staff,Planned Works,Pay
03/08/2020,James Andrews Recruitment Solutions Ltd,778313,1258.74,Temp.Contract-Agency Staff,Planned Works,Pay
03/08/2020,James Andrews Recruitment Solutions Ltd,778314,181.33,Temp.Contract-Agency Staff,Planned Works,Pay
03/08/2020,James Andrews Recruitment Solutions Ltd,778733,1258.74,Temp.Contract-Agency Staff,Planned Works,Pay
03/08/2020,James Andrews Recruitment Solutions Ltd,778734,287.77,Temp.Contract-Agency Staff,Planned Works,Pay
03/08/2020,Venn Group Ltd,778780,249.13,Temp.Contract-Agency Staff,Planned Works,Pay
03/08/2020,Building Recruitment Co Ltd,778318,752.33,Temp.Contract-Agency Staff,Reactive Repairs,Pay
03/08/2020,Building Recruitment Co Ltd,778319,700.84,Temp.Contract-Agency Staff,Reactive Repairs,Pay
03/08/2020,Building Recruitment Co Ltd,778320,956.25,Temp.Contract-Agency Staff,Reactive Repairs,Pay
03/08/2020,Building Recruitment Co Ltd,778321,931.66,Temp.Contract-Agency Staff,Reactive Repairs,Pay
03/08/2020,Building Recruitment Co Ltd,778761,528.78,Temp.Contract-Agency Staff,Reactive Repairs,Pay
03/08/2020,Building Recruitment Co Ltd,778762,896.19,Temp.Contract-Agency Staff,Reactive Repairs,Pay
03/08/2020,Building Recruitment Co Ltd,778763,1112.4,Temp.Contract-Agency Staff,Reactive Repairs,Pay
03/08/2020,Building Recruitment Co Ltd,778764,465.83,Temp.Contract-Agency Staff,Reactive Repairs,Pay
03/08/2020,Hays Accountancy Personnel,778704,957.5,Temp.Contract-Agency Staff,Reactive Repairs,Pay
03/08/2020,Hays Accountancy Personnel,778715,356.4,Temp.Contract-Agency Staff,Reactive Repairs,Pay
03/08/2020,Hays Accountancy Personnel,778876,366.3,Temp.Contract-Agency Staff,Reactive Repairs,Pay
03/08/2020,Hays Accountancy Personnel,778879,827.05,Temp.Contract-Agency Staff,Reactive Repairs,Pay
03/08/2020,James Andrews Recruitment Solutions Ltd,778314,272,Temp.Contract-Agency Staff,Reactive Repairs,Pay
03/08/2020,James Andrews Recruitment Solutions Ltd,778734,431.65,Temp.Contract-Agency Staff,Reactive Repairs,Pay
03/08/2020,Venn Group Ltd,778779,1125.09,Temp.Contract-Agency Staff,Reactive Repairs,Pay
03/08/2020,Venn Group Ltd,778780,373.69,Temp.Contract-Agency Staff,Reactive Repairs,Pay
03/08/2020,The Oyster Partnership Ltd,778322,937.5,Temp.Contract-Agency Staff,Rough Sleeping Initiative,Pay
03/08/2020,The Oyster Partnership Ltd,778871,937.5,Temp.Contract-Agency Staff,Rough Sleeping Initiative,Pay
03/08/2020,Mears Ltd,779232,3897.54,Void Bathroom Replacements,Bathroom Replacements,Supplies & Services
03/08/2020,Mears Ltd,779232,3292.23,Void Kitchen Replacements,Kitchen Replacements,Supplies & Services
03/08/2020,South West Water Business,777634,619.16,Water,Oakwood House,Premises
03/08/2020,South West Water Business,779219,733.65,Water,Oakwood House,Premises
04/08/2020,Matching Staff Solutions,778880,456.95,Casuals Waged-Agency Staff,Public Realm Agency Costs,Pay
04/08/2020,Recruitment Solutions (Sw) Ltd,778892,1282.28,Casuals Waged-Agency Staff,Public Realm Agency Costs,Pay
04/08/2020,Wise Employment,778894,1051.44,Casuals Waged-Agency Staff,Public Realm Agency Costs,Pay
04/08/2020,Glen Cleaning,779433,324.86,Cleaning,Exeter Visitor Information,Premises
04/08/2020,Low Carbon Expert Ltd,779440,3833.33,Consultants Fees,New Build Site Investigations,Supplies & Services
04/08/2020,Mears Ltd,779403,698.28,Contract Payments,Adaptations,Supplies & Services
04/08/2020,Mears Ltd,779402,536.96,Flat Roofs,General Maintenance,Premises
04/08/2020,Mears Ltd,779402,204.15,General Maintenance,Elec Testing/Reactive,Premises
04/08/2020,First Class Builders Ltd,779442,1189,General Maintenance,General Maintenance,Premises
04/08/2020,I-Civils Ltd,778890,1625,General Maintenance,General Maintenance,Premises
04/08/2020,Mears Ltd,779402,2893.65,General Maintenance,General Maintenance,Premises
04/08/2020,REDACTED PERSONAL DATA,779459,1850,General Maintenance,General Maintenance,Premises
04/08/2020,Premier Roofing Contractors Ltd,778900,1352,General Maintenance,General Maintenance,Premises
04/08/2020,Capita Business Services,779528,426,Software Licences/Support,Strata Susp - Inv Paid By Ecc,Supplies & Services
04/08/2020,Exeter Property,779457,300,Spend To Save,Housing Access,Supplies & Services
04/08/2020,Exmouth Holiday Homes,779507,430,Spend To Save,Housing Access,Supplies & Services
04/08/2020,Exeter Property,779458,400,Spend To Save,Housing Advice,Supplies & Services
04/08/2020,Exmouth Holiday Homes,779509,430,Spend To Save,Housing Advice,Supplies & Services
05/08/2020,European Asbestos Services Ltd,779598,302,Asbestos Removal,Asbestos,Premises
05/08/2020,European Asbestos Services Ltd,779599,610,Asbestos Removal,Asbestos,Premises
05/08/2020,Great Western Hotel,779535,24400,Bed And Breakfast,Covid-19 Rough Sleepers Fund,Premises
05/08/2020,Mears Ltd,779537,96.92,Blocks Of Flat Repairs,General Maintenance,Premises
05/08/2020,Blue Frog Cleaning Services,779526,5484.41,Cleaning,Civic Centre,Premises
05/08/2020,Ashton Cleaning Services (Sw) Ltd,779546,487.5,Cleaning,The Haven,Premises
05/08/2020,Wider Plan Ltd,779145,6.19,Commission,Payroll,Supplies & Services
05/08/2020,C & P Contracting Solutions Ltd,779418,2250,Consultants Fees,General Management,Supplies & Services
05/08/2020,Global City Futures Ltd,776423,6706.53,Consultants Fees,Liveable Garden City,Supplies & Services
05/08/2020,Mears Ltd,779537,43.46,Contract Payments,Adaptations,Supplies & Services
05/08/2020,Clc Contractors Ltd,779295,12365,Contract Payments,Balcony Walkway Improvements,Supplies & Services
05/08/2020,Mears Ltd,779537,3640.25,Contract Payments,Estate Improvements,Supplies & Services
05/08/2020,Mears Ltd,779537,86.92,Contract Payments,Fire Risk Assessment Works,Supplies & Services
05/08/2020,Kier Construction Ltd,779439,32748.01,Contract Payments,St Loyes Extracare Scheme,Supplies & Services
05/08/2020,Vodafone,778172,2767.77,Data Line Rental,Strata Susp - Inv Paid By Ecc,Supplies & Services
05/08/2020,Asd Lighting Plc,779441,1361.82,Electrical Works - Communal,Prog'D Elec Re-Wiring General,Supplies & Services
05/08/2020,Asd Lighting Plc,779468,242,Electrical Works - Communal,Prog'D Elec Re-Wiring General,Supplies & Services
05/08/2020,Asd Lighting Plc,779469,222.09,Electrical Works - Communal,Prog'D Elec Re-Wiring General,Supplies & Services
05/08/2020,Asd Lighting Plc,779470,630,Electrical Works - Communal,Prog'D Elec Re-Wiring General,Supplies & Services
05/08/2020,E.On   (Electricity),777952,1906.09,Electricity,Car Parks,Premises
05/08/2020,E.On   (Electricity),777956,346.86,Electricity,Car Parks,Premises
05/08/2020,E.On   (Electricity),777958,775.79,Electricity,Car Parks,Premises
05/08/2020,E.On   (Electricity),779240,208.33,Electricity,Car Parks,Premises
05/08/2020,E.On   (Electricity),777944,2271.93,Electricity,Materials Reclamation Facility,Premises
05/08/2020,E.On   (Electricity),779235,2873.03,Electricity,Street Lighting - Assets,Premises
05/08/2020,Sodexo Motivation Solutions Uk,779294,756.61,Excel & Longservice Awards,Human Resources,Pay
05/08/2020,REDACTED PERSONAL DATA,778912,492,Exclusive Rights Of Burial,Cemeteries,Income
05/08/2020,Mears Ltd,779537,781.88,General Maintenance,Elec Testing/Reactive,Premises
05/08/2020,A1 Electrics,779426,500.57,General Maintenance,General Maintenance,Premises
05/08/2020,A1 Electrics,779620,334.45,General Maintenance,General Maintenance,Premises
05/08/2020,Glendale Grounds Management Ltd,779300,300,General Maintenance,General Maintenance,Premises
05/08/2020,Mears Ltd,779537,7597.04,General Maintenance,General Maintenance,Premises
05/08/2020,Propoint Southwest Ltd,779303,340,General Maintenance,General Maintenance,Premises
05/08/2020,Mears Ltd,779536,12380.49,General Maintenance,Repairs To Void Properties,Premises
05/08/2020,Thistle Insurance Services,779224,7574.65,Insurance - Contents Policy,Lettings & Leasehold,Premises
05/08/2020,Apple Central Taxis Ltd,779423,230.6,Other Expenses,Rapid Rehousing Pathway Fund,Supplies & Services
05/08/2020,Julian House,779445,3249.08,Other Expenses,Resettlement Strategy,Supplies & Services
05/08/2020,Sunshine Rentals Ltd,778896,446.25,Publications/Leaflets,Env Health Projects,Supplies & Services
05/08/2020,Livewest Homes Ltd (Formerly Liverty),779248,11010.54,Serviced Accommodation,Serviced Accommodation,Premises
05/08/2020,Harmony Fire Ltd,779625,320,Servicing Sprinklers,Service Contracts,Premises
05/08/2020,Julian House,779460,35070.5,Street Outreach Team Main Cont,Resettlement Strategy,Supplies & Services
05/08/2020,Hays Accountancy Personnel,779471,243.97,Temp.Contract-Agency Staff,Accountancy Services,Pay
05/08/2020,Hays Accountancy Personnel,777096,949.9,Temp.Contract-Agency Staff,Liveable Garden City,Pay
05/08/2020,Hays Accountancy Personnel,777639,949.9,Temp.Contract-Agency Staff,Liveable Garden City,Pay
05/08/2020,Hays Accountancy Personnel,778718,949.9,Temp.Contract-Agency Staff,Liveable Garden City,Pay
05/08/2020,Venn Group Ltd,779474,1102.41,Temp.Contract-Agency Staff,Reactive Repairs,Pay
06/08/2020,European Asbestos Services Ltd,779753,2557.6,Asbestos Removal,Asbestos,Premises
06/08/2020,The Best Connection Group Ltd,779420,2078.53,Casuals Waged-Agency Staff,Materials Reclamation Facility,Pay
06/08/2020,The Best Connection Group Ltd,779428,2080.12,Casuals Waged-Agency Staff,Public Realm Agency Costs,Pay
06/08/2020,Berry Recruitment,779424,478.78,Casuals Waged-Agency Staff,Waste Agency Costs,Pay
06/08/2020,Driver Hire Exeter Ltd,779419,650.83,Casuals Waged-Agency Staff,Waste Agency Costs,Pay
06/08/2020,Glen Cleaning,779554,249.75,Cleaning,Custom House Visitor Centre,Premises
06/08/2020,Bam Construction Ltd - Plant,779220,1672.6,"Clothing, Laundry, & Uniforms",Materials Reclamation Facility,Supplies & Services
06/08/2020,South West Water,778884,2483,Contract Payments,Laings Refurbishments,Supplies & Services
06/08/2020,E.On   (Electricity),777960,463.76,Electricity,Car Parks,Premises
06/08/2020,E.On   (Electricity),777961,1482.9,Electricity,Car Parks,Premises
06/08/2020,E.On   (Electricity),777945,294.7,Electricity,"The Ark Museum Store, Exton Rd",Premises
06/08/2020,Pmr Products Ltd,779643,210,Equipment Tools And Materials,Business Crime Reduction Unit,Supplies & Services
06/08/2020,Signs Express (Exeter),779238,415.1,Equipment Tools And Materials,Materials Reclamation Facility,Supplies & Services
06/08/2020,Experian Ltd,779588,544.67,Experian,Nndr Collection,Supplies & Services
06/08/2020,Envirovent Ltd,779430,721.03,General Maintenance,General Maintenance,Premises
06/08/2020,Wonford Community & Learning Centre,779421,600,Grants Issued,Covid 19 Community Initiatives,Supplies & Services
06/08/2020,Dolphin Lifts South West,779799,1840,Grants Issued,Disabled Facilities Grants,Supplies & Services
06/08/2020,Dickens Showrooms Ltd,779251,319.17,Grants Issued,Self-Employed Support,Supplies & Services
06/08/2020,Therm-Eco Ewi Ltd,779748,2000,Grants Issued,Warm Up Exeter,Supplies & Services
06/08/2020,Therm-Eco Ewi Ltd,779750,2000,Grants Issued,Warm Up Exeter,Supplies & Services
06/08/2020,Devon Tree Services,779626,1680,Hra Shrubs & Trees - Communal,Estate Maintenance,Premises
06/08/2020,Devon Tree Services,779628,240,Hra Shrubs & Trees - Communal,Estate Maintenance,Premises
06/08/2020,Devon Tree Services,779629,1680,Hra Shrubs & Trees - Communal,Estate Maintenance,Premises
06/08/2020,K S Fencing,778776,2346.69,Maintenance Of Equipment,Materials Reclamation Facility,Supplies & Services
06/08/2020,Civica Election Services Ltd,779798,255.23,Other Expenses,Electoral Registration,Supplies & Services
06/08/2020,Lda Design,778899,2000,Other Expenses,Liveable Garden City,Supplies & Services
06/08/2020,Wemco Ltd,779226,385,Planned Maintenance,Ramm,Premises
06/08/2020,Wemco Ltd,779227,838.75,Planned Maintenance,Ramm,Premises
06/08/2020,Home Connections Lettings Ltd,779617,7074,Software Licences/Support,Devon Home Choice,Supplies & Services
06/08/2020,Devon Tree Services,779631,960,Sub-Contractors,Arboricultural,Premises
06/08/2020,Building Recruitment Co Ltd,779674,18.94,Temp.Contract-Agency Staff,Cob Management,Pay
06/08/2020,Building Recruitment Co Ltd,779674,28.41,Temp.Contract-Agency Staff,Gf Hsg Property Management,Pay
06/08/2020,Building Recruitment Co Ltd,779675,465.83,Temp.Contract-Agency Staff,Planned Works,Pay
06/08/2020,James Andrews Recruitment Solutions Ltd,779788,1258.74,Temp.Contract-Agency Staff,Planned Works,Pay
06/08/2020,James Andrews Recruitment Solutions Ltd,779791,250.32,Temp.Contract-Agency Staff,Planned Works,Pay
06/08/2020,Building Recruitment Co Ltd,779672,956.25,Temp.Contract-Agency Staff,Reactive Repairs,Pay
06/08/2020,Building Recruitment Co Ltd,779673,407.08,Temp.Contract-Agency Staff,Reactive Repairs,Pay
06/08/2020,Building Recruitment Co Ltd,779674,899.61,Temp.Contract-Agency Staff,Reactive Repairs,Pay
06/08/2020,Building Recruitment Co Ltd,779675,465.83,Temp.Contract-Agency Staff,Reactive Repairs,Pay
06/08/2020,James Andrews Recruitment Solutions Ltd,779791,375.47,Temp.Contract-Agency Staff,Reactive Repairs,Pay
06/08/2020,Edenbrown Synergy,778869,1011,Temp.Contract-Agency Staff,Revenues Recovery,Pay
06/08/2020,Morgan Hunt Uk Ltd,779771,946.46,Temp.Contract-Agency Staff,Revenues Recovery,Pay
06/08/2020,The Oyster Partnership Ltd,778874,928,Temp.Contract-Agency Staff,Revenues Recovery,Pay
06/08/2020,South West Water Business,777540,778.34,Water,Allotments,Premises
07/08/2020,REDACTED PERSONAL DATA,779842,4185,Bed And Breakfast,Covid-19 Rough Sleepers Fund,Premises
07/08/2020,Berry Recruitment,779461,670.07,Casuals Waged-Agency Staff,Public Realm Agency Costs,Pay
07/08/2020,W B Employment Ltd,778722,1070.6,Casuals Waged-Agency Staff,Public Realm Agency Costs,Pay
07/08/2020,Lavat Consulting Ltd,779005,360,Conference/Seminars Costs,Accountancy Services,Supplies & Services
07/08/2020,Bloom Procurement Services,778791,5000,Consultants Fees,Leisure Complex - Build,Supplies & Services
07/08/2020,Baltimore Consulting Ltd,779600,3125,Consultants Fees,New Build Site Investigations,Supplies & Services
07/08/2020,Baltimore Consulting Ltd,779601,3562.5,Consultants Fees,Planning,Supplies & Services
07/08/2020,Edf Energy,779915,229.97,Electricity,Commercial Properties,Premises
07/08/2020,Southern Electric,777827,293.67,Electricity,Facilities Management,Premises
07/08/2020,Southern Electric,777826,4884.68,Electricity,S Electric A/C 04748 69417,Premises
07/08/2020,Southern Electric,777828,2550.12,Electricity,S Electric A/C 24695 65115,Premises
07/08/2020,Signs Express (Exeter),779840,318.39,Equipment Tools And Materials,Procurement,Supplies & Services
07/08/2020,Devon Tree Services,779630,960,Hra Shrubs & Trees - Communal,Estate Maintenance,Premises
07/08/2020,Devon Tree Services,779633,570,Hra Shrubs & Trees - Communal,Estate Maintenance,Premises
07/08/2020,Devon Tree Services,779846,480,Hra Shrubs & Trees - Communal,Estate Maintenance,Premises
07/08/2020,Devon Tree Services,779925,720,Hra Shrubs & Trees - Communal,Estate Maintenance,Premises
07/08/2020,Devon Tree Services,779926,480,Hra Shrubs & Trees - Communal,Estate Maintenance,Premises
07/08/2020,Devon Tree Services,779927,480,Hra Shrubs & Trees - Communal,Estate Maintenance,Premises
07/08/2020,Devon Tree Services,779928,480,Hra Shrubs & Trees - Communal,Estate Maintenance,Premises
07/08/2020,Devon Tree Services,779930,2280,Hra Shrubs & Trees - Communal,Estate Maintenance,Premises
07/08/2020,Devon Tree Services,779931,1200,Hra Shrubs & Trees - Communal,Estate Maintenance,Premises
07/08/2020,3adapt Ltd,779665,3400,Other Expenses,Liveable Garden City,Supplies & Services
07/08/2020,3adapt Ltd,779666,4250,Other Expenses,Liveable Garden City,Supplies & Services
07/08/2020,J Price Consulting Ltd,779222,1980,Other Expenses,Liveable Garden City,Supplies & Services
07/08/2020,Trade Refuse & Salvage Handlers (Trash),779530,297.2,Paper Buy In,Materials & Goods For Resale,Supplies & Services
07/08/2020,Reach Publishing Services,779745,389.61,Public Notices,Planning,Supplies & Services
07/08/2020,Devon Tree Services,779930,1050,Sub-Contractors,Arboricultural,Premises
07/08/2020,Sound Events Ltd,779292,2515,Sub-Contractors,District Council Elections,Premises
07/08/2020,H & S Transport Ltd,779662,7430,Sub-Contractors,Signs & Sundries - Assets,Premises
07/08/2020,Jtt Contracting Ltd,776904,4367.32,Sub-Contractors,Signs & Sundries - Assets,Premises
07/08/2020,A1 Electrics,779754,3460.32,Sub-Contractors,Street Lighting - Assets,Premises
07/08/2020,The Oyster Partnership Ltd,779913,1230,Temp.Contract-Agency Staff,Planning,Pay
10/08/2020,Imperial Polythene Products Ltd,778481,1683.75,Bins & Recycling Boxes,Green Waste Collection Service,Supplies & Services
10/08/2020,Mgb Plastics Ltd,779910,4905,Bins & Recycling Boxes,Refuse Collection,Supplies & Services
10/08/2020,Mgb Plastics Ltd,779911,4905,Bins & Recycling Boxes,Refuse Collection,Supplies & Services
10/08/2020,Focus Consultants 2010 Llp,780084,2635,Consultants Fees,Ramm Legal Costs,Supplies & Services
10/08/2020,Echelon Consultancy Ltd,780066,1125,Consultants Fees,Reactive Repairs,Supplies & Services
10/08/2020,Echelon Consultancy Ltd,780067,1875,Consultants Fees,Reactive Repairs,Supplies & Services
10/08/2020,Echelon Consultancy Ltd,780068,1875,Consultants Fees,Reactive Repairs,Supplies & Services
10/08/2020,Devon County Council,779225,18684.45,Contract Payments,Sport England Pathfinder,Supplies & Services
10/08/2020,E.On   (Electricity),777953,348.55,Electricity,Older Persons Accommodation,Premises
10/08/2020,Southern Electric,777830,7123.41,Electricity,S Electric A/C 63013 09118,Premises
10/08/2020,Southern Electric,777831,4136.89,Electricity,S Electric A/C 70827 98117,Premises
10/08/2020,Exeter Community Initiatives,779954,971.3,Grants Issued,Covid 19 Community Initiatives,Supplies & Services
10/08/2020,Stoke Hill Community Association,779955,1000,Grants Issued,Covid 19 Community Initiatives,Supplies & Services
10/08/2020,Dolphin Lifts South West,779947,4630,Grants Issued,Disabled Facilities Grants,Supplies & Services
10/08/2020,Dolphin Lifts South West,779956,3750,Grants Issued,Disabled Facilities Grants,Supplies & Services
10/08/2020,Carbon Saving Group Ltd,779953,1785,Grants Issued,Warm Up Exeter,Supplies & Services
10/08/2020,Cobwebs,779241,16606.5,Hra Routine Cleaning Contract,Customer Relations,Premises
10/08/2020,Devon Tree Services,780040,930,Hra Shrubs & Trees - Communal,Estate Maintenance,Premises
10/08/2020,Devon Tree Services,780041,1590,Hra Shrubs & Trees - Communal,Estate Maintenance,Premises
10/08/2020,Devon Tree Services,780042,720,Hra Shrubs & Trees - Communal,Estate Maintenance,Premises
10/08/2020,Devon Tree Services,780043,300,Hra Shrubs & Trees - Communal,Estate Maintenance,Premises
10/08/2020,Devon Tree Services,780044,420,Hra Shrubs & Trees - Communal,Estate Maintenance,Premises
10/08/2020,Devon Tree Services,780046,2145,Hra Shrubs & Trees - Communal,Estate Maintenance,Premises
10/08/2020,Devon Tree Services,780050,450,Hra Shrubs & Trees - Communal,Estate Maintenance,Premises
10/08/2020,Devon Tree Services,780052,240,Hra Shrubs & Trees - Communal,Estate Maintenance,Premises
10/08/2020,Devon Tree Services,780078,1680,Hra Shrubs & Trees - Communal,Estate Maintenance,Premises
10/08/2020,Devon Tree Services,780079,5000,Hra Shrubs & Trees - Communal,Estate Maintenance,Premises
10/08/2020,Devon Tree Services,780080,1440,Hra Shrubs & Trees - Communal,Estate Maintenance,Premises
10/08/2020,Devon Tree Services,780083,150,Hra Shrubs & Trees - Communal,Estate Maintenance,Premises
10/08/2020,Thomson Reuters,780059,265,Publications/Leaflets,Electoral Registration,Supplies & Services
10/08/2020,Home Group Ltd,779639,1070.65,Rents,Capital payment,Premises
10/08/2020,Mig Security & Events Ltd,780032,2074.52,Security Patrol,Car Parks,Premises
10/08/2020,Mig Security & Events Ltd,780053,210.32,Security Patrol,Car Parks,Premises
10/08/2020,Daniels Healthcare Ltd,779785,1677.6,Sharp Box,Refuse Collection,Supplies & Services
10/08/2020,Intercard Ltd,779917,528.04,Stationery,Income Recovery,Supplies & Services
10/08/2020,Devon Tree Services,780046,1095,Sub-Contractors,Arboricultural,Premises
10/08/2020,Devon Tree Services,780047,1200,Sub-Contractors,Arboricultural,Premises
10/08/2020,Devon Tree Services,780048,420,Sub-Contractors,Arboricultural,Premises
10/08/2020,Devon Tree Services,780049,570,Sub-Contractors,Arboricultural,Premises
10/08/2020,Devon Tree Services,780077,360,Sub-Contractors,Arboricultural,Premises
10/08/2020,Devon Tree Services,780079,1263.5,Sub-Contractors,Arboricultural,Premises
10/08/2020,Devon Tree Services,780083,120,Sub-Contractors,Arboricultural,Premises
10/08/2020,Future Industrial Services Ltd,779544,1885.31,Sub-Contractors,Oakwood House,Premises
10/08/2020,South West Water,778885,2483,Water,Laings Refurbishments,Premises
11/08/2020,Cieh,780030,800,Advertising Of Posts,Environmental Quality Team,Pay
11/08/2020,REDACTED PERSONAL DATA,780061,2205,Bed And Breakfast,Bed And Breakfast,Premises
11/08/2020,Ashton Cleaning Services (Sw) Ltd,779547,507.5,Cleaning,Glencoe,Premises
11/08/2020,Ashton Cleaning Services (Sw) Ltd,779553,525,Cleaning,Queens Road,Premises
11/08/2020,Wider Plan Ltd,780233,8.32,Commission,Payroll,Supplies & Services
11/08/2020,Asd Lighting Plc,779795,378,Electrical Works - Communal,Prog'D Elec Re-Wiring General,Supplies & Services
11/08/2020,Mears Ltd,779756,703.82,General Maintenance,Elec Testing/Reactive,Premises
11/08/2020,Envirovent Ltd,779837,820.15,General Maintenance,General Maintenance,Premises
11/08/2020,Mears Ltd,779756,2710.74,General Maintenance,General Maintenance,Premises
11/08/2020,Mears Ltd,779755,5385.25,General Maintenance,Repairs To Void Properties,Premises
11/08/2020,Carbon Saving Group Ltd,779952,1575,Grants Issued,Warm Up Exeter,Supplies & Services
11/08/2020,Cic,776180,480,Medical Inspections,Human Resources,Pay
11/08/2020,REDACTED PERSONAL DATA,780297,650,Spend To Save,Housing Access,Supplies & Services
11/08/2020,Market Carpets,780073,810.83,Tenants Removal And Legal Exp,Reactive Repairs,Supplies & Services
12/08/2020,Simon Bastone Associates Ltd,779429,750,Aim Lease Requirements,Miscellaneous Properties,Premises
12/08/2020,Telstar Guest House Ltd,780255,827.62,Bed And Breakfast,Bed And Breakfast,Premises
12/08/2020,Telstar Guest House Ltd,780256,1606.67,Bed And Breakfast,Bed And Breakfast,Premises
12/08/2020,Signs Express (Exeter),770240,246.84,Betterment,Parks And Playing Fields,Transport
12/08/2020,Mears Ltd,778335,282.24,Blocks Of Flat Repairs,General Maintenance,Premises
12/08/2020,Mears Ltd,780285,1391.82,Blocks Of Flat Repairs,General Maintenance,Premises
12/08/2020,3c Payment Uk Ltd,780039,1183.2,Card Payment Charges,Car Parks,Supplies & Services
12/08/2020,Recruitment Solutions (Sw) Ltd,779789,1625.63,Casuals Waged-Agency Staff,Materials Reclamation Facility,Pay
12/08/2020,Concept Staffing Ltd,779545,631.75,Casuals Waged-Agency Staff,Public Realm Agency Costs,Pay
12/08/2020,Recruitment Solutions (Sw) Ltd,779790,982.65,Casuals Waged-Agency Staff,Public Realm Agency Costs,Pay
12/08/2020,The Best Connection Group Ltd,779622,2110.24,Casuals Waged-Agency Staff,Public Realm Agency Costs,Pay
12/08/2020,Backline Logistic Support Services Ltd,780028,609.38,Casuals Waged-Agency Staff,Waste Agency Costs,Pay
12/08/2020,Backline Logistic Support Services Ltd,780029,601.25,Casuals Waged-Agency Staff,Waste Agency Costs,Pay
12/08/2020,Gap Personnel,780141,457.32,Casuals Waged-Agency Staff,Waste Agency Costs,Pay
12/08/2020,Recruitment Solutions (Sw) Ltd,779786,647.03,Casuals Waged-Agency Staff,Waste Agency Costs,Pay
12/08/2020,Wise Employment,780138,397.66,Casuals Waged-Agency Staff,Waste Agency Costs,Pay
12/08/2020,Secureforce Uk Ltd,780035,427.8,Central Alarm Service,Ramm,Premises
12/08/2020,Secureforce Uk Ltd,780036,370,Central Alarm Service,Ramm,Premises
12/08/2020,Defensor Maintenance Ltd,779637,761,Central Alarm Service,"The Ark Museum Store, Exton Rd",Premises
12/08/2020,Defensor Maintenance Ltd,779638,291.2,Central Alarm Service,"The Ark Museum Store, Exton Rd",Premises
12/08/2020,Mears Ltd,778335,143.46,Contract Payments,Adaptations,Supplies & Services
12/08/2020,Mears Ltd,778335,549.43,Contract Payments,Common Area Footpth/Wall Imps,Supplies & Services
12/08/2020,Devon Wildlife Enterprises Ltd,780361,3400,Contract Payments,Energy Saving Projects,Supplies & Services
12/08/2020,West Country Vending Service Ltd,780251,1272.09,Equipment Rental,Civic Centre,Supplies & Services
12/08/2020,Specialist Fleet Services Ltd,776857,21480.12,Fleet Fpm Contract Maintenance,Fleet Contract Hire,Transport
12/08/2020,Specialist Fleet Services Ltd,777435,658.8,Fleet Supply & Maintenance,Fleet Contract Hire,Transport
12/08/2020,Mears Ltd,778335,258.02,General Maintenance,Elec Testing/Reactive,Premises
12/08/2020,Mears Ltd,780285,3153.14,General Maintenance,Elec Testing/Reactive,Premises
12/08/2020,Mears Ltd,778335,11065.05,General Maintenance,General Maintenance,Premises
12/08/2020,Mears Ltd,780285,16776.8,General Maintenance,General Maintenance,Premises
12/08/2020,Mears Ltd,780286,2348.17,General Maintenance,General Maintenance,Premises
12/08/2020,Mears Ltd,780290,41147.75,General Maintenance,Repairs To Void Properties,Premises
12/08/2020,Mears Ltd,778335,204.1,Glazing,General Maintenance,Premises
12/08/2020,Trump Engineering Ltd,779783,277.5,Maintenance Of Equipment,Materials Reclamation Facility,Supplies & Services
12/08/2020,Ont Electrical Contractors,780350,952.2,Maintenance Of Equipment,Safesleep,Supplies & Services
12/08/2020,Zep Uk,780252,290,Materials,Parks And Playing Fields,Supplies & Services
12/08/2020,Patronus Security Uk Ltd,780258,2847.5,Other Expenses,Covid-19 Rough Sleepers Fund,Supplies & Services
12/08/2020,Patronus Security Uk Ltd,780261,2856,Other Expenses,Covid-19 Rough Sleepers Fund,Supplies & Services
12/08/2020,Patronus Security Uk Ltd,780262,862.75,Other Expenses,Covid-19 Rough Sleepers Fund,Supplies & Services
12/08/2020,Patronus Security Uk Ltd,780263,217.5,Other Expenses,Covid-19 Rough Sleepers Fund,Supplies & Services
12/08/2020,Patronus Security Uk Ltd,780266,2983.5,Other Expenses,Covid-19 Rough Sleepers Fund,Supplies & Services
12/08/2020,Patronus Security Uk Ltd,780284,891.75,Other Expenses,Covid-19 Rough Sleepers Fund,Supplies & Services
12/08/2020,Hvp Security Shutters Ltd,778702,736,Planned Maintenance,Ramm,Premises
12/08/2020,Whistl Uk Ltd,780349,529.99,Postage/Stamps,Mail,Supplies & Services
12/08/2020,Casepak,780069,4390.61,Processing Comingled Materials,Materials Reclamation Facility,Supplies & Services
12/08/2020,Masons Kings,777517,489.04,Reactive Repairs,Parks Operational Overheads,Transport
12/08/2020,Mears Ltd,780285,43.46,Repairs To Hand Back Prop,Psl Properties,Premises
12/08/2020,Hot Stuff Metal Works,780302,885,Sub-Contractors,Canal,Premises
12/08/2020,Hays Accountancy Personnel,780237,1166.17,Temp.Contract-Agency Staff,Planned Works,Pay
12/08/2020,Hays Accountancy Personnel,780240,244.2,Temp.Contract-Agency Staff,Planned Works,Pay
12/08/2020,Venn Group Ltd,780144,245.85,Temp.Contract-Agency Staff,Planned Works,Pay
12/08/2020,Hays Accountancy Personnel,780239,848.1,Temp.Contract-Agency Staff,Reactive Repairs,Pay
12/08/2020,Hays Accountancy Personnel,780240,366.3,Temp.Contract-Agency Staff,Reactive Repairs,Pay
12/08/2020,Venn Group Ltd,780143,1075.68,Temp.Contract-Agency Staff,Reactive Repairs,Pay
12/08/2020,Venn Group Ltd,780144,368.78,Temp.Contract-Agency Staff,Reactive Repairs,Pay
12/08/2020,Mears Ltd,780290,6564.46,Void Bathroom Replacements,Bathroom Replacements,Supplies & Services
12/08/2020,Mears Ltd,780290,7154.28,Void Kitchen Replacements,Kitchen Replacements,Supplies & Services
13/08/2020,I J Cannings & Son Limited,779919,649.36,Aim Lease Requirements,Miscellaneous Properties,Premises
13/08/2020,Philip Steele Building Equipment Ltd,779793,931.06,Aim Lease Requirements,Miscellaneous Properties,Premises
13/08/2020,Arque Ltd,778625,5856.09,Aim Reactive Repairs,Property Maintenance,Premises
13/08/2020,Radiate Plumbing + Heating Services Ltd,779455,250.75,Aim Reactive Repairs,Property Maintenance,Premises
13/08/2020,First Class Builders Ltd,780492,3285,Bathroom Adaptations,Bathroom Replacements,Supplies & Services
13/08/2020,Nute Plumbing Services Ltd,780417,6114,Bathroom Adaptations,Bathroom Replacements,Supplies & Services
13/08/2020,Mears Ltd,780412,126.92,Blocks Of Flat Repairs,General Maintenance,Premises
13/08/2020,Exeter & District Funeral Service,779838,1013,Burial Expenses-Section 46,Cemeteries,Supplies & Services
13/08/2020,Exeter & District Funeral Service,779839,1013,Burial Expenses-Section 46,Cemeteries,Supplies & Services
13/08/2020,Matching Staff Solutions,780225,456.95,Casuals Waged-Agency Staff,Public Realm Agency Costs,Pay
13/08/2020,W B Employment Ltd,780242,1070.6,Casuals Waged-Agency Staff,Public Realm Agency Costs,Pay
13/08/2020,Bloom Procurement Services,778804,7000,Consultants Fees,Leisure Complex - Build,Supplies & Services
13/08/2020,REDACTED PERSONAL DATA,780234,488.19,Consultants Fees,Museum Projects,Supplies & Services
13/08/2020,Baltimore Consulting Ltd,780497,3375,Consultants Fees,Planning,Supplies & Services
13/08/2020,Construction Planning Services Ltd,778622,550,Consultants Fees,Ramm Legal Costs,Supplies & Services
13/08/2020,First Class Builders Ltd,780486,8775.24,Contract Payments,Bathroom Replacements,Supplies & Services
13/08/2020,Enelco Ltd,780535,104943.9,Contract Payments,Laings Refurbishments,Supplies & Services
13/08/2020,Se3 Design Ltd,779162,3600,Contract Payments,Leisure Complex - Build,Supplies & Services
13/08/2020,Kier Construction Ltd,780243,147368.85,Contract Payments,Riverside,Supplies & Services
13/08/2020,Bartec Auto Id Ltd,779834,430,Equipment Tools And Materials,Refuse Collection,Supplies & Services
13/08/2020,Specialist Fleet Services Ltd,777313,598.77,Fleet Supply & Maintenance,Fleet Contract Hire,Transport
13/08/2020,Specialist Fleet Services Ltd,777314,895.33,Fleet Supply & Maintenance,Fleet Contract Hire,Transport
13/08/2020,Specialist Fleet Services Ltd,777315,895.33,Fleet Supply & Maintenance,Fleet Contract Hire,Transport
13/08/2020,Specialist Fleet Services Ltd,777316,598.77,Fleet Supply & Maintenance,Fleet Contract Hire,Transport
13/08/2020,Specialist Fleet Services Ltd,777317,1437.7,Fleet Supply & Maintenance,Fleet Contract Hire,Transport
13/08/2020,Specialist Fleet Services Ltd,777318,641.74,Fleet Supply & Maintenance,Fleet Contract Hire,Transport
13/08/2020,Specialist Fleet Services Ltd,777319,895.33,Fleet Supply & Maintenance,Fleet Contract Hire,Transport
13/08/2020,Specialist Fleet Services Ltd,777323,500.17,Fleet Supply & Maintenance,Fleet Contract Hire,Transport
13/08/2020,Specialist Fleet Services Ltd,774289,620.8,Fleet Supply & Maintenance,Parks And Playing Fields,Transport
13/08/2020,Specialist Fleet Services Ltd,777320,620.8,Fleet Supply & Maintenance,Parks And Playing Fields,Transport
13/08/2020,Specialist Fleet Services Ltd,777338,620.8,Fleet Supply & Maintenance,Parks And Playing Fields,Transport
13/08/2020,Mears Ltd,780412,1392.82,General Maintenance,Elec Testing/Reactive,Premises
13/08/2020,First Class Builders Ltd,780416,2541,General Maintenance,General Maintenance,Premises
13/08/2020,Market Carpets,780363,444.17,General Maintenance,General Maintenance,Premises
13/08/2020,M A Vernon Ltd,780268,350,General Maintenance,General Maintenance,Premises
13/08/2020,Mears Ltd,780412,9731.59,General Maintenance,General Maintenance,Premises
13/08/2020,Nute Plumbing Services Ltd,780378,465,General Maintenance,General Maintenance,Premises
13/08/2020,Streetmaster (South Wales) Ltd,779047,2685,General Maintenance,Low Maint & Painting Flats,Premises
13/08/2020,M A Vernon Ltd,780260,750,General Maintenance,Repairs To Void Properties,Premises
13/08/2020,M A Vernon Ltd,780366,950,General Maintenance,Repairs To Void Properties,Premises
13/08/2020,M A Vernon Ltd,780368,1450,General Maintenance,Repairs To Void Properties,Premises
13/08/2020,M A Vernon Ltd,780369,1850,General Maintenance,Repairs To Void Properties,Premises
13/08/2020,Mears Ltd,780412,585.84,Glazing,General Maintenance,Premises
13/08/2020,Therm-Eco Ewi Ltd,780509,2000,Grants Issued,Warm Up Exeter,Supplies & Services
13/08/2020,Phoenix Equine,780487,255,Licences,Premises Licensing,Income
13/08/2020,Wonder Associates Ltd,778149,430,Marketing,Communications & Marketing,Supplies & Services
13/08/2020,Beacon Aerial Photography,780137,285,Marketing,Liveable Garden City,Supplies & Services
13/08/2020,Zep Uk,780554,579,Materials,Public Conveniences,Supplies & Services
13/08/2020,Patronus Security Uk Ltd,780259,935.25,Other Expenses,Covid-19 Rough Sleepers Fund,Supplies & Services
13/08/2020,Perfect Circle Jv Ltd,779787,26631.49,Other Expenses,Liveable Garden City,Supplies & Services
13/08/2020,University Of Exeter,780226,4835,Other Expenses,Liveable Garden City,Supplies & Services
13/08/2020,I J Cannings & Son Limited,779921,780.06,Pmf Compliance,Property Maintenance,Premises
13/08/2020,I J Cannings & Son Limited,779935,977.15,Pmf Compliance,Property Maintenance,Premises
13/08/2020,Turntable Furniture Project,780296,842.35,Recycling Credits,Materials & Goods For Resale,Supplies & Services
13/08/2020,Venn Group Ltd,779477,814.05,Temp.Contract-Agency Staff,Planning,Pay
13/08/2020,Edenbrown Synergy,779909,933,Temp.Contract-Agency Staff,Revenues Recovery,Pay
13/08/2020,Morgan Hunt Uk Ltd,779907,1032.02,Temp.Contract-Agency Staff,Revenues Recovery,Pay
13/08/2020,Morgan Hunt Uk Ltd,779908,1178.82,Temp.Contract-Agency Staff,Revenues Recovery,Pay
13/08/2020,The Oyster Partnership Ltd,779914,1073,Temp.Contract-Agency Staff,Revenues Recovery,Pay
13/08/2020,The Oyster Partnership Ltd,779912,937.5,Temp.Contract-Agency Staff,Rough Sleeping Initiative,Pay
14/08/2020,Mears Ltd,780557,163.54,Blocks Of Flat Repairs,General Maintenance,Premises
14/08/2020,Mecal Ltd,780637,605,Boat Maintenance,Canal,Transport
14/08/2020,Leroy Funeral Service,779017,400,Burial Expenses-Section 46,Community Inclusion & Involv'T,Supplies & Services
14/08/2020,Recruitment Solutions (Sw) Ltd,780537,2167.5,Casuals Waged-Agency Staff,Materials Reclamation Facility,Pay
14/08/2020,Berry Recruitment,780534,543.3,Casuals Waged-Agency Staff,Public Realm Agency Costs,Pay
14/08/2020,Concept Staffing Ltd,780294,1152.83,Casuals Waged-Agency Staff,Public Realm Agency Costs,Pay
14/08/2020,Recruitment Solutions (Sw) Ltd,780538,874.8,Casuals Waged-Agency Staff,Public Realm Agency Costs,Pay
14/08/2020,The Best Connection Group Ltd,780303,1671.85,Casuals Waged-Agency Staff,Public Realm Agency Costs,Pay
14/08/2020,Wise Employment,780136,849.24,Casuals Waged-Agency Staff,Public Realm Agency Costs,Pay
14/08/2020,Wise Employment,780541,943.6,Casuals Waged-Agency Staff,Public Realm Agency Costs,Pay
14/08/2020,Wise Employment,773879,498.76,Casuals Waged-Agency Staff,Waste Agency Costs,Pay
14/08/2020,Bloom Procurement Services,780295,2310,Consultants Fees,Leisure Complex - Build,Supplies & Services
14/08/2020,Skinner Construction Ltd,780536,152499.33,Contract Payments,Bovemoors Lane,Supplies & Services
14/08/2020,Kier Construction Ltd,780634,610890.67,Contract Payments,Bus Station Construction,Supplies & Services
14/08/2020,Mears Ltd,780557,260.61,Contract Payments,Common Area Footpth/Wall Imps,Supplies & Services
14/08/2020,First Class Builders Ltd,780489,8279,Contract Payments,Kitchen Replacements,Supplies & Services
14/08/2020,Wsp Uk Ltd,779609,443.73,Contract Payments,Leisure Complex - Build,Supplies & Services
14/08/2020,Bt Redcare,779924,1652.53,Data Line Rental,Cctv Control Room,Supplies & Services
14/08/2020,Bt Redcare,780245,1325.64,Data Line Rental,Cctv Control Room,Supplies & Services
14/08/2020,Mears Ltd,780557,65.19,Electrical Works - Communal,Prog'D Elec Re-Wiring General,Supplies & Services
14/08/2020,South West Hire + Sales Ltd,775940,345.02,Equipment Tools And Materials,Canal,Supplies & Services
14/08/2020,REDACTED PERSONAL DATA,780299,1200,Exclusive Rights Of Burial,Cemeteries,Income
14/08/2020,First Class Builders Ltd,780413,378,General Maintenance,Elec Testing/Reactive,Premises
14/08/2020,Mears Ltd,780557,1606.18,General Maintenance,Elec Testing/Reactive,Premises
14/08/2020,First Class Builders Ltd,780414,276,General Maintenance,General Maintenance,Premises
14/08/2020,Mears Ltd,780557,3740.76,General Maintenance,General Maintenance,Premises
14/08/2020,Mears Ltd,780555,5432.22,General Maintenance,Repairs To Void Properties,Premises
14/08/2020,Mears Ltd,780557,21.73,Glazing,General Maintenance,Premises
14/08/2020,Dolphin Lifts South West,780672,5010,Grants Issued,Disabled Facilities Grants,Supplies & Services
14/08/2020,Dolphin Lifts South West,780673,5356,Grants Issued,Disabled Facilities Grants,Supplies & Services
14/08/2020,Bloom Procurement Services,780748,6525,Grants Issued,St Loyes Extracare Scheme,Supplies & Services
14/08/2020,Bloom Procurement Services,780749,6525,Grants Issued,St Loyes Extracare Scheme,Supplies & Services
14/08/2020,Therm-Eco Ewi Ltd,780641,2000,Grants Issued,Warm Up Exeter,Supplies & Services
14/08/2020,Therm-Eco Ewi Ltd,780642,1786,Grants Issued,Warm Up Exeter,Supplies & Services
14/08/2020,Norfloat International Ltd,778870,247.03,Materials For Buoys,Mooring Repairs,Premises
14/08/2020,Purchase Power,780553,1013,Postage/Stamps,Mail,Supplies & Services
14/08/2020,Building Recruitment Co Ltd,780503,18.88,Temp.Contract-Agency Staff,Cob Management,Pay
14/08/2020,Building Recruitment Co Ltd,780503,28.31,Temp.Contract-Agency Staff,Gf Hsg Property Management,Pay
14/08/2020,Building Recruitment Co Ltd,780505,465.83,Temp.Contract-Agency Staff,Planned Works,Pay
14/08/2020,Hays Accountancy Personnel,780544,1060.42,Temp.Contract-Agency Staff,Planned Works,Pay
14/08/2020,James Andrews Recruitment Solutions Ltd,780501,1258.74,Temp.Contract-Agency Staff,Planned Works,Pay
14/08/2020,James Andrews Recruitment Solutions Ltd,780502,299.59,Temp.Contract-Agency Staff,Planned Works,Pay
14/08/2020,The Oyster Partnership Ltd,780543,1230,Temp.Contract-Agency Staff,Planning,Pay
14/08/2020,Building Recruitment Co Ltd,780503,896.62,Temp.Contract-Agency Staff,Reactive Repairs,Pay
14/08/2020,Building Recruitment Co Ltd,780504,981.75,Temp.Contract-Agency Staff,Reactive Repairs,Pay
14/08/2020,Building Recruitment Co Ltd,780505,465.83,Temp.Contract-Agency Staff,Reactive Repairs,Pay
14/08/2020,Building Recruitment Co Ltd,780506,1015.59,Temp.Contract-Agency Staff,Reactive Repairs,Pay
14/08/2020,James Andrews Recruitment Solutions Ltd,780502,449.39,Temp.Contract-Agency Staff,Reactive Repairs,Pay
14/08/2020,The Oyster Partnership Ltd,780542,937.5,Temp.Contract-Agency Staff,Rough Sleeping Initiative,Pay
14/08/2020,South West Water Business,780065,360.47,Trade Effluent Charges,Refuse Collection,Premises
14/08/2020,South West Water Business,780058,520.01,Water,Oakwood House,Premises
15/08/2020,Travelodge,T00013,5487.83,Temporary Accommodation,Temporary Accommodation,Supplies & Services
17/08/2020,Bmf Secret Recipe Ltd,780837,2500,Businesses Provides <10k,La Discretionary Grants Fund,Supplies & Services
17/08/2020,Network Merchants Ltd (Formerly Creditcall),779615,655.83,Card Payment Charges,Car Parks,Supplies & Services
17/08/2020,Backline Logistic Support Services Ltd,780351,601.25,Casuals Waged-Agency Staff,Waste Agency Costs,Pay
17/08/2020,Berry Recruitment,780300,478.78,Casuals Waged-Agency Staff,Waste Agency Costs,Pay
17/08/2020,Concept Staffing Ltd,779602,911.82,Casuals Waged-Agency Staff,Waste Agency Costs,Pay
17/08/2020,Matching Staff Solutions,780298,587.56,Casuals Waged-Agency Staff,Waste Agency Costs,Pay
17/08/2020,Lavat Consulting Ltd,780681,14400,Consultants Fees,Accountancy Services,Supplies & Services
17/08/2020,Clc Contractors Ltd,780533,4304.03,Contract Payments,Door Replacements,Supplies & Services
17/08/2020,Hot Stuff Metal Works,780682,870,Contract Payments,Kings Arms Bridge,Supplies & Services
17/08/2020,Kier Construction Ltd,780684,996175.89,Contract Payments,Leisure Complex - Build,Supplies & Services
17/08/2020,Mach Acoustics Ltd,780650,1199.68,Contract Payments,Vaughan Road,Supplies & Services
17/08/2020,Se3 Design Ltd,779018,391.2,Contract Payments,Vaughan Road,Supplies & Services
17/08/2020,Mach Acoustics Ltd,780650,640.32,Contract Payments,Vaughan Road Ecl Ltd,Supplies & Services
17/08/2020,Se3 Design Ltd,779018,208.8,Contract Payments,Vaughan Road Ecl Ltd,Supplies & Services
17/08/2020,Bloom Procurement Services,780548,2000,Contract Payments,Whipton (Vaughan Road),Supplies & Services
17/08/2020,Clc Contractors Ltd,780533,25833.51,Contract Payments,Window Replacements,Supplies & Services
17/08/2020,Exeter Canal And Quay Trust,779269,442,Equipment Rental,Cctv Control Room,Supplies & Services
17/08/2020,Specialist Fleet Services Ltd,774236,620.8,Fleet Supply & Maintenance,Cemeteries - Operational,Transport
17/08/2020,Specialist Fleet Services Ltd,774231,484,Fleet Supply & Maintenance,Fleet Contract Hire,Transport
17/08/2020,Specialist Fleet Services Ltd,775668,601.36,Fleet Supply & Maintenance,Fleet Contract Hire,Transport
17/08/2020,Specialist Fleet Services Ltd,775675,601.36,Fleet Supply & Maintenance,Fleet Contract Hire,Transport
17/08/2020,Specialist Fleet Services Ltd,777122,415.84,Fleet Supply & Maintenance,Fleet Contract Hire,Transport
17/08/2020,Specialist Fleet Services Ltd,777339,3861.65,Fleet Supply & Maintenance,Fleet Contract Hire,Transport
17/08/2020,Specialist Fleet Services Ltd,777343,4124.88,Fleet Supply & Maintenance,Fleet Contract Hire,Transport
17/08/2020,Specialist Fleet Services Ltd,777436,601.36,Fleet Supply & Maintenance,Fleet Contract Hire,Transport
17/08/2020,Specialist Fleet Services Ltd,777437,601.36,Fleet Supply & Maintenance,Fleet Contract Hire,Transport
17/08/2020,Specialist Fleet Services Ltd,779483,1147.53,Fleet Supply & Maintenance,Fleet Contract Hire,Transport
17/08/2020,Mears Ltd,780753,398.88,Floor Tiles,General Maintenance,Premises
17/08/2020,Liberty Gas Group Ltd,780739,5120.26,Gas & Central Heating,Service Contracts,Premises
17/08/2020,Liberty Gas Group Ltd,780741,17957.16,Gas & Central Heating,Service Contracts,Premises
17/08/2020,Liberty Gas Group Ltd,780747,24790.17,Gas & Central Heating,Service Contracts,Premises
17/08/2020,Mears Ltd,780753,100.41,General Maintenance,Elec Testing/Reactive,Premises
17/08/2020,First Class Builders Ltd,780751,498,General Maintenance,General Maintenance,Premises
17/08/2020,Mears Ltd,780753,2567.13,General Maintenance,General Maintenance,Premises
17/08/2020,Premier Roofing Contractors Ltd,779589,960,General Maintenance,General Maintenance,Premises
17/08/2020,Clc Contractors Ltd,780533,9822.7,General Maintenance,Low Maint & Painting Flats,Premises
17/08/2020,Cobwebs,780490,885,General Maintenance,Repairs To Void Properties,Premises
17/08/2020,Mears Ltd,780754,1465.18,General Maintenance,Repairs To Void Properties,Premises
17/08/2020,Bloom Procurement Services,777807,20525,Grants Issued,St Loyes Extracare Scheme,Supplies & Services
17/08/2020,Integrated Water Services,780223,2783.37,Legionella Testing,Service Contracts,Premises
17/08/2020,Integrated Water Services,780224,2697.71,Legionella Testing,Service Contracts,Premises
17/08/2020,Visual Print And Design,780651,250,Marketing,Visit Exeter,Supplies & Services
17/08/2020,Integrated Water Services,780227,649.6,Planned Maintenance,Ramm,Premises
17/08/2020,Integrated Water Services,780228,649.6,Planned Maintenance,Ramm,Premises
17/08/2020,Integrated Water Services,780229,649.6,Planned Maintenance,Ramm,Premises
17/08/2020,Integrated Water Services,780230,649.6,Planned Maintenance,Ramm,Premises
17/08/2020,Whistl Uk Ltd,780689,526.16,Postage/Stamps,Mail,Supplies & Services
17/08/2020,Glenspray Motors Ltd,778044,560,Reactive Repairs,Recycling Round,Transport
17/08/2020,Glenspray Motors Ltd,778043,3989.6,Reactive Repairs,Refuse Collection,Transport
17/08/2020,Clc Contractors Ltd,780533,17617.39,Re-Roofing Flats,Programmed Re-Roofing,Supplies & Services
17/08/2020,Secureforce Uk Ltd,780640,647.17,Security Patrol,Livestock/Matford Centre,Premises
17/08/2020,W J Mathews (Exeter) Ltd,780248,499.5,Sewerage Pump Maintenance,Service Contracts,Premises
17/08/2020,W J Mathews (Exeter) Ltd,780249,242.65,Sewerage Pump Maintenance,Service Contracts,Premises
17/08/2020,Hot Stuff Metal Works,779936,720,Sub-Contractors,Car Parks,Premises
17/08/2020,Wider Plan Ltd,780495,895,Subscriptions,Human Resources,Supplies & Services
17/08/2020,Morgan Hunt Uk Ltd,780654,946.46,Temp.Contract-Agency Staff,Revenues Recovery,Pay
17/08/2020,South West Water Business,776154,471.19,Trade Effluent Charges,Refuse Collection,Premises
18/08/2020,Masons Kings,777642,692.7,Betterment,Livestock/Matford Centre,Transport
18/08/2020,Signs Express (Exeter),779302,354,Betterment,Property Assets - Builders,Transport
18/08/2020,Matching Staff Solutions,780643,456.95,Casuals Waged-Agency Staff,Public Realm Agency Costs,Pay
18/08/2020,The Best Connection Group Ltd,779427,3555.65,Casuals Waged-Agency Staff,Public Realm Agency Costs,Pay
18/08/2020,The Best Connection Group Ltd,780301,2838.59,Casuals Waged-Agency Staff,Public Realm Agency Costs,Pay
18/08/2020,W B Employment Ltd,780647,441.72,Casuals Waged-Agency Staff,Public Realm Agency Costs,Pay
18/08/2020,Driver Hire Exeter Ltd,780645,650.83,Casuals Waged-Agency Staff,Waste Agency Costs,Pay
18/08/2020,Devon Norse Ltd,780928,521.01,Cleaning,Cctv Control Room,Premises
18/08/2020,C & P Contracting Solutions Ltd,780496,2250,Consultants Fees,General Management,Supplies & Services
18/08/2020,Westcountry Maintenance Services Ltd,780770,7500,Contract Payments,Adaptations,Supplies & Services
18/08/2020,Westcountry Maintenance Services Ltd,780768,2838.42,Contract Payments,Bathroom Replacements,Supplies & Services
18/08/2020,Services Design Solutions,780936,16244.09,Contract Payments,Vaughan Road,Supplies & Services
18/08/2020,Services Design Solutions,780937,3898.96,Contract Payments,Vaughan Road,Supplies & Services
18/08/2020,Services Design Solutions,780936,8670.16,Contract Payments,Vaughan Road Ecl Ltd,Supplies & Services
18/08/2020,Services Design Solutions,780937,2081.04,Contract Payments,Vaughan Road Ecl Ltd,Supplies & Services
18/08/2020,E.On   (Electricity),777954,1181.94,Electricity,Car Parks,Premises
18/08/2020,E.On   (Electricity),777959,776.44,Electricity,Car Parks,Premises
18/08/2020,E.On   (Electricity),777951,1041.76,Electricity,Oakwood House,Premises
18/08/2020,Specialist Fleet Services Ltd,777340,3861.65,Fleet Supply & Maintenance,Fleet Contract Hire,Transport
18/08/2020,Specialist Fleet Services Ltd,777341,4124.88,Fleet Supply & Maintenance,Fleet Contract Hire,Transport
18/08/2020,Specialist Fleet Services Ltd,777342,4124.88,Fleet Supply & Maintenance,Fleet Contract Hire,Transport
18/08/2020,Specialist Fleet Services Ltd,777344,4124.88,Fleet Supply & Maintenance,Fleet Contract Hire,Transport
18/08/2020,Liberty Gas Group Ltd,780744,942.91,Gas & Central Heating,Service Contracts,Premises
18/08/2020,First Class Builders Ltd,780752,292,General Maintenance,General Maintenance,Premises
18/08/2020,Boc Limited,779836,704.2,Materials,Parks And Playing Fields,Supplies & Services
18/08/2020,Teknofix Ltd,780760,211.45,Materials,Parks And Playing Fields,Supplies & Services
18/08/2020,Allstar Business Solutions,780362,24219.32,Motor Fuel,Transport Management,Transport
18/08/2020,Masons Kings,777518,230.92,Reactive Repairs,Parks And Playing Fields,Transport
18/08/2020,M3 Housing Ltd,780131,480,Subscriptions,General Management,Supplies & Services
18/08/2020,Venn Group Ltd,779476,1001,Temp.Contract-Agency Staff,Health & Safety Compliance,Pay
18/08/2020,Venn Group Ltd,780241,988,Temp.Contract-Agency Staff,Health & Safety Compliance,Pay
19/08/2020,Great Western Hotel,780927,24400,Bed And Breakfast,Covid-19 Rough Sleepers Fund,Premises
19/08/2020,Berry Recruitment,781007,478.78,Casuals Waged-Agency Staff,Waste Agency Costs,Pay
19/08/2020,Concept Staffing Ltd,781072,1036.43,Casuals Waged-Agency Staff,Waste Agency Costs,Pay
19/08/2020,Driver Hire Exeter Ltd,780140,650.83,Casuals Waged-Agency Staff,Waste Agency Costs,Pay
19/08/2020,Structurehaus Ltd,781088,250,Contract Payments,Structural Repairs,Supplies & Services
19/08/2020,A1 Electrics,781057,465,Electrical Works - Communal,Prog'D Elec Re-Wiring General,Supplies & Services
19/08/2020,Mears Ltd,780810,43.46,Electrical Works - Communal,Prog'D Elec Re-Wiring General,Supplies & Services
19/08/2020,Spektrix Ltd,780935,723.1,Event Promotion,Exeter Corn Exchange,Supplies & Services
19/08/2020,Specialist Fleet Services Ltd,777121,415.84,Fleet Supply & Maintenance,Fleet Contract Hire,Transport
19/08/2020,Specialist Fleet Services Ltd,777321,1194,Fleet Supply & Maintenance,Fleet Contract Hire,Transport
19/08/2020,Specialist Fleet Services Ltd,779488,3861.65,Fleet Supply & Maintenance,Fleet Contract Hire,Transport
19/08/2020,Mears Ltd,780810,1543.14,General Maintenance,Elec Testing/Reactive,Premises
19/08/2020,Mears Ltd,780810,7171.69,General Maintenance,General Maintenance,Premises
19/08/2020,Mears Ltd,780811,722.23,General Maintenance,General Maintenance,Premises
19/08/2020,Cobwebs,780491,655,General Maintenance,Repairs To Void Properties,Premises
19/08/2020,Mears Ltd,780812,1698.8,General Maintenance,Repairs To Void Properties,Premises
19/08/2020,Nute Plumbing Services Ltd,780980,5500,General Maintenance,Repairs To Void Properties,Premises
19/08/2020,Mears Ltd,780810,21.73,Glazing,General Maintenance,Premises
19/08/2020,T-Cup Ltd,780967,2500,Room Hire,Agile & Flexible Working,Premises
19/08/2020,Ablou Facilities Ltd,780807,10175,Security Patrol,Community Safety Partnerships,Premises
19/08/2020,Stonewater Ltd,780991,5905,Serviced Accommodation,Serviced Accommodation,Premises
19/08/2020,Ashfords,779779,475,Solicitors And Legal Fees/Lics,General Management,Supplies & Services
19/08/2020,Judgement Ltd,781085,3750,Solicitors And Legal Fees/Lics,General Management,Supplies & Services
19/08/2020,Judgement Ltd,781086,825,Solicitors And Legal Fees/Lics,General Management,Supplies & Services
19/08/2020,REDACTED PERSONAL DATA,780635,800,Solicitors And Legal Fees/Lics,Leisure Facilities Contract,Supplies & Services
19/08/2020,REDACTED PERSONAL DATA,780921,980,Solicitors And Legal Fees/Lics,Leisure Facilities Contract,Supplies & Services
19/08/2020,REDACTED PERSONAL DATA,780922,1960,Solicitors And Legal Fees/Lics,Leisure Facilities Contract,Supplies & Services
19/08/2020,REDACTED PERSONAL DATA,780923,2170,Solicitors And Legal Fees/Lics,Leisure Facilities Contract,Supplies & Services
19/08/2020,REDACTED PERSONAL DATA,780931,5600,Solicitors And Legal Fees/Lics,Leisure Facilities Contract,Supplies & Services
19/08/2020,Judgement Ltd,781085,3750,Solicitors And Legal Fees/Lics,Ssp Pool - Operators Tender,Supplies & Services
19/08/2020,Judgement Ltd,781086,825,Solicitors And Legal Fees/Lics,Ssp Pool - Operators Tender,Supplies & Services
19/08/2020,C & P Contracting Solutions Ltd,781010,2250,Temp.Contract-Agency Staff,General Management,Pay
19/08/2020,Venn Group Ltd,781003,754,Temp.Contract-Agency Staff,Health & Safety Compliance,Pay
19/08/2020,Venn Group Ltd,781002,190.12,Temp.Contract-Agency Staff,Planned Works,Pay
19/08/2020,Venn Group Ltd,780999,1188,Temp.Contract-Agency Staff,Reactive Repairs,Pay
19/08/2020,Venn Group Ltd,781002,285.19,Temp.Contract-Agency Staff,Reactive Repairs,Pay
19/08/2020,South West Water Business,780549,536.2,Water,Allotments,Premises
19/08/2020,South West Water,780373,286.77,Water,Canal,Premises
20/08/2020,Hvp Security Shutters Ltd,781183,4895,Aim Reactive Repairs,Property Maintenance,Premises
20/08/2020,European Asbestos Services Ltd,780809,1357.2,Asbestos Removal,Asbestos,Premises
20/08/2020,European Asbestos Services Ltd,781229,1008,Asbestos Removal,Asbestos,Premises
20/08/2020,European Asbestos Services Ltd,781243,390,Asbestos Removal,Asbestos,Premises
20/08/2020,Mears Ltd,781111,43.46,Blocks Of Flat Repairs,General Maintenance,Premises
20/08/2020,W B Employment Ltd,768173,453.99,Casuals Waged-Agency Staff,Public Realm Agency Costs,Pay
20/08/2020,W B Employment Ltd,774728,276.08,Casuals Waged-Agency Staff,Public Realm Agency Costs,Pay
20/08/2020,Rentokil Pest Control,779635,2184.67,Cleaning,Customer Relations,Premises
20/08/2020,Rentokil Pest Control,780379,2184.67,Cleaning,Customer Relations,Premises
20/08/2020,Streamline Corporate Ltd,780236,274.8,"Clothing, Laundry, & Uniforms",River Exe,Supplies & Services
20/08/2020,Mears Ltd,781111,3508.84,Contract Payments,Adaptations,Supplies & Services
20/08/2020,M W Gozna Services Ltd,781114,464,Contract Payments,Adaptations,Supplies & Services
20/08/2020,Mears Ltd,781111,980.28,Contract Payments,Door Replacements,Supplies & Services
20/08/2020,Lawrence Webster Forrest,780972,1495,Contract Payments,Hamlin Gardens,Supplies & Services
20/08/2020,Bloom Procurement Services,778777,3144.81,Contract Payments,Heavitree (Cob Wave Iii),Supplies & Services
20/08/2020,Filcris Ltd,781008,2807.6,Costs Re Travellers & Campers,Parks And Playing Fields,Supplies & Services
20/08/2020,Asd Lighting Plc,780830,378,Electrical Works - Communal,Prog'D Elec Re-Wiring General,Supplies & Services
20/08/2020,Asd Lighting Plc,780831,1210,Electrical Works - Communal,Prog'D Elec Re-Wiring General,Supplies & Services
20/08/2020,Asd Lighting Plc,780930,3009.3,Electrical Works - Communal,Prog'D Elec Re-Wiring General,Supplies & Services
20/08/2020,Specialist Fleet Services Ltd,777143,2318,Fleet Supply & Maintenance,Fleet Contract Hire,Transport
20/08/2020,Specialist Fleet Services Ltd,777144,2318,Fleet Supply & Maintenance,Fleet Contract Hire,Transport
20/08/2020,Specialist Fleet Services Ltd,777336,1147.53,Fleet Supply & Maintenance,Fleet Contract Hire,Transport
20/08/2020,Specialist Fleet Services Ltd,777337,1147.53,Fleet Supply & Maintenance,Fleet Contract Hire,Transport
20/08/2020,Specialist Fleet Services Ltd,777438,4124.88,Fleet Supply & Maintenance,Fleet Contract Hire,Transport
20/08/2020,Specialist Fleet Services Ltd,779500,4124.88,Fleet Supply & Maintenance,Fleet Contract Hire,Transport
20/08/2020,Specialist Fleet Services Ltd,779501,4124.88,Fleet Supply & Maintenance,Fleet Contract Hire,Transport
20/08/2020,Specialist Fleet Services Ltd,779503,4124.88,Fleet Supply & Maintenance,Fleet Contract Hire,Transport
20/08/2020,Specialist Fleet Services Ltd,779506,895.33,Fleet Supply & Maintenance,Fleet Contract Hire,Transport
20/08/2020,Asd Lighting Plc,780832,1644,General Maintenance,Elec Testing/Reactive,Premises
20/08/2020,Mears Ltd,781111,478.02,General Maintenance,Elec Testing/Reactive,Premises
20/08/2020,Mears Ltd,781111,17566.11,General Maintenance,General Maintenance,Premises
20/08/2020,Premier Roofing Contractors Ltd,779590,3585.4,General Maintenance,General Maintenance,Premises
20/08/2020,Mears Ltd,781111,72.91,General Maintenance,Repairs To Void Properties,Premises
20/08/2020,Mears Ltd,781112,19549.53,General Maintenance,Repairs To Void Properties,Premises
20/08/2020,Mears Ltd,781111,966.42,Glazing,General Maintenance,Premises
20/08/2020,Dorma Uk Ltd,781224,2233.39,Grants Issued,Disabled Facilities Grants,Supplies & Services
20/08/2020,Nute Plumbing Services Ltd,781223,3587.7,Grants Issued,Disabled Facilities Grants,Supplies & Services
20/08/2020,Devon Tree Services,780968,1680,Hra Shrubs & Trees - Communal,Estate Maintenance,Premises
20/08/2020,Devon Tree Services,780975,240,Hra Shrubs & Trees - Communal,Estate Maintenance,Premises
20/08/2020,Punch Taverns (Pml) Ltd,781087,2945.32,Miscellaneous Recharge Income,Accountancy Services,Income
20/08/2020,Coastal Recycling Services Uk Ltd,779957,532,Skips,River Exe,Supplies & Services
20/08/2020,Complete Weed Control (Somerset & Devon),780031,600,Sub-Contractors,Canal,Premises
20/08/2020,H & S Transport Ltd,781063,625,Sub-Contractors,Low Maint & Painting Flats,Premises
20/08/2020,Hot Stuff Metal Works,780969,2530,Sub-Contractors,Mary Arches Footbridge,Premises
20/08/2020,Mears Ltd,781112,3247.29,Void Kitchen Replacements,Kitchen Replacements,Supplies & Services
21/08/2020,Mears Ltd,781509,584.45,Blocks Of Flat Repairs,General Maintenance,Premises
21/08/2020,Egbert H Taylor & Co Ltd,777962,3072,Bulk Containers - Purchase,Refuse Collection,Supplies & Services
21/08/2020,Exeter & District Funeral Service,780934,1013,Burial Expenses-Section 46,Cemeteries,Supplies & Services
21/08/2020,Baltimore Consulting Ltd,781066,3750,Consultants Fees,Planning,Supplies & Services
21/08/2020,A1 Electrics,780293,601.78,Contract Payments,Adaptations,Supplies & Services
21/08/2020,M W Gozna Services Ltd,781512,500,Contract Payments,Adaptations,Supplies & Services
21/08/2020,M W Gozna Services Ltd,781513,250,Contract Payments,Adaptations,Supplies & Services
21/08/2020,Inexeter Ltd,781084,12622.05,Contract Payments,Exeter Bid Company - From 2020,Supplies & Services
21/08/2020,Couch Perry + Wilkes Environmental Llp,781056,2650,Contract Payments,Leisure Complex - Build,Supplies & Services
21/08/2020,Bridge Civil Engineering,781321,1719.88,Contract Payments,Parks Infrastructure,Supplies & Services
21/08/2020,Devon Commercial Stationers Ltd,780133,750,Equipment Tools And Materials,Cctv Control Room,Supplies & Services
21/08/2020,Signs Express (Exeter),779841,1725,Equipment Tools And Materials,Corporate Support Unit,Supplies & Services
21/08/2020,Bowcom,780957,569.1,Equipment Tools And Materials,Parks And Playing Fields,Supplies & Services
21/08/2020,REDACTED PERSONAL DATA,781522,465,Fees,Planning,Income
21/08/2020,Mears Ltd,781509,116.17,General Maintenance,Elec Testing/Reactive,Premises
21/08/2020,Cobwebs,781227,374.99,General Maintenance,General Maintenance,Premises
21/08/2020,Cobwebs,781519,360,General Maintenance,General Maintenance,Premises
21/08/2020,First Class Builders Ltd,781514,881,General Maintenance,General Maintenance,Premises
21/08/2020,Mears Ltd,781509,1297.75,General Maintenance,General Maintenance,Premises
21/08/2020,Mears Ltd,781510,1217.22,General Maintenance,Repairs To Void Properties,Premises
21/08/2020,Exeter Cvs (Colab),781201,5000,Grants Issued,Self-Employed Support,Supplies & Services
21/08/2020,Devon Tree Services,781013,960,Hra Shrubs & Trees - Communal,Estate Maintenance,Premises
21/08/2020,Hydrosphere Uk Ltd,781193,1425,Materials For Buoys,Mooring Repairs,Premises
21/08/2020,Wgs Power And Lighting Ltd,781194,2495,Project Work,Communications & Marketing,Supplies & Services
21/08/2020,Civica Uk Ltd,780993,1575.48,Software Licences/Support,Strata Susp - Inv Paid By Ecc,Supplies & Services
21/08/2020,Drainology,780494,1127.2,Sub-Contractors,Oakwood House,Premises
21/08/2020,Jtt Contracting Ltd,780956,915.02,Sub-Contractors,Signs & Sundries - Assets,Premises
21/08/2020,James Andrews Recruitment Solutions Ltd,781185,139.94,Temp.Contract-Agency Staff,Planned Works,Pay
21/08/2020,James Andrews Recruitment Solutions Ltd,781196,1026.47,Temp.Contract-Agency Staff,Planned Works,Pay
21/08/2020,James Andrews Recruitment Solutions Ltd,781185,209.91,Temp.Contract-Agency Staff,Reactive Repairs,Pay
21/08/2020,Nute Plumbing Services Ltd,780971,4812,Void Bathroom Replacements,Bathroom Replacements,Supplies & Services
21/08/2020,Devon County Council,780674,90423.46,Waste Disposal,Trade Refuse & Recycling,Supplies & Services
24/08/2020,Single Ply Structures Ltd,781190,250,Aim Lease Requirements,Bradninch Place,Premises
24/08/2020,I J Cannings & Son Limited,780375,42.53,Aim Lease Requirements,Commercial Properties,Premises
24/08/2020,Agt Electrical (Exeter) Ltd,781316,339.92,Aim Lease Requirements,Miscellaneous Properties,Premises
24/08/2020,I J Cannings & Son Limited,780375,219.84,Aim Lease Requirements,Miscellaneous Properties,Premises
24/08/2020,Harmony Fire Ltd,779681,269.3,Aim Reactive Repairs,Property Maintenance,Premises
24/08/2020,Radiate Plumbing + Heating Services Ltd,779467,343.52,Aim Reactive Repairs,Property Maintenance,Premises
24/08/2020,Westcountry Maintenance Services Ltd,780308,225.38,Aim Reactive Repairs,Property Maintenance,Premises
24/08/2020,Environtec Ltd,781580,510,Asbestos Surveys,Asbestos,Premises
24/08/2020,Concept Staffing Ltd,781080,1779.08,Casuals Waged-Agency Staff,Waste Agency Costs,Pay
24/08/2020,Driver Hire Exeter Ltd,781588,650.83,Casuals Waged-Agency Staff,Waste Agency Costs,Pay
24/08/2020,First Class Builders Ltd,781070,280,Contract Payments,Adaptations,Supplies & Services
24/08/2020,Kier Construction Ltd,781324,225805.15,Contract Payments,St Loyes Extracare Scheme,Supplies & Services
24/08/2020,Dodd Group (South) Ltd,781225,52549.11,Electrical Works - Communal,Prog'D Elec Re-Wiring General,Supplies & Services
24/08/2020,E.On   (Electricity),781527,1815,Electricity,Car Parks,Premises
24/08/2020,Klipspringer Ltd,780405,333,Equipment Tools And Materials,Business Regulation Team,Supplies & Services
24/08/2020,Specialist Fleet Services Ltd,777326,2318,Fleet Supply & Maintenance,Fleet Contract Hire,Transport
24/08/2020,Specialist Fleet Services Ltd,779502,4124.88,Fleet Supply & Maintenance,Fleet Contract Hire,Transport
24/08/2020,Specialist Fleet Services Ltd,780941,506.67,Fleet Supply & Maintenance,Fleet Contract Hire,Transport
24/08/2020,Specialist Fleet Services Ltd,781000,744.56,Fleet Supply & Maintenance,Fleet Contract Hire,Transport
24/08/2020,Specialist Fleet Services Ltd,781001,304.34,Fleet Supply & Maintenance,Fleet Contract Hire,Transport
24/08/2020,Specialist Fleet Services Ltd,781073,478.06,Fleet Supply & Maintenance,Fleet Contract Hire,Transport
24/08/2020,Specialist Fleet Services Ltd,781079,1194,Fleet Supply & Maintenance,Fleet Contract Hire,Transport
24/08/2020,Complete Water Solutions (Ltd),781515,424.41,General Maintenance,General Maintenance,Premises
24/08/2020,First Class Builders Ltd,781506,323.63,General Maintenance,General Maintenance,Premises
24/08/2020,Guardian Security Company,781236,358.16,General Maintenance,General Maintenance,Premises
24/08/2020,Guardian Security Company,781241,263.5,General Maintenance,General Maintenance,Premises
24/08/2020,Mears Ltd,781577,2151.94,General Maintenance,General Maintenance,Premises
24/08/2020,Propoint Southwest Ltd,781521,342,General Maintenance,General Maintenance,Premises
24/08/2020,Rd & E Nhs Foundation Trust,780973,1673.93,Medical Inspections,Human Resources,Pay
24/08/2020,I J Cannings & Son Limited,780375,1602.68,Pmf Compliance,Property Maintenance,Premises
24/08/2020,I J Cannings & Son Limited,780375,62.24,Service Charges,Bradninch Place,Premises
24/08/2020,Cipfa Business Ltd,780992,650,Staff Training,Learning & Development,Pay
24/08/2020,I J Cannings & Son Limited,780375,15.56,Sub-Contractors,Ecqt Suspense,Premises
24/08/2020,Hays Accountancy Personnel,780238,668.95,Temp.Contract-Agency Staff,Accountancy Services,Pay
24/08/2020,Hays Accountancy Personnel,781591,645.34,Temp.Contract-Agency Staff,Accountancy Services,Pay
24/08/2020,Hays Accountancy Personnel,781592,787,Temp.Contract-Agency Staff,Accountancy Services,Pay
24/08/2020,Morgan Law,780219,893.2,Temp.Contract-Agency Staff,Accountancy Services,Pay
24/08/2020,Morgan Law,781596,1148,Temp.Contract-Agency Staff,Accountancy Services,Pay
24/08/2020,Venn Group Ltd,781608,1001,Temp.Contract-Agency Staff,Health & Safety Compliance,Pay
24/08/2020,Hays Accountancy Personnel,781590,1060.42,Temp.Contract-Agency Staff,Planned Works,Pay
24/08/2020,Venn Group Ltd,781607,1129.41,Temp.Contract-Agency Staff,Reactive Repairs,Pay
24/08/2020,Market Carpets,780970,694.17,Tenant Decant Costs,Planned Works,Supplies & Services
24/08/2020,REDACTED PERSONAL DATA,781621,279.25,Tenant Decant Costs,Planned Works,Supplies & Services
25/08/2020,P & P Lifts Limited,781631,1095,Aim Reactive Repairs,Property Maintenance,Premises
25/08/2020,Arc4 Ltd,782511,2995,Consultants Fees,Building Neighbourhoods Team,Supplies & Services
25/08/2020,Wsp Uk Ltd,777688,3310.65,Contract Payments,Bus Station Construction,Supplies & Services
25/08/2020,Kier Construction Ltd,783463,821289.61,Contract Payments,Leisure Complex - Build,Supplies & Services
25/08/2020,Kier Construction Ltd,783465,89015.43,Contract Payments,Riverside,Supplies & Services
25/08/2020,Mears Ltd,783412,728.18,Decs For Elderly & Disabled,Internal Decoration Prog,Premises
25/08/2020,Peter Dixon Chandlery,779761,391.23,Equipment Tools And Materials,River Exe,Supplies & Services
25/08/2020,Mears Ltd,783413,21.73,Floor Tiles,General Maintenance,Premises
25/08/2020,Mears Ltd,783413,863.71,General Maintenance,Elec Testing/Reactive,Premises
25/08/2020,Mears Ltd,783413,3834.33,General Maintenance,General Maintenance,Premises
25/08/2020,Rj Services,783416,4659.11,Grants Issued,Disabled Facilities Grants,Supplies & Services
25/08/2020,Therm-Eco Ewi Ltd,783427,2000,Grants Issued,Warm Up Exeter,Supplies & Services
25/08/2020,Therm-Eco Ewi Ltd,783428,2000,Grants Issued,Warm Up Exeter,Supplies & Services
25/08/2020,Therm-Eco Ewi Ltd,783429,1920,Grants Issued,Warm Up Exeter,Supplies & Services
25/08/2020,Therm-Eco Ewi Ltd,783433,2000,Grants Issued,Warm Up Exeter,Supplies & Services
25/08/2020,Paddock Print Ltd,782501,238,Marketing,Communications & Marketing,Supplies & Services
25/08/2020,Whistl Uk Ltd,782508,810.69,Postage/Stamps,Mail,Supplies & Services
25/08/2020,C & P Contracting Solutions Ltd,781650,2250,Temp.Contract-Agency Staff,General Management,Pay
26/08/2020,Clc Contractors Ltd,781627,696,Asbestos Surveys,Asbestos,Premises
26/08/2020,Recruitment Solutions (Sw) Ltd,783418,1581.01,Casuals Waged-Agency Staff,Materials Reclamation Facility,Pay
26/08/2020,The Best Connection Group Ltd,780648,580.96,Casuals Waged-Agency Staff,Materials Reclamation Facility,Pay
26/08/2020,The Best Connection Group Ltd,780649,1020.29,Casuals Waged-Agency Staff,Materials Reclamation Facility,Pay
26/08/2020,The Best Connection Group Ltd,781652,1536.3,Casuals Waged-Agency Staff,Materials Reclamation Facility,Pay
26/08/2020,Backline Logistic Support Services Ltd,782510,601.25,Casuals Waged-Agency Staff,Waste Agency Costs,Pay
26/08/2020,Berry Recruitment,781641,478.78,Casuals Waged-Agency Staff,Waste Agency Costs,Pay
26/08/2020,Gap Personnel,781593,271.92,Casuals Waged-Agency Staff,Waste Agency Costs,Pay
26/08/2020,Recruitment Solutions (Sw) Ltd,783420,719.18,Casuals Waged-Agency Staff,Waste Agency Costs,Pay
26/08/2020,Aw Jenkinson Transport Ltd,781115,350,Comingled Haulage Out,Materials Reclamation Facility,Transport
26/08/2020,Nicholas Rowell Haulage Ltd,781116,3000,Comingled Haulage Out,Materials Reclamation Facility,Transport
26/08/2020,Baltimore Consulting Ltd,781068,6250,Consultants Fees,New Build Site Investigations,Supplies & Services
26/08/2020,Scooter Store Ltd,783529,1790,Contract Payments,Adaptations,Supplies & Services
26/08/2020,Mears Ltd,783525,872.09,Contract Payments,Garage Upgrades,Supplies & Services
26/08/2020,Clc Contractors Ltd,781627,6806.05,Contract Payments,Window Replacements,Supplies & Services
26/08/2020,Southern Electric,777829,322.36,Electricity,S Electric A/C 26350 65111,Premises
26/08/2020,Specialist Fleet Services Ltd,780940,1972.99,Fleet Supply & Maintenance,Fleet Contract Hire,Transport
26/08/2020,Specialist Fleet Services Ltd,780997,641.23,Fleet Supply & Maintenance,Fleet Contract Hire,Transport
26/08/2020,Specialist Fleet Services Ltd,780998,641.23,Fleet Supply & Maintenance,Fleet Contract Hire,Transport
26/08/2020,Renault Trucks Commercial Ltd,769745,289.32,Fleet Supply & Maintenance,Ramm,Transport
26/08/2020,Mears Ltd,783525,79.68,Floor Tiles,General Maintenance,Premises
26/08/2020,Mears Ltd,783525,398.73,General Maintenance,Elec Testing/Reactive,Premises
26/08/2020,Mears Ltd,783525,12890.85,General Maintenance,General Maintenance,Premises
26/08/2020,Premier Roofing Contractors Ltd,781189,395,General Maintenance,General Maintenance,Premises
26/08/2020,Propoint Southwest Ltd,783536,2205,General Maintenance,General Maintenance,Premises
26/08/2020,Clc Contractors Ltd,781627,2173.27,General Maintenance,Low Maint & Painting Flats,Premises
26/08/2020,A1 Electrics,783532,2623.1,General Maintenance,Repairs To Void Properties,Premises
26/08/2020,Mears Ltd,783524,39248.38,General Maintenance,Repairs To Void Properties,Premises
26/08/2020,Mears Ltd,783525,72.92,General Maintenance,Repairs To Void Properties,Premises
26/08/2020,Nute Plumbing Services Ltd,783542,5500,General Maintenance,Repairs To Void Properties,Premises
26/08/2020,Kate Evans Ceramics,781638,628.16,Goods For Resale,Museum Shop,Supplies & Services
26/08/2020,REDACTED PERSONAL DATA,782497,283.34,Licences,Monitoring Private Housing,Income
26/08/2020,Harlequin Software Ltd,781197,2130,Maintenance Of Equipment,Ramm,Supplies & Services
26/08/2020,G B Sport & Leisure,782493,423.15,Materials,Childrens Play Areas,Supplies & Services
26/08/2020,REDACTED PERSONAL DATA,781651,500,Museum - Temp Exhibitions,Museum Npo,Supplies & Services
26/08/2020,REDACTED PERSONAL DATA,782500,400,Other Expenses,Bed And Breakfast,Supplies & Services
26/08/2020,Specialist Fleet Services Ltd,780995,641.23,Other Expenses,Fleet Contract Hire,Supplies & Services
26/08/2020,A1 Electrics,783533,570,Rewires To Voids,Prog'D Elec Re-Wiring General,Supplies & Services
26/08/2020,REDACTED PERSONAL DATA,783570,600,Spend To Save,Housing Advice,Supplies & Services
26/08/2020,Glen Cleaning,783424,551,Sub-Contractors,Cleansing Overheads,Premises
26/08/2020,Mears Ltd,783524,3327.18,Void Kitchen Replacements,Kitchen Replacements,Supplies & Services
26/08/2020,Nute Plumbing Services Ltd,783541,5738,Void Kitchen Replacements,Kitchen Replacements,Supplies & Services
26/08/2020,South West Water Business,783520,1425.93,Water,Exeter Corn Exchange,Premises
27/08/2020,Signs Express (Exeter),771407,312.8,Betterment,Parks And Playing Fields,Transport
27/08/2020,Storm Environmental Ltd,780508,6930,Bins & Recycling Boxes,Refuse Collection,Supplies & Services
27/08/2020,Storm Environmental Ltd,780507,7590,Bins & Recycling Boxes,Trade Refuse & Recycling,Supplies & Services
27/08/2020,Exeter & District Funeral Service,782491,1013,Burial Expenses-Section 46,Cemeteries,Supplies & Services
27/08/2020,Exeter & District Funeral Service,782502,1013,Burial Expenses-Section 46,Cemeteries,Supplies & Services
27/08/2020,Beauty By Ali,783730,2500,Businesses Provides <10k,La Discretionary Grants Fund,Supplies & Services
27/08/2020,Recruitment Solutions (Sw) Ltd,783419,1177.95,Casuals Waged-Agency Staff,Public Realm Agency Costs,Pay
27/08/2020,The Best Connection Group Ltd,781653,477.67,Casuals Waged-Agency Staff,Public Realm Agency Costs,Pay
27/08/2020,W B Employment Ltd,781597,1070.6,Casuals Waged-Agency Staff,Public Realm Agency Costs,Pay
27/08/2020,Wise Employment,781598,1051.44,Casuals Waged-Agency Staff,Public Realm Agency Costs,Pay
27/08/2020,Arc4 Ltd,783681,2995,Consultants Fees,Building Neighbourhoods Team,Supplies & Services
27/08/2020,Bloom Procurement Services,780990,5040,Consultants Fees,Leisure Complex - Build,Supplies & Services
27/08/2020,Kier Construction Ltd,783546,172211.42,Contract Payments,Bus Station Construction,Supplies & Services
27/08/2020,Mears Ltd,783685,723.69,Contract Payments,Door Replacements,Supplies & Services
27/08/2020,Faithful & Gould/Atkins Group,783403,18051,Contract Payments,Riverside,Supplies & Services
27/08/2020,Exeter City Living,783432,20038,Contract Payments,Wonford Health & Wellbeing Hub,Supplies & Services
27/08/2020,Exeter City Living,783534,8640,Contract Payments,Wonford Health & Wellbeing Hub,Supplies & Services
27/08/2020,Grant Thornton,783426,950,Core Audit Fee,Corporate Costs,Supplies & Services
27/08/2020,Filcris Ltd,781584,6944,Costs Re Travellers & Campers,Anti-Intrusion Measures,Supplies & Services
27/08/2020,Kone Plc,780686,1666.58,Door Entry Systems,Service Contracts,Premises
27/08/2020,Brightsea Ltd,780680,329,Equipment Tools And Materials,Recycling Round,Supplies & Services
27/08/2020,Freight Transport Association,781204,249.44,Equipment Tools And Materials,Refuse Collection,Supplies & Services
27/08/2020,Specialist Fleet Services Ltd,780943,506.67,Fleet Supply & Maintenance,Fleet Contract Hire,Transport
27/08/2020,Specialist Fleet Services Ltd,780944,506.67,Fleet Supply & Maintenance,Fleet Contract Hire,Transport
27/08/2020,Specialist Fleet Services Ltd,780945,500.17,Fleet Supply & Maintenance,Fleet Contract Hire,Transport
27/08/2020,Specialist Fleet Services Ltd,780946,500.17,Fleet Supply & Maintenance,Fleet Contract Hire,Transport
27/08/2020,Specialist Fleet Services Ltd,781074,803.31,Fleet Supply & Maintenance,Fleet Contract Hire,Transport
27/08/2020,Specialist Fleet Services Ltd,778621,2470,Fleet Supply & Maintenance,Refuse Collection,Transport
27/08/2020,Mears Ltd,783685,1260.12,General Maintenance,Elec Testing/Reactive,Premises
27/08/2020,Mears Ltd,783685,10846.92,General Maintenance,General Maintenance,Premises
27/08/2020,M A Vernon Ltd,783720,250,General Maintenance,Repairs To Void Properties,Premises
27/08/2020,Mears Ltd,783685,143.66,Glazing,General Maintenance,Premises
27/08/2020,Clifton Albert Residents Association,783521,500,Grants Issued,Covid 19 Community Initiatives,Supplies & Services
27/08/2020,Countess Wear Village Hall,783522,420,Grants Issued,Covid 19 Community Initiatives,Supplies & Services
27/08/2020,Stagecoach Services Ltd,780670,341.63,Green Travel Scheme,Ecc Balance Sheet,Current Assets
27/08/2020,Flowbird Smart City Uk Ltd,780766,15092.4,Maintenance Of Equipment,Car Parks,Supplies & Services
27/08/2020,Mcqueenie Mulholland,783446,272.87,Marketing,Building Greater Exeter,Supplies & Services
27/08/2020,Boc Limited,783585,780,Materials,Parks And Playing Fields,Supplies & Services
27/08/2020,Exeter Cvs (Colab),782490,2441.98,Other Expenses,Rapid Rehousing Pathway Fund,Supplies & Services
27/08/2020,Exeter Cvs (Colab),783475,2361.6,Other Expenses,Rapid Rehousing Pathway Fund,Supplies & Services
27/08/2020,Wonford Green Surgery,783753,1680,Other Expenses,Sport England Pathfinder,Supplies & Services
27/08/2020,Stagecoach Services Ltd,780670,170.86,Public Transport,Green Travel Plan,Transport
27/08/2020,Specialist Fleet Services Ltd,779443,12767.41,Routine Maintenance,Transport Management,Transport
27/08/2020,H & S Transport Ltd,781059,1992,Sub-Contractors,Land Drainage Water C - Assets,Premises
27/08/2020,Complete Water Solutions (Ltd),782496,228,Sub-Contractors,Parks And Playing Fields,Premises
27/08/2020,The Oyster Partnership Ltd,781587,1230,Temp.Contract-Agency Staff,Planning,Pay
27/08/2020,Venn Group Ltd,781609,1221.08,Temp.Contract-Agency Staff,Planning,Pay
27/08/2020,Venn Group Ltd,781610,814.05,Temp.Contract-Agency Staff,Planning,Pay
27/08/2020,Morgan Hunt Uk Ltd,783703,473.23,Temp.Contract-Agency Staff,Revenues Recovery,Pay
27/08/2020,The Oyster Partnership Ltd,781586,925,Temp.Contract-Agency Staff,Rough Sleeping Initiative,Pay
28/08/2020,Berry Recruitment,783851,670.07,Casuals Waged-Agency Staff,Public Realm Agency Costs,Pay
28/08/2020,Concept Staffing Ltd,783530,1116.69,Casuals Waged-Agency Staff,Public Realm Agency Costs,Pay
28/08/2020,Matching Staff Solutions,783763,481.65,Casuals Waged-Agency Staff,Public Realm Agency Costs,Pay
28/08/2020,Concept Staffing Ltd,783718,1709.7,Casuals Waged-Agency Staff,Waste Agency Costs,Pay
28/08/2020,Matching Staff Solutions,783762,238.2,Casuals Waged-Agency Staff,Waste Agency Costs,Pay
28/08/2020,Westcountry Fire Protection Ltd,783863,1830.95,Fire Alarm Testing,Service Contracts,Premises
28/08/2020,Specialist Fleet Services Ltd,777327,2318,Fleet Supply & Maintenance,Fleet Contract Hire,Transport
28/08/2020,Specialist Fleet Services Ltd,777335,484.33,Fleet Supply & Maintenance,Fleet Contract Hire,Transport
28/08/2020,Specialist Fleet Services Ltd,780942,506.67,Fleet Supply & Maintenance,Fleet Contract Hire,Transport
28/08/2020,Specialist Fleet Services Ltd,781075,2318,Fleet Supply & Maintenance,Fleet Contract Hire,Transport
28/08/2020,Specialist Fleet Services Ltd,781078,710,Fleet Supply & Maintenance,Fleet Contract Hire,Transport
28/08/2020,Mears Ltd,783848,531.4,General Maintenance,Elec Testing/Reactive,Premises
28/08/2020,Envirovent Ltd,781090,675,General Maintenance,General Maintenance,Premises
28/08/2020,Envirovent Ltd,783421,575,General Maintenance,General Maintenance,Premises
28/08/2020,Envirovent Ltd,783682,747.55,General Maintenance,General Maintenance,Premises
28/08/2020,Mears Ltd,783848,3146.14,General Maintenance,General Maintenance,Premises
28/08/2020,Propoint Southwest Ltd,783849,1630,General Maintenance,General Maintenance,Premises
28/08/2020,William Hackett Chains Ltd,783722,370.8,Materials For Buoys,River Exe,Premises
28/08/2020,REDACTED PERSONAL DATA,784045,782.8,Season Tickets,Car Parks,Income
28/08/2020,Livewest Ltd,784031,363.12,Spend To Save,Housing Advice,Supplies & Services
28/08/2020,A1 Electrics,784036,1752.3,Sub-Contractors,Canal,Premises
28/08/2020,Teignmouth Harbour Commissions,779641,1450,Sub-Contractors,River Exe,Premises
28/08/2020,Hays Accountancy Personnel,783846,637.47,Temp.Contract-Agency Staff,Accountancy Services,Pay
28/08/2020,Morgan Law,783850,830,Temp.Contract-Agency Staff,Accountancy Services,Pay
28/08/2020,The Oyster Partnership Ltd,783841,1281.25,Temp.Contract-Agency Staff,Planning,Pay
01/09/2020,Specialist Fleet Services Ltd,784263,65905,Accident Repairs,Transport Management,Transport
01/09/2020,Pynes Hill Business Centre Ltd,784391,25000,Businesses Provided 25k,La Discretionary Grants Fund,Supplies & Services
01/09/2020,A W Jenkinson Forest Products,783704,700,Comingled Haulage Out,Materials & Goods For Resale,Transport
01/09/2020,A W Jenkinson Forest Products,783705,350,Comingled Haulage Out,Materials & Goods For Resale,Transport
01/09/2020,Aw Jenkinson Transport Ltd,784265,350,Comingled Haulage Out,Materials Reclamation Facility,Transport
01/09/2020,Aw Jenkinson Transport Ltd,784269,350,Comingled Haulage Out,Materials Reclamation Facility,Transport
01/09/2020,M W Gozna Services Ltd,784264,328.82,Contract Payments,Adaptations,Supplies & Services
01/09/2020,M W Gozna Services Ltd,784275,3400,Contract Payments,Adaptations,Supplies & Services
01/09/2020,E.On   (Electricity),784261,569.04,Electricity,Exeter Corn Exchange,Premises
01/09/2020,E.On   (Electricity),784252,1018.28,Electricity,Livestock/Matford Centre,Premises
01/09/2020,Specialist Fleet Services Ltd,777155,484,Fleet Supply & Maintenance,Fleet Contract Hire,Transport
01/09/2020,Specialist Fleet Services Ltd,780952,368,Fleet Supply & Maintenance,Fleet Contract Hire,Transport
01/09/2020,Specialist Fleet Services Ltd,780953,368,Fleet Supply & Maintenance,Fleet Contract Hire,Transport
01/09/2020,Specialist Fleet Services Ltd,780954,368,Fleet Supply & Maintenance,Fleet Contract Hire,Transport
01/09/2020,Energyserv Uk Ltd,784047,1361.65,Gas & Central Heating,Service Contracts,Premises
01/09/2020,Mears Ltd,784237,464.74,General Maintenance,Elec Testing/Reactive,Premises
01/09/2020,First Class Builders Ltd,783873,432,General Maintenance,General Maintenance,Premises
01/09/2020,First Class Builders Ltd,783875,640,General Maintenance,General Maintenance,Premises
01/09/2020,Guardian Security Company,783584,526.03,General Maintenance,General Maintenance,Premises
01/09/2020,Mears Ltd,784237,1771.79,General Maintenance,General Maintenance,Premises
01/09/2020,Mears Ltd,784238,5257.38,General Maintenance,Repairs To Void Properties,Premises
01/09/2020,Mears Ltd,784237,430.98,Glazing,General Maintenance,Premises
01/09/2020,Dolphin Lifts South West,783866,3750,Grants Issued,Disabled Facilities Grants,Supplies & Services
01/09/2020,Dolphin Lifts South West,783867,1900,Grants Issued,Disabled Facilities Grants,Supplies & Services
01/09/2020,Aldi Stores Ltd,781329,500,Grants Issued,Self-Employed Support,Supplies & Services
01/09/2020,Therm-Eco Ewi Ltd,783860,1233.33,Grants Issued,Warm Up Exeter,Supplies & Services
01/09/2020,Therm-Eco Ewi Ltd,783861,1666.67,Grants Issued,Warm Up Exeter,Supplies & Services
01/09/2020,Therm-Eco Ewi Ltd,783862,1666.67,Grants Issued,Warm Up Exeter,Supplies & Services
01/09/2020,Glendale Countryside Ltd,783414,10895.29,Grounds Costs,Garden Assistance,Premises
01/09/2020,Zurich Municipal,784271,1235.05,Insurance - Block Policy,Sowton Industrial Estate,Premises
01/09/2020,REDACTED PERSONAL DATA,783689,442.5,Lettings,Livestock/Matford Centre,Income
01/09/2020,Avery Weigh-Tronix,781226,1270,Maintenance Of Equipment,Materials Reclamation Facility,Supplies & Services
01/09/2020,Exeter Cvs (Colab),783469,280,Other Expenses,Rapid Rehousing Pathway Fund,Supplies & Services
01/09/2020,Exeter Cvs (Colab),783470,393.6,Other Expenses,Rapid Rehousing Pathway Fund,Supplies & Services
01/09/2020,Exeter Cvs (Colab),783471,2361.6,Other Expenses,Rapid Rehousing Pathway Fund,Supplies & Services
01/09/2020,Exeter Cvs (Colab),783472,7325.94,Other Expenses,Rapid Rehousing Pathway Fund,Supplies & Services
01/09/2020,Savills (Uk) Ltd,783431,4210.04,Service Charges,Exeter Visitor Information,Premises
01/09/2020,Savills (Uk) Ltd,783430,350.89,Service Charges,Underground Passages,Premises
01/09/2020,Stuart Partners Ltd,780126,2380.2,Special Works,Oakwood House,Premises
01/09/2020,A1 Electrics,780773,308.66,Sub-Contractors,Civic Centre,Premises
01/09/2020,M3 Housing Ltd,783531,3145,Subscriptions,General Management,Supplies & Services
01/09/2020,Reed Business Information Ltd,780835,299.25,Subscriptions,Revenues Recovery,Supplies & Services
01/09/2020,The Oyster Partnership Ltd,783840,937.5,Temp.Contract-Agency Staff,Rough Sleeping Initiative,Pay
02/09/2020,Great Western Hotel,784387,24357.14,Bed And Breakfast,Covid-19 Rough Sleepers Fund,Premises
02/09/2020,Signs Express (Exeter),771439,312.8,Betterment,Cemeteries - Operational,Transport
02/09/2020,Mears Ltd,784414,109.48,Blocks Of Flat Repairs,General Maintenance,Premises
02/09/2020,Mears Ltd,784415,166.91,Blocks Of Flat Repairs,General Maintenance,Premises
02/09/2020,Recruitment Solutions (Sw) Ltd,783869,1326.01,Casuals Waged-Agency Staff,Materials Reclamation Facility,Pay
02/09/2020,Berry Recruitment,781005,543.3,Casuals Waged-Agency Staff,Public Realm Agency Costs,Pay
02/09/2020,Concept Staffing Ltd,781089,868.33,Casuals Waged-Agency Staff,Public Realm Agency Costs,Pay
02/09/2020,Recruitment Solutions (Sw) Ltd,783870,915.38,Casuals Waged-Agency Staff,Public Realm Agency Costs,Pay
02/09/2020,The Best Connection Group Ltd,770911,800.42,Casuals Waged-Agency Staff,Public Realm Agency Costs,Pay
02/09/2020,The Best Connection Group Ltd,779621,1606.75,Casuals Waged-Agency Staff,Public Realm Agency Costs,Pay
02/09/2020,The Best Connection Group Ltd,781014,1623.4,Casuals Waged-Agency Staff,Public Realm Agency Costs,Pay
02/09/2020,The Best Connection Group Ltd,781055,2485.14,Casuals Waged-Agency Staff,Public Realm Agency Costs,Pay
02/09/2020,W B Employment Ltd,780994,1070.6,Casuals Waged-Agency Staff,Public Realm Agency Costs,Pay
02/09/2020,Streamline Corporate Ltd,784038,269.5,"Clothing, Laundry, & Uniforms",Cleansing Overheads,Supplies & Services
02/09/2020,C & P Contracting Solutions Ltd,784619,2250,Consultants Fees,General Management,Supplies & Services
02/09/2020,Drew Pearce,784646,1811.1,Consultants Fees,General Management,Supplies & Services
02/09/2020,Mears Ltd,784414,143.6,Contract Payments,Adaptations,Supplies & Services
02/09/2020,British Telecom Plc,784666,3402.84,Contract Payments,Bus Station Construction,Supplies & Services
02/09/2020,Marketing Means Ltd,783754,9988,Contract Payments,Sport England Pathfinder,Supplies & Services
02/09/2020,Southern Electric,783435,3892.97,Electricity,S Electric A/C 04748 69417,Premises
02/09/2020,Southern Electric,783439,3522.79,Electricity,S Electric A/C 26350 65111,Premises
02/09/2020,Southern Electric,783440,2012.55,Electricity,S Electric A/C 63013 09118,Premises
02/09/2020,Mears Ltd,784414,495.68,General Maintenance,Elec Testing/Reactive,Premises
02/09/2020,Envirovent Ltd,783691,573.57,General Maintenance,General Maintenance,Premises
02/09/2020,Guardian Security Company,783855,592.86,General Maintenance,General Maintenance,Premises
02/09/2020,Mears Ltd,784414,2297.05,General Maintenance,General Maintenance,Premises
02/09/2020,Mears Ltd,784415,96.48,General Maintenance,General Maintenance,Premises
02/09/2020,M A Vernon Ltd,783719,875,General Maintenance,Repairs To Void Properties,Premises
02/09/2020,M A Vernon Ltd,783721,675,General Maintenance,Repairs To Void Properties,Premises
02/09/2020,M A Vernon Ltd,783723,850,General Maintenance,Repairs To Void Properties,Premises
02/09/2020,Aerial South West,783693,785,Glazing,General Maintenance,Premises
02/09/2020,Newtown Community Association,784576,798.5,Grants Issued,Covid 19 Community Initiatives,Supplies & Services
02/09/2020,Whipton Community Association,784413,1000,Grants Issued,Covid 19 Community Initiatives,Supplies & Services
02/09/2020,Cobwebs,784243,16606.5,Hra Routine Cleaning Contract,Customer Relations,Premises
